Organisation Code,Organisation Label,Effective Date,Organisational Unit,Service Division Label,Category Internal Name,Purpose,Detailed Expenditure Code,Payment Date,TransactionNumber,Irrecoverable VAT Amount,Amount,Capital Or Revenue,Benificiary Name,Procurement Card,
Http://opendatacommunities.org/id/metropolitan-district-council/leeds,Leeds City Council,30/11/2015,Central & Corporate,Commercial Services Trading Services,Supplies and Services,Operational Materials,205,04-Nov-2015,1511-00001,0.00,14.83,R,A Andrews & Sons (Marbles & Tiles),No,
Http://opendatacommunities.org/id/metropolitan-district-council/leeds,Leeds City Council,30/11/2015,Central & Corporate,Commercial Services Trading Services,Supplies and Services,Operational Materials,205,20-Nov-2015,1511-00002,0.00,260.00,R,A Andrews & Sons (Marbles & Tiles),No,
Http://opendatacommunities.org/id/metropolitan-district-council/leeds,Leeds City Council,30/11/2015,Central & Corporate,Commercial Services Trading Services,Supplies and Services,Operational Materials,205,20-Nov-2015,1511-00003,0.00,3.89,R,A Andrews & Sons (Marbles & Tiles),No,
Http://opendatacommunities.org/id/metropolitan-district-council/leeds,Leeds City Council,30/11/2015,Insurance,Insurance,Supplies and Services,Insurance Claims,248,10-Nov-2015,1511-00004,0.00,100.00,R,REDACTED PERSONAL DATA,No,
Http://opendatacommunities.org/id/metropolitan-district-council/leeds,Leeds City Council,30/11/2015,Environment & Housing,Parks and Countryside,Supplies and Services,Bought In Professional Services,277,10-Nov-2015,1511-00005,0.00,1997.47,R,REDACTED COMMERCIAL CONFIDENTIALITY,No,
Http://opendatacommunities.org/id/metropolitan-district-council/leeds,Leeds City Council,30/11/2015,City Development,Libraries  Arts & Heritage,Supplies and Services,Other Hired And Contracted Services,265,20-Nov-2015,1511-00006,0.00,700.00,R,A D Todd,No,
Http://opendatacommunities.org/id/metropolitan-district-council/leeds,Leeds City Council,30/11/2015,Childrens Services,Safeguarding Targeted & Specialist,Employees,Training Costs,71,19-Nov-2015,1511-00007,0.00,35.00,R,REDACTED PERSONAL DATA,No,
Http://opendatacommunities.org/id/metropolitan-district-council/leeds,Leeds City Council,30/11/2015,Central & Corporate,Human Resources,Employees,Occupational Health,85,20-Nov-2015,1511-00008,0.00,30.00,R,A F Rickards,No,
Http://opendatacommunities.org/id/metropolitan-district-council/leeds,Leeds City Council,30/11/2015,Environment & Housing,Housing Leeds Service,Capital,Other Costs,7,12-Nov-2015,1511-00009,0.00,380.00,C,REDACTED PERSONAL DATA,No,
Http://opendatacommunities.org/id/metropolitan-district-council/leeds,Leeds City Council,30/11/2015,City Development,Libraries  Arts & Heritage,Supplies and Services,Other Hired And Contracted Services,265,25-Nov-2015,1511-00010,0.00,150.00,R,REDACTED COMMERCIAL CONFIDENTIALITY,No,
Http://opendatacommunities.org/id/metropolitan-district-council/leeds,Leeds City Council,30/11/2015,Central & Corporate,Commercial Services Trading Services,Supplies and Services,Operational Materials,205,04-Nov-2015,1511-00011,0.00,103.00,R,A J H  Pump Supply & Repair Ltd,No,
Http://opendatacommunities.org/id/metropolitan-district-council/leeds,Leeds City Council,30/11/2015,Central & Corporate,Commercial Services Trading Services,Supplies and Services,Operational Materials,205,06-Nov-2015,1511-00012,0.00,38.50,R,A J H  Pump Supply & Repair Ltd,No,
Http://opendatacommunities.org/id/metropolitan-district-council/leeds,Leeds City Council,30/11/2015,Central & Corporate,Commercial Services Trading Services,Supplies and Services,Other Hired And Contracted Services,265,09-Nov-2015,1511-00013,0.00,454.00,R,A J H  Pump Supply & Repair Ltd,No,
Http://opendatacommunities.org/id/metropolitan-district-council/leeds,Leeds City Council,30/11/2015,Central & Corporate,Commercial Services Trading Services,Supplies and Services,Other Hired And Contracted Services,265,09-Nov-2015,1511-00014,0.00,640.00,R,A J H  Pump Supply & Repair Ltd,No,
Http://opendatacommunities.org/id/metropolitan-district-council/leeds,Leeds City Council,30/11/2015,Central & Corporate,Commercial Services Trading Services,Supplies and Services,Operational Materials,205,09-Nov-2015,1511-00015,0.00,23.85,R,A J H  Pump Supply & Repair Ltd,No,
Http://opendatacommunities.org/id/metropolitan-district-council/leeds,Leeds City Council,30/11/2015,Central & Corporate,Commercial Services Trading Services,Supplies and Services,Operational Materials,205,13-Nov-2015,1511-00016,0.00,138.31,R,A J H  Pump Supply & Repair Ltd,No,
Http://opendatacommunities.org/id/metropolitan-district-council/leeds,Leeds City Council,30/11/2015,Central & Corporate,Commercial Services Trading Services,Supplies and Services,Operational Materials,205,13-Nov-2015,1511-00017,0.00,892.84,R,A J H  Pump Supply & Repair Ltd,No,
Http://opendatacommunities.org/id/metropolitan-district-council/leeds,Leeds City Council,30/11/2015,Central & Corporate,Commercial Services Trading Services,Supplies and Services,Operational Materials,205,13-Nov-2015,1511-00018,0.00,102.28,R,A J H  Pump Supply & Repair Ltd,No,
Http://opendatacommunities.org/id/metropolitan-district-council/leeds,Leeds City Council,30/11/2015,Central & Corporate,Commercial Services Trading Services,Supplies and Services,Operational Materials,205,13-Nov-2015,1511-00019,0.00,69.49,R,A J H  Pump Supply & Repair Ltd,No,
Http://opendatacommunities.org/id/metropolitan-district-council/leeds,Leeds City Council,30/11/2015,Central & Corporate,Commercial Services Trading Services,Supplies and Services,Operational Materials,205,13-Nov-2015,1511-00020,0.00,191.80,R,A J H  Pump Supply & Repair Ltd,No,
Http://opendatacommunities.org/id/metropolitan-district-council/leeds,Leeds City Council,30/11/2015,Central & Corporate,Commercial Services Trading Services,Supplies and Services,Operational Materials,205,13-Nov-2015,1511-00021,0.00,319.00,R,A J H  Pump Supply & Repair Ltd,No,
Http://opendatacommunities.org/id/metropolitan-district-council/leeds,Leeds City Council,30/11/2015,Central & Corporate,Commercial Services Trading Services,Supplies and Services,Operational Materials,205,13-Nov-2015,1511-00022,0.00,42.71,R,A J H  Pump Supply & Repair Ltd,No,
Http://opendatacommunities.org/id/metropolitan-district-council/leeds,Leeds City Council,30/11/2015,Central & Corporate,Commercial Services Trading Services,Supplies and Services,Operational Materials,205,13-Nov-2015,1511-00023,0.00,135.00,R,A J H  Pump Supply & Repair Ltd,No,
Http://opendatacommunities.org/id/metropolitan-district-council/leeds,Leeds City Council,30/11/2015,Central & Corporate,Commercial Services Trading Services,Supplies and Services,Operational Materials,205,13-Nov-2015,1511-00024,0.00,15.90,R,A J H  Pump Supply & Repair Ltd,No,
Http://opendatacommunities.org/id/metropolitan-district-council/leeds,Leeds City Council,30/11/2015,Central & Corporate,Commercial Services Trading Services,Supplies and Services,Operational Materials,205,13-Nov-2015,1511-00025,0.00,105.00,R,A J H  Pump Supply & Repair Ltd,No,
Http://opendatacommunities.org/id/metropolitan-district-council/leeds,Leeds City Council,30/11/2015,Central & Corporate,Commercial Services Trading Services,Supplies and Services,Operational Materials,205,13-Nov-2015,1511-00026,0.00,54.23,R,A J H  Pump Supply & Repair Ltd,No,
Http://opendatacommunities.org/id/metropolitan-district-council/leeds,Leeds City Council,30/11/2015,Central & Corporate,Commercial Services Trading Services,Supplies and Services,Operational Materials,205,13-Nov-2015,1511-00027,0.00,252.64,R,A J H  Pump Supply & Repair Ltd,No,
Http://opendatacommunities.org/id/metropolitan-district-council/leeds,Leeds City Council,30/11/2015,Central & Corporate,Commercial Services Trading Services,Supplies and Services,Operational Materials,205,13-Nov-2015,1511-00028,0.00,178.00,R,A J H  Pump Supply & Repair Ltd,No,
Http://opendatacommunities.org/id/metropolitan-district-council/leeds,Leeds City Council,30/11/2015,Central & Corporate,Commercial Services Trading Services,Supplies and Services,Operational Materials,205,13-Nov-2015,1511-00029,0.00,134.88,R,A J H  Pump Supply & Repair Ltd,No,
Http://opendatacommunities.org/id/metropolitan-district-council/leeds,Leeds City Council,30/11/2015,Central & Corporate,Commercial Services Trading Services,Supplies and Services,Operational Materials,205,13-Nov-2015,1511-00030,0.00,133.72,R,A J H  Pump Supply & Repair Ltd,No,
Http://opendatacommunities.org/id/metropolitan-district-council/leeds,Leeds City Council,30/11/2015,Central & Corporate,Commercial Services Trading Services,Supplies and Services,Operational Materials,205,13-Nov-2015,1511-00031,0.00,63.36,R,A J H  Pump Supply & Repair Ltd,No,
Http://opendatacommunities.org/id/metropolitan-district-council/leeds,Leeds City Council,30/11/2015,Central & Corporate,Commercial Services Trading Services,Supplies and Services,Operational Materials,205,13-Nov-2015,1511-00032,0.00,13.43,R,A J H  Pump Supply & Repair Ltd,No,
Http://opendatacommunities.org/id/metropolitan-district-council/leeds,Leeds City Council,30/11/2015,Central & Corporate,Commercial Services Trading Services,Supplies and Services,Operational Materials,205,13-Nov-2015,1511-00033,0.00,215.10,R,A J H  Pump Supply & Repair Ltd,No,
Http://opendatacommunities.org/id/metropolitan-district-council/leeds,Leeds City Council,30/11/2015,Central & Corporate,Commercial Services Trading Services,Supplies and Services,Operational Materials,205,13-Nov-2015,1511-00034,0.00,33.76,R,A J H  Pump Supply & Repair Ltd,No,
Http://opendatacommunities.org/id/metropolitan-district-council/leeds,Leeds City Council,30/11/2015,Central & Corporate,Commercial Services Trading Services,Supplies and Services,Operational Materials,205,13-Nov-2015,1511-00035,0.00,15.90,R,A J H  Pump Supply & Repair Ltd,No,
Http://opendatacommunities.org/id/metropolitan-district-council/leeds,Leeds City Council,30/11/2015,Central & Corporate,Commercial Services Trading Services,Supplies and Services,Operational Materials,205,13-Nov-2015,1511-00036,0.00,117.42,R,A J H  Pump Supply & Repair Ltd,No,
Http://opendatacommunities.org/id/metropolitan-district-council/leeds,Leeds City Council,30/11/2015,Central & Corporate,Commercial Services Trading Services,Supplies and Services,Operational Materials,205,13-Nov-2015,1511-00037,0.00,60.00,R,A J H  Pump Supply & Repair Ltd,No,
Http://opendatacommunities.org/id/metropolitan-district-council/leeds,Leeds City Council,30/11/2015,Central & Corporate,Commercial Services Trading Services,Supplies and Services,Operational Materials,205,13-Nov-2015,1511-00038,0.00,301.82,R,A J H  Pump Supply & Repair Ltd,No,
Http://opendatacommunities.org/id/metropolitan-district-council/leeds,Leeds City Council,30/11/2015,Central & Corporate,Commercial Services Trading Services,Supplies and Services,Operational Materials,205,13-Nov-2015,1511-00039,0.00,1178.00,R,A J H  Pump Supply & Repair Ltd,No,
Http://opendatacommunities.org/id/metropolitan-district-council/leeds,Leeds City Council,30/11/2015,Central & Corporate,Commercial Services Trading Services,Supplies and Services,Operational Materials,205,13-Nov-2015,1511-00040,0.00,243.52,R,A J H  Pump Supply & Repair Ltd,No,
Http://opendatacommunities.org/id/metropolitan-district-council/leeds,Leeds City Council,30/11/2015,Central & Corporate,Commercial Services Trading Services,Supplies and Services,Operational Materials,205,20-Nov-2015,1511-00041,0.00,750.00,R,A J H  Pump Supply & Repair Ltd,No,
Http://opendatacommunities.org/id/metropolitan-district-council/leeds,Leeds City Council,30/11/2015,Central & Corporate,Commercial Services Trading Services,Supplies and Services,Operational Materials,205,20-Nov-2015,1511-00042,0.00,340.00,R,A J H  Pump Supply & Repair Ltd,No,
Http://opendatacommunities.org/id/metropolitan-district-council/leeds,Leeds City Council,30/11/2015,Central & Corporate,Commercial Services Trading Services,Supplies and Services,Operational Materials,205,20-Nov-2015,1511-00043,0.00,152.70,R,A J H  Pump Supply & Repair Ltd,No,
Http://opendatacommunities.org/id/metropolitan-district-council/leeds,Leeds City Council,30/11/2015,Central & Corporate,Commercial Services Trading Services,Supplies and Services,Operational Materials,205,20-Nov-2015,1511-00044,0.00,110.00,R,A J H  Pump Supply & Repair Ltd,No,
Http://opendatacommunities.org/id/metropolitan-district-council/leeds,Leeds City Council,30/11/2015,Central & Corporate,Commercial Services Trading Services,Supplies and Services,Operational Materials,205,20-Nov-2015,1511-00045,0.00,323.25,R,A J H  Pump Supply & Repair Ltd,No,
Http://opendatacommunities.org/id/metropolitan-district-council/leeds,Leeds City Council,30/11/2015,Central & Corporate,Commercial Services Trading Services,Supplies and Services,Operational Materials,205,20-Nov-2015,1511-00046,0.00,90.00,R,A J H  Pump Supply & Repair Ltd,No,
Http://opendatacommunities.org/id/metropolitan-district-council/leeds,Leeds City Council,30/11/2015,Central & Corporate,Commercial Services Trading Services,Supplies and Services,Operational Materials,205,20-Nov-2015,1511-00047,0.00,25.00,R,A J H  Pump Supply & Repair Ltd,No,
Http://opendatacommunities.org/id/metropolitan-district-council/leeds,Leeds City Council,30/11/2015,Central & Corporate,Commercial Services Trading Services,Supplies and Services,Operational Materials,205,20-Nov-2015,1511-00048,0.00,34.40,R,A J H  Pump Supply & Repair Ltd,No,
Http://opendatacommunities.org/id/metropolitan-district-council/leeds,Leeds City Council,30/11/2015,Central & Corporate,Commercial Services Trading Services,Supplies and Services,Operational Materials,205,20-Nov-2015,1511-00049,0.00,212.12,R,A J H  Pump Supply & Repair Ltd,No,
Http://opendatacommunities.org/id/metropolitan-district-council/leeds,Leeds City Council,30/11/2015,Central & Corporate,Commercial Services Trading Services,Supplies and Services,Operational Materials,205,20-Nov-2015,1511-00050,0.00,93.00,R,A J H  Pump Supply & Repair Ltd,No,
Http://opendatacommunities.org/id/metropolitan-district-council/leeds,Leeds City Council,30/11/2015,Central & Corporate,Commercial Services Trading Services,Supplies and Services,Operational Materials,205,20-Nov-2015,1511-00051,0.00,93.97,R,A J H  Pump Supply & Repair Ltd,No,
Http://opendatacommunities.org/id/metropolitan-district-council/leeds,Leeds City Council,30/11/2015,Central & Corporate,Commercial Services Trading Services,Supplies and Services,Operational Materials,205,20-Nov-2015,1511-00052,0.00,308.88,R,A J H  Pump Supply & Repair Ltd,No,
Http://opendatacommunities.org/id/metropolitan-district-council/leeds,Leeds City Council,30/11/2015,Central & Corporate,Commercial Services Trading Services,Supplies and Services,Operational Materials,205,20-Nov-2015,1511-00053,0.00,85.00,R,A J H  Pump Supply & Repair Ltd,No,
Http://opendatacommunities.org/id/metropolitan-district-council/leeds,Leeds City Council,30/11/2015,Central & Corporate,Commercial Services Trading Services,Supplies and Services,Operational Materials,205,20-Nov-2015,1511-00054,0.00,115.81,R,A J H  Pump Supply & Repair Ltd,No,
Http://opendatacommunities.org/id/metropolitan-district-council/leeds,Leeds City Council,30/11/2015,Central & Corporate,Commercial Services Trading Services,Supplies and Services,Operational Materials,205,20-Nov-2015,1511-00055,0.00,214.35,R,A J H  Pump Supply & Repair Ltd,No,
Http://opendatacommunities.org/id/metropolitan-district-council/leeds,Leeds City Council,30/11/2015,Central & Corporate,Commercial Services Trading Services,Supplies and Services,Operational Materials,205,20-Nov-2015,1511-00056,0.00,41.52,R,A J H  Pump Supply & Repair Ltd,No,
Http://opendatacommunities.org/id/metropolitan-district-council/leeds,Leeds City Council,30/11/2015,Central & Corporate,Commercial Services Trading Services,Supplies and Services,Operational Materials,205,20-Nov-2015,1511-00057,0.00,55.00,R,A J H  Pump Supply & Repair Ltd,No,
Http://opendatacommunities.org/id/metropolitan-district-council/leeds,Leeds City Council,30/11/2015,Central & Corporate,Commercial Services Trading Services,Supplies and Services,Operational Materials,205,20-Nov-2015,1511-00058,0.00,316.50,R,A J H  Pump Supply & Repair Ltd,No,
Http://opendatacommunities.org/id/metropolitan-district-council/leeds,Leeds City Council,30/11/2015,Central & Corporate,Commercial Services Trading Services,Supplies and Services,Operational Materials,205,20-Nov-2015,1511-00059,0.00,245.00,R,A J H  Pump Supply & Repair Ltd,No,
Http://opendatacommunities.org/id/metropolitan-district-council/leeds,Leeds City Council,30/11/2015,Central & Corporate,Commercial Services Trading Services,Supplies and Services,Operational Materials,205,20-Nov-2015,1511-00060,0.00,21.24,R,A J H  Pump Supply & Repair Ltd,No,
Http://opendatacommunities.org/id/metropolitan-district-council/leeds,Leeds City Council,30/11/2015,Central & Corporate,Commercial Services Trading Services,Supplies and Services,Operational Materials,205,20-Nov-2015,1511-00061,0.00,47.66,R,A J H  Pump Supply & Repair Ltd,No,
Http://opendatacommunities.org/id/metropolitan-district-council/leeds,Leeds City Council,30/11/2015,Central & Corporate,Commercial Services Trading Services,Supplies and Services,Operational Materials,205,20-Nov-2015,1511-00062,0.00,78.95,R,A J H  Pump Supply & Repair Ltd,No,
Http://opendatacommunities.org/id/metropolitan-district-council/leeds,Leeds City Council,30/11/2015,Central & Corporate,Commercial Services Trading Services,Supplies and Services,Other Hired And Contracted Services,265,23-Nov-2015,1511-00063,0.00,3952.00,R,A J H  Pump Supply & Repair Ltd,No,
Http://opendatacommunities.org/id/metropolitan-district-council/leeds,Leeds City Council,30/11/2015,Central & Corporate,Commercial Services Trading Services,Supplies and Services,Other Hired And Contracted Services,265,27-Nov-2015,1511-00064,0.00,427.44,R,A J H  Pump Supply & Repair Ltd,No,
Http://opendatacommunities.org/id/metropolitan-district-council/leeds,Leeds City Council,30/11/2015,Central & Corporate,Commercial Services Trading Services,Supplies and Services,Operational Materials,205,27-Nov-2015,1511-00065,0.00,362.00,R,A J H  Pump Supply & Repair Ltd,No,
Http://opendatacommunities.org/id/metropolitan-district-council/leeds,Leeds City Council,30/11/2015,Central & Corporate,Commercial Services Trading Services,Supplies and Services,Operational Materials,205,27-Nov-2015,1511-00066,0.00,316.82,R,A J H  Pump Supply & Repair Ltd,No,
Http://opendatacommunities.org/id/metropolitan-district-council/leeds,Leeds City Council,30/11/2015,Central & Corporate,Commercial Services Trading Services,Supplies and Services,Operational Materials,205,27-Nov-2015,1511-00067,0.00,265.08,R,A J H  Pump Supply & Repair Ltd,No,
Http://opendatacommunities.org/id/metropolitan-district-council/leeds,Leeds City Council,30/11/2015,Central & Corporate,Commercial Services Trading Services,Supplies and Services,Operational Materials,205,27-Nov-2015,1511-00068,0.00,35.00,R,A J H  Pump Supply & Repair Ltd,No,
Http://opendatacommunities.org/id/metropolitan-district-council/leeds,Leeds City Council,30/11/2015,Central & Corporate,Commercial Services Trading Services,Supplies and Services,Operational Materials,205,27-Nov-2015,1511-00069,0.00,31.05,R,A J H  Pump Supply & Repair Ltd,No,
Http://opendatacommunities.org/id/metropolitan-district-council/leeds,Leeds City Council,30/11/2015,Central & Corporate,Commercial Services Trading Services,Supplies and Services,Operational Materials,205,27-Nov-2015,1511-00070,0.00,16.80,R,A J H  Pump Supply & Repair Ltd,No,
Http://opendatacommunities.org/id/metropolitan-district-council/leeds,Leeds City Council,30/11/2015,Central & Corporate,Commercial Services Trading Services,Supplies and Services,Operational Materials,205,27-Nov-2015,1511-00071,0.00,240.40,R,A J H  Pump Supply & Repair Ltd,No,
Http://opendatacommunities.org/id/metropolitan-district-council/leeds,Leeds City Council,30/11/2015,Central & Corporate,Commercial Services Trading Services,Supplies and Services,Operational Materials,205,27-Nov-2015,1511-00072,0.00,96.76,R,A J H  Pump Supply & Repair Ltd,No,
Http://opendatacommunities.org/id/metropolitan-district-council/leeds,Leeds City Council,30/11/2015,Central & Corporate,Commercial Services Trading Services,Supplies and Services,Operational Materials,205,27-Nov-2015,1511-00073,0.00,38.00,R,A J H  Pump Supply & Repair Ltd,No,
Http://opendatacommunities.org/id/metropolitan-district-council/leeds,Leeds City Council,30/11/2015,Central & Corporate,Commercial Services Trading Services,Supplies and Services,Operational Materials,205,27-Nov-2015,1511-00074,0.00,536.02,R,A J H  Pump Supply & Repair Ltd,No,
Http://opendatacommunities.org/id/metropolitan-district-council/leeds,Leeds City Council,30/11/2015,Central & Corporate,Commercial Services Trading Services,Supplies and Services,Operational Materials,205,27-Nov-2015,1511-00075,0.00,304.75,R,A J H  Pump Supply & Repair Ltd,No,
Http://opendatacommunities.org/id/metropolitan-district-council/leeds,Leeds City Council,30/11/2015,Central & Corporate,Commercial Services Trading Services,Supplies and Services,Operational Materials,205,27-Nov-2015,1511-00076,0.00,105.98,R,A J H  Pump Supply & Repair Ltd,No,
Http://opendatacommunities.org/id/metropolitan-district-council/leeds,Leeds City Council,30/11/2015,Central & Corporate,Commercial Services Trading Services,Supplies and Services,Operational Materials,205,27-Nov-2015,1511-00077,0.00,339.38,R,A J H  Pump Supply & Repair Ltd,No,
Http://opendatacommunities.org/id/metropolitan-district-council/leeds,Leeds City Council,30/11/2015,Central & Corporate,Commercial Services Trading Services,Supplies and Services,Operational Materials,205,27-Nov-2015,1511-00078,0.00,252.52,R,A J H  Pump Supply & Repair Ltd,No,
Http://opendatacommunities.org/id/metropolitan-district-council/leeds,Leeds City Council,30/11/2015,Central & Corporate,Commercial Services Trading Services,Supplies and Services,Operational Materials,205,27-Nov-2015,1511-00079,0.00,225.31,R,A J H  Pump Supply & Repair Ltd,No,
Http://opendatacommunities.org/id/metropolitan-district-council/leeds,Leeds City Council,30/11/2015,Central & Corporate,Commercial Services Trading Services,Supplies and Services,Operational Materials,205,27-Nov-2015,1511-00080,0.00,43.45,R,A J H  Pump Supply & Repair Ltd,No,
Http://opendatacommunities.org/id/metropolitan-district-council/leeds,Leeds City Council,30/11/2015,Central & Corporate,Commercial Services Trading Services,Supplies and Services,Operational Materials,205,27-Nov-2015,1511-00081,0.00,37.50,R,A J H  Pump Supply & Repair Ltd,No,
Http://opendatacommunities.org/id/metropolitan-district-council/leeds,Leeds City Council,30/11/2015,Central & Corporate,Commercial Services Trading Services,Supplies and Services,Operational Materials,205,27-Nov-2015,1511-00082,0.00,7.84,R,A J H  Pump Supply & Repair Ltd,No,
Http://opendatacommunities.org/id/metropolitan-district-council/leeds,Leeds City Council,30/11/2015,Central & Corporate,Commercial Services Trading Services,Supplies and Services,Operational Materials,205,27-Nov-2015,1511-00083,0.00,15.80,R,A J H  Pump Supply & Repair Ltd,No,
Http://opendatacommunities.org/id/metropolitan-district-council/leeds,Leeds City Council,30/11/2015,Central & Corporate,Commercial Services Trading Services,Supplies and Services,Operational Materials,205,27-Nov-2015,1511-00084,0.00,49.59,R,A J H  Pump Supply & Repair Ltd,No,
Http://opendatacommunities.org/id/metropolitan-district-council/leeds,Leeds City Council,30/11/2015,Central & Corporate,Commercial Services Trading Services,Supplies and Services,Operational Materials,205,27-Nov-2015,1511-00085,0.00,210.57,R,A J H  Pump Supply & Repair Ltd,No,
Http://opendatacommunities.org/id/metropolitan-district-council/leeds,Leeds City Council,30/11/2015,Environment & Housing,Parks and Countryside,Supplies and Services,Resaleable Materials,204,25-Nov-2015,1511-00086,0.00,485.75,R,A J Promotions,No,
Http://opendatacommunities.org/id/metropolitan-district-council/leeds,Leeds City Council,30/11/2015,Citizens and Communities,Elections  Licensing and Registration,Income,Admissions  Booking Fees & Ticket Sales,933,26-Nov-2015,1511-00087,0.00,160.00,R,REDACTED PERSONAL DATA,No,
Http://opendatacommunities.org/id/metropolitan-district-council/leeds,Leeds City Council,30/11/2015,Childrens Services,Learning Skills & Universal,Supplies and Services,Teaching Materials,202,20-Nov-2015,1511-00088,0.00,180.00,R,A Little Something Extra Ltd,No,
Http://opendatacommunities.org/id/metropolitan-district-council/leeds,Leeds City Council,30/11/2015,Childrens Services,Learning Skills & Universal,Supplies and Services,Teaching Materials,202,20-Nov-2015,1511-00089,0.00,180.00,R,A Little Something Extra Ltd,No,
Http://opendatacommunities.org/id/metropolitan-district-council/leeds,Leeds City Council,30/11/2015,Childrens Services,Learning Skills & Universal,Third Party Payments,Services Rendered By Voluntary Sector,505,20-Nov-2015,1511-00090,0.00,225.00,R,A Little Something Extra Ltd,No,
Http://opendatacommunities.org/id/metropolitan-district-council/leeds,Leeds City Council,30/11/2015,Childrens Services,Learning Skills & Universal,Supplies and Services,Teaching Materials,202,20-Nov-2015,1511-00091,0.00,180.00,R,A Little Something Extra Ltd,No,
Http://opendatacommunities.org/id/metropolitan-district-council/leeds,Leeds City Council,30/11/2015,Childrens Services,Learning Skills & Universal,Supplies and Services,Teaching Materials,202,20-Nov-2015,1511-00092,0.00,180.00,R,A Little Something Extra Ltd,No,
Http://opendatacommunities.org/id/metropolitan-district-council/leeds,Leeds City Council,30/11/2015,Childrens Services,Partnership Development & Leadership,Employees,Training & Development,70,24-Nov-2015,1511-00093,0.00,75.00,R,A Little Something Extra Ltd,No,
Http://opendatacommunities.org/id/metropolitan-district-council/leeds,Leeds City Council,30/11/2015,Childrens Services,Learning Skills & Universal,Supplies and Services,Teaching Materials,202,27-Nov-2015,1511-00094,0.00,30.00,R,A Little Something Extra Ltd,No,
Http://opendatacommunities.org/id/metropolitan-district-council/leeds,Leeds City Council,30/11/2015,Environment & Housing,Housing Leeds Service,Capital,Other Costs,7,19-Nov-2015,1511-00095,0.00,180.00,C,REDACTED PERSONAL DATA,No,
Http://opendatacommunities.org/id/metropolitan-district-council/leeds,Leeds City Council,30/11/2015,Childrens Services,Safeguarding Targeted & Specialist,Transfer Payments,Leaving Care Allowances,634,19-Nov-2015,1511-00096,0.00,57.90,R,REDACTED PERSONAL DATA,No,
Http://opendatacommunities.org/id/metropolitan-district-council/leeds,Leeds City Council,30/11/2015,Childrens Services,Safeguarding Targeted & Specialist,Transfer Payments,Leaving Care Allowances,634,26-Nov-2015,1511-00097,0.00,57.90,R,REDACTED PERSONAL DATA,No,
Http://opendatacommunities.org/id/metropolitan-district-council/leeds,Leeds City Council,30/11/2015,Environment & Housing,Housing Leeds Service,Capital,Other Costs,7,06-Nov-2015,1511-00098,0.00,380.00,C,REDACTED PERSONAL DATA,No,
Http://opendatacommunities.org/id/metropolitan-district-council/leeds,Leeds City Council,30/11/2015,Citizens and Communities,Customer Access,Supplies and Services,Other Hired And Contracted Services,265,03-Nov-2015,1511-00099,0.00,610.85,R,A Mohammed,No,
Http://opendatacommunities.org/id/metropolitan-district-council/leeds,Leeds City Council,30/11/2015,Citizens and Communities,Customer Access,Supplies and Services,Other Hired And Contracted Services,265,05-Nov-2015,1511-00100,0.00,65.75,R,A Mohammed,No,
Http://opendatacommunities.org/id/metropolitan-district-council/leeds,Leeds City Council,30/11/2015,Environment & Housing,Housing Leeds Service,Capital,Other Costs,7,19-Nov-2015,1511-00101,0.00,380.00,C,REDACTED PERSONAL DATA,No,
Http://opendatacommunities.org/id/metropolitan-district-council/leeds,Leeds City Council,30/11/2015,Citizens and Communities,Customer Access,Supplies and Services,Other Hired And Contracted Services,265,03-Nov-2015,1511-00102,0.00,73.50,R,A Namaki,No,
Http://opendatacommunities.org/id/metropolitan-district-council/leeds,Leeds City Council,30/11/2015,Environment & Housing,Parks and Countryside,Supplies and Services,Other Hired And Contracted Services,265,19-Nov-2015,1511-00103,0.00,1305.60,R,A Nicholls,No,
Http://opendatacommunities.org/id/metropolitan-district-council/leeds,Leeds City Council,30/11/2015,Central & Corporate,Public Health,Third Party Payments,Public Health Commissioned Services,526,17-Nov-2015,1511-00104,0.00,3436.30,R,A P Health,No,
Http://opendatacommunities.org/id/metropolitan-district-council/leeds,Leeds City Council,30/11/2015,Environment & Housing,Housing Leeds Service,Capital,Other Costs,7,26-Nov-2015,1511-00105,0.00,330.00,C,REDACTED PERSONAL DATA,No,
Http://opendatacommunities.org/id/metropolitan-district-council/leeds,Leeds City Council,30/11/2015,City Development,Libraries  Arts & Heritage,Supplies and Services,Other Hired And Contracted Services,265,20-Nov-2015,1511-00106,0.00,7500.00,R,A Quiet Word Ltd,No,
Http://opendatacommunities.org/id/metropolitan-district-council/leeds,Leeds City Council,30/11/2015,City Development,Libraries  Arts & Heritage,Supplies and Services,Books & Audio-Visual Materials,206,05-Nov-2015,1511-00107,0.00,139.08,R,A S Jhagra,No,
Http://opendatacommunities.org/id/metropolitan-district-council/leeds,Leeds City Council,30/11/2015,Civic Enterprise Leeds,Business Support Centre,Supplies and Services,Other Hired And Contracted Services,265,04-Nov-2015,1511-00108,0.00,46.25,R,A Star Couriers Ltd,No,
Http://opendatacommunities.org/id/metropolitan-district-council/leeds,Leeds City Council,30/11/2015,Environment & Housing,Waste Management,Supplies and Services,Other Hired And Contracted Services,265,04-Nov-2015,1511-00109,0.00,523.30,R,A T Nerac Ltd,No,
Http://opendatacommunities.org/id/metropolitan-district-council/leeds,Leeds City Council,30/11/2015,Environment & Housing,Waste Management,Supplies and Services,Other Hired And Contracted Services,265,09-Nov-2015,1511-00110,0.00,341.55,R,A T Nerac Ltd,No,
Http://opendatacommunities.org/id/metropolitan-district-council/leeds,Leeds City Council,30/11/2015,Environment & Housing,Waste Management,Employees,Training & Development,70,26-Nov-2015,1511-00111,0.00,129.60,R,REDACTED PERSONAL DATA,No,
Http://opendatacommunities.org/id/metropolitan-district-council/leeds,Leeds City Council,30/11/2015,Environment & Housing,Waste Management,Supplies and Services,Other Hired And Contracted Services,265,26-Nov-2015,1511-00112,0.00,185.60,R,A T Nerac Ltd,No,
Http://opendatacommunities.org/id/metropolitan-district-council/leeds,Leeds City Council,30/11/2015,Environment & Housing,Parks and Countryside,Supplies and Services,Food & Drink,231,10-Nov-2015,1511-00113,0.00,70.34,R,A T Traynor,No,
Http://opendatacommunities.org/id/metropolitan-district-council/leeds,Leeds City Council,30/11/2015,Environment & Housing,Parks and Countryside,Supplies and Services,Food & Drink,231,10-Nov-2015,1511-00114,0.00,87.14,R,A T Traynor,No,
Http://opendatacommunities.org/id/metropolitan-district-council/leeds,Leeds City Council,30/11/2015,Environment & Housing,Parks and Countryside,Supplies and Services,Food & Drink,231,10-Nov-2015,1511-00115,0.00,25.20,R,A T Traynor,No,
Http://opendatacommunities.org/id/metropolitan-district-council/leeds,Leeds City Council,30/11/2015,Environment & Housing,Parks and Countryside,Supplies and Services,Food & Drink,231,10-Nov-2015,1511-00116,0.00,50.40,R,A T Traynor,No,
Http://opendatacommunities.org/id/metropolitan-district-council/leeds,Leeds City Council,30/11/2015,Environment & Housing,Parks and Countryside,Supplies and Services,Food & Drink,231,10-Nov-2015,1511-00117,0.00,46.82,R,A T Traynor,No,
Http://opendatacommunities.org/id/metropolitan-district-council/leeds,Leeds City Council,30/11/2015,Environment & Housing,Parks and Countryside,Supplies and Services,Food & Drink,231,10-Nov-2015,1511-00118,0.00,66.98,R,A T Traynor,No,
Http://opendatacommunities.org/id/metropolitan-district-council/leeds,Leeds City Council,30/11/2015,Environment & Housing,Parks and Countryside,Supplies and Services,Food & Drink,231,10-Nov-2015,1511-00119,0.00,55.22,R,A T Traynor,No,
Http://opendatacommunities.org/id/metropolitan-district-council/leeds,Leeds City Council,30/11/2015,Environment & Housing,Parks and Countryside,Supplies and Services,Food & Drink,231,10-Nov-2015,1511-00120,0.00,45.14,R,A T Traynor,No,
Http://opendatacommunities.org/id/metropolitan-district-council/leeds,Leeds City Council,30/11/2015,Environment & Housing,Parks and Countryside,Supplies and Services,Food & Drink,231,10-Nov-2015,1511-00121,0.00,55.44,R,A T Traynor,No,
Http://opendatacommunities.org/id/metropolitan-district-council/leeds,Leeds City Council,30/11/2015,Environment & Housing,Parks and Countryside,Supplies and Services,Food & Drink,231,10-Nov-2015,1511-00122,0.00,55.44,R,A T Traynor,No,
Http://opendatacommunities.org/id/metropolitan-district-council/leeds,Leeds City Council,30/11/2015,Environment & Housing,Parks and Countryside,Supplies and Services,Food & Drink,231,10-Nov-2015,1511-00123,0.00,48.50,R,A T Traynor,No,
Http://opendatacommunities.org/id/metropolitan-district-council/leeds,Leeds City Council,30/11/2015,Environment & Housing,Parks and Countryside,Supplies and Services,Food & Drink,231,10-Nov-2015,1511-00124,0.00,87.14,R,A T Traynor,No,
Http://opendatacommunities.org/id/metropolitan-district-council/leeds,Leeds City Council,30/11/2015,Environment & Housing,Parks and Countryside,Supplies and Services,Food & Drink,231,10-Nov-2015,1511-00125,0.00,46.82,R,A T Traynor,No,
Http://opendatacommunities.org/id/metropolitan-district-council/leeds,Leeds City Council,30/11/2015,Environment & Housing,Parks and Countryside,Supplies and Services,Food & Drink,231,10-Nov-2015,1511-00126,0.00,58.58,R,A T Traynor,No,
Http://opendatacommunities.org/id/metropolitan-district-council/leeds,Leeds City Council,30/11/2015,Environment & Housing,Parks and Countryside,Supplies and Services,Food & Drink,231,10-Nov-2015,1511-00127,0.00,41.78,R,A T Traynor,No,
Http://opendatacommunities.org/id/metropolitan-district-council/leeds,Leeds City Council,30/11/2015,Environment & Housing,Parks and Countryside,Supplies and Services,Food & Drink,231,10-Nov-2015,1511-00128,0.00,55.22,R,A T Traynor,No,
Http://opendatacommunities.org/id/metropolitan-district-council/leeds,Leeds City Council,30/11/2015,Environment & Housing,Parks and Countryside,Supplies and Services,Food & Drink,231,10-Nov-2015,1511-00129,0.00,43.68,R,A T Traynor,No,
Http://opendatacommunities.org/id/metropolitan-district-council/leeds,Leeds City Council,30/11/2015,Environment & Housing,Parks and Countryside,Supplies and Services,Food & Drink,231,10-Nov-2015,1511-00130,0.00,102.26,R,A T Traynor,No,
Http://opendatacommunities.org/id/metropolitan-district-council/leeds,Leeds City Council,30/11/2015,Environment & Housing,Parks and Countryside,Supplies and Services,Food & Drink,231,10-Nov-2015,1511-00131,0.00,87.14,R,A T Traynor,No,
Http://opendatacommunities.org/id/metropolitan-district-council/leeds,Leeds City Council,30/11/2015,Environment & Housing,Parks and Countryside,Supplies and Services,Food & Drink,231,10-Nov-2015,1511-00132,0.00,91.96,R,A T Traynor,No,
Http://opendatacommunities.org/id/metropolitan-district-council/leeds,Leeds City Council,30/11/2015,Environment & Housing,Parks and Countryside,Supplies and Services,Food & Drink,231,10-Nov-2015,1511-00133,0.00,56.90,R,A T Traynor,No,
Http://opendatacommunities.org/id/metropolitan-district-council/leeds,Leeds City Council,30/11/2015,Environment & Housing,Parks and Countryside,Supplies and Services,Food & Drink,231,10-Nov-2015,1511-00134,0.00,60.26,R,A T Traynor,No,
Http://opendatacommunities.org/id/metropolitan-district-council/leeds,Leeds City Council,30/11/2015,Environment & Housing,Parks and Countryside,Supplies and Services,Food & Drink,231,10-Nov-2015,1511-00135,0.00,67.20,R,A T Traynor,No,
Http://opendatacommunities.org/id/metropolitan-district-council/leeds,Leeds City Council,30/11/2015,Environment & Housing,Parks and Countryside,Supplies and Services,Food & Drink,231,10-Nov-2015,1511-00136,0.00,58.80,R,A T Traynor,No,
Http://opendatacommunities.org/id/metropolitan-district-council/leeds,Leeds City Council,30/11/2015,Environment & Housing,Parks and Countryside,Supplies and Services,Food & Drink,231,10-Nov-2015,1511-00137,0.00,98.90,R,A T Traynor,No,
Http://opendatacommunities.org/id/metropolitan-district-council/leeds,Leeds City Council,30/11/2015,Environment & Housing,Parks and Countryside,Supplies and Services,Food & Drink,231,10-Nov-2015,1511-00138,0.00,85.46,R,A T Traynor,No,
Http://opendatacommunities.org/id/metropolitan-district-council/leeds,Leeds City Council,30/11/2015,Environment & Housing,Parks and Countryside,Supplies and Services,Food & Drink,231,10-Nov-2015,1511-00139,0.00,103.72,R,A T Traynor,No,
Http://opendatacommunities.org/id/metropolitan-district-council/leeds,Leeds City Council,30/11/2015,Environment & Housing,Parks and Countryside,Supplies and Services,Food & Drink,231,10-Nov-2015,1511-00140,0.00,83.56,R,A T Traynor,No,
Http://opendatacommunities.org/id/metropolitan-district-council/leeds,Leeds City Council,30/11/2015,Environment & Housing,Parks and Countryside,Supplies and Services,Food & Drink,231,10-Nov-2015,1511-00141,0.00,70.34,R,A T Traynor,No,
Http://opendatacommunities.org/id/metropolitan-district-council/leeds,Leeds City Council,30/11/2015,Environment & Housing,Parks and Countryside,Supplies and Services,Food & Drink,231,10-Nov-2015,1511-00142,0.00,95.32,R,A T Traynor,No,
Http://opendatacommunities.org/id/metropolitan-district-council/leeds,Leeds City Council,30/11/2015,City Development,Libraries  Arts & Heritage,Supplies and Services,Other Hired And Contracted Services,265,12-Nov-2015,1511-00143,0.00,767.35,R,A To V Ltd,No,
Http://opendatacommunities.org/id/metropolitan-district-council/leeds,Leeds City Council,30/11/2015,City Development,Libraries  Arts & Heritage,Supplies and Services,Other Hired And Contracted Services,265,13-Nov-2015,1511-00144,0.00,135.00,R,A To V Ltd,No,
Http://opendatacommunities.org/id/metropolitan-district-council/leeds,Leeds City Council,30/11/2015,Central & Corporate,Commercial Services Trading Services,Supplies and Services,Other Hired And Contracted Services,265,23-Nov-2015,1511-00145,0.00,5212.00,R,A1 Bridge Flue Systems,No,
Http://opendatacommunities.org/id/metropolitan-district-council/leeds,Leeds City Council,30/11/2015,Central & Corporate,Democratic Services ,Supplies and Services,Office Furniture & Equipment,201,26-Oct-2015,1511-00146,0.00,102.74,R,A2b Office Technol,Yes,
Http://opendatacommunities.org/id/metropolitan-district-council/leeds,Leeds City Council,30/11/2015,City Development,Planning & Sustainable Development,Income,Planning Fees,939,12-Nov-2015,1511-00147,0.00,98.00,R,Aa Architectural Services,No,
Http://opendatacommunities.org/id/metropolitan-district-council/leeds,Leeds City Council,30/11/2015,Citizens and Communities,Elections  Licensing and Registration,Income,Admissions  Booking Fees & Ticket Sales,933,12-Nov-2015,1511-00148,0.00,40.00,R,REDACTED PERSONAL DATA,No,
Http://opendatacommunities.org/id/metropolitan-district-council/leeds,Leeds City Council as Accountable Body,30/11/2015,Social Services Pooled Budgets,Leeds Community Equip Store Pooled Budgt,Supplies and Services,Other Equipment,203,20-Nov-2015,1511-00149,0.00,2044.00,R,Aat (Gb) Ltd,No,
Http://opendatacommunities.org/id/metropolitan-district-council/leeds,Leeds City Council,30/11/2015,Central & Corporate,Finance,Transport,Public Transport Expenses,310,06-Nov-2015,1511-00150,0.00,396.00,R,Ab Cars (Garforth) Ltd,No,
Http://opendatacommunities.org/id/metropolitan-district-council/leeds,Leeds City Council,30/11/2015,Childrens Services,Safeguarding Targeted & Specialist,Support Services,Legal Disbursements,411,04-Nov-2015,1511-00151,0.00,37.63,R,Abacus Express Limited,No,
Http://opendatacommunities.org/id/metropolitan-district-council/leeds,Leeds City Council,30/11/2015,Childrens Services,Safeguarding Targeted & Specialist,Support Services,Legal Disbursements,411,09-Nov-2015,1511-00152,0.00,16.13,R,Abacus Express Limited,No,
Http://opendatacommunities.org/id/metropolitan-district-council/leeds,Leeds City Council,30/11/2015,Childrens Services,Safeguarding Targeted & Specialist,Support Services,Legal Disbursements,411,09-Nov-2015,1511-00153,0.00,16.13,R,Abacus Express Limited,No,
Http://opendatacommunities.org/id/metropolitan-district-council/leeds,Leeds City Council,30/11/2015,City Development,Highways,Supplies and Services,Postages,212,11-Nov-2015,1511-00154,0.00,14.51,R,Abacus Express Limited,No,
Http://opendatacommunities.org/id/metropolitan-district-council/leeds,Leeds City Council,30/11/2015,Environment & Housing,Strategic Housing Support,Supplies and Services,Other Hired And Contracted Services,265,04-Nov-2015,1511-00155,0.00,608.66,R,Abaris Properties,No,
Http://opendatacommunities.org/id/metropolitan-district-council/leeds,Leeds City Council,30/11/2015,Citizens and Communities,Communities,Premises,Furniture And Fittings,195,20-Nov-2015,1511-00156,0.00,1000.49,R,Abaseen Super Store Uk Ltd,No,
Http://opendatacommunities.org/id/metropolitan-district-council/leeds,Leeds City Council,30/11/2015,Citizens And Communities,Communities ,Supplies and Services,Bedding & Linen,222,03-Oct-2015,1511-00157,0.00,82.47,R,Abaseen Superstore,Yes,
Http://opendatacommunities.org/id/metropolitan-district-council/leeds,Leeds City Council,30/11/2015,Citizens And Communities,Communities ,Supplies and Services,Bedding & Linen,222,07-Oct-2015,1511-00158,0.00,198.33,R,Abaseen Superstore,Yes,
Http://opendatacommunities.org/id/metropolitan-district-council/leeds,Leeds City Council,30/11/2015,Citizens And Communities,Communities ,Supplies and Services,Bedding & Linen,222,08-Oct-2015,1511-00159,0.00,19.97,R,Abaseen Superstore,Yes,
Http://opendatacommunities.org/id/metropolitan-district-council/leeds,Leeds City Council,30/11/2015,City Development,Libraries  Arts & Heritage ,Supplies and Services,Food & Drink,231,23-Oct-2015,1511-00160,0.00,79.17,R,Abbey House Museum Caf,Yes,
Http://opendatacommunities.org/id/metropolitan-district-council/leeds,Leeds City Council,30/11/2015,Childrens Services,Safeguarding Targeted & Specialist ,Third Party Payments,Contact,548,28-Oct-2015,1511-00161,0.00,9.65,R,Abbey House Museum Caf,Yes,
Http://opendatacommunities.org/id/metropolitan-district-council/leeds,Leeds City Council,30/11/2015,Environment & Housing,Environmental Action (South),Supplies and Services,Other Hired And Contracted Services,265,06-Nov-2015,1511-00162,0.00,41.83,R,Abbey House Veterinary Hospital,No,
Http://opendatacommunities.org/id/metropolitan-district-council/leeds,Leeds City Council,30/11/2015,Environment & Housing,Environmental Action (South),Supplies and Services,Other Hired And Contracted Services,265,06-Nov-2015,1511-00163,0.00,77.96,R,Abbey House Veterinary Hospital,No,
Http://opendatacommunities.org/id/metropolitan-district-council/leeds,Leeds City Council,30/11/2015,City Development,Libraries  Arts & Heritage,Supplies and Services,Office Furniture & Equipment,201,06-Nov-2015,1511-00164,0.00,3080.00,R,Aberfield Communications Limited,No,
Http://opendatacommunities.org/id/metropolitan-district-council/leeds,Leeds City Council,30/11/2015,City Development,Economic Development,Supplies and Services,Publication And Promotion,267,20-Nov-2015,1511-00165,0.00,1500.00,R,Aberfield Communications Limited,No,
Http://opendatacommunities.org/id/metropolitan-district-council/leeds,Leeds City Council,30/11/2015,Adult Social Care,Services For Older People - 65 And Over,Third Party Payments,Nursing Home,570,18-Nov-2015,1511-00166,0.00,20389.16,R,Aberford Hall,No,
Http://opendatacommunities.org/id/metropolitan-district-council/leeds,Leeds City Council,30/11/2015,Adult Social Care,Services For Older People - 65 And Over,Third Party Payments,Nursing Care Dementia,574,18-Nov-2015,1511-00167,0.00,1856.00,R,Aberford Hall,No,
Http://opendatacommunities.org/id/metropolitan-district-council/leeds,Leeds City Council,30/11/2015,Adult Social Care,Services For Older People - 65 And Over,Third Party Payments,Residential,580,18-Nov-2015,1511-00168,0.00,6126.72,R,Aberford Hall,No,
Http://opendatacommunities.org/id/metropolitan-district-council/leeds,Leeds City Council,30/11/2015,Central & Corporate,Commercial Services Trading Services,Supplies and Services,Operational Materials,205,13-Nov-2015,1511-00169,0.00,225.00,R,Abi Garage Doors Ltd,No,
Http://opendatacommunities.org/id/metropolitan-district-council/leeds,Leeds City Council,30/11/2015,Central & Corporate,Commercial Services Trading Services,Supplies and Services,Operational Materials,205,13-Nov-2015,1511-00170,0.00,32.00,R,Abi Garage Doors Ltd,No,
Http://opendatacommunities.org/id/metropolitan-district-council/leeds,Leeds City Council,30/11/2015,Central & Corporate,Commercial Services Trading Services,Supplies and Services,Operational Materials,205,13-Nov-2015,1511-00171,0.00,225.00,R,Abi Garage Doors Ltd,No,
Http://opendatacommunities.org/id/metropolitan-district-council/leeds,Leeds City Council,30/11/2015,Central & Corporate,Commercial Services Trading Services,Supplies and Services,Operational Materials,205,16-Nov-2015,1511-00172,0.00,450.00,R,Abi Garage Doors Ltd,No,
Http://opendatacommunities.org/id/metropolitan-district-council/leeds,Leeds City Council,30/11/2015,Central & Corporate,Commercial Services Trading Services,Supplies and Services,Operational Materials,205,16-Nov-2015,1511-00173,0.00,450.00,R,Abi Garage Doors Ltd,No,
Http://opendatacommunities.org/id/metropolitan-district-council/leeds,Leeds City Council,30/11/2015,Central & Corporate,Commercial Services Trading Services,Supplies and Services,Operational Materials,205,18-Nov-2015,1511-00174,0.00,225.00,R,Abi Garage Doors Ltd,No,
Http://opendatacommunities.org/id/metropolitan-district-council/leeds,Leeds City Council,30/11/2015,Central & Corporate,Commercial Services Trading Services,Supplies and Services,Operational Materials,205,18-Nov-2015,1511-00175,0.00,225.00,R,Abi Garage Doors Ltd,No,
Http://opendatacommunities.org/id/metropolitan-district-council/leeds,Leeds City Council,30/11/2015,Central & Corporate,Commercial Services Trading Services,Supplies and Services,Operational Materials,205,20-Nov-2015,1511-00176,0.00,33.33,R,Abi Garage Doors Ltd,No,
Http://opendatacommunities.org/id/metropolitan-district-council/leeds,Leeds City Council,30/11/2015,Central & Corporate,Commercial Services Trading Services,Supplies and Services,Operational Materials,205,27-Nov-2015,1511-00177,0.00,225.00,R,Abi Garage Doors Ltd,No,
Http://opendatacommunities.org/id/metropolitan-district-council/leeds,Leeds City Council,30/11/2015,Citizens and Communities,Elections  Licensing and Registration,Income,Admissions  Booking Fees & Ticket Sales,933,12-Nov-2015,1511-00178,0.00,30.00,R,Abid Hussain,No,
Http://opendatacommunities.org/id/metropolitan-district-council/leeds,Leeds City Council,30/11/2015,City Development,Libraries  Arts & Heritage ,Supplies and Services,Operational Materials,205,08-Oct-2015,1511-00179,0.00,190.70,R,Absoluteproduct.Co,Yes,
Http://opendatacommunities.org/id/metropolitan-district-council/leeds,Leeds City Council,30/11/2015,Childrens Services,Safeguarding Targeted & Specialist,Employees,Agency Staff,8,03-Nov-2015,1511-00180,0.00,3484.00,R,Academic Appointments Ltd,No,
Http://opendatacommunities.org/id/metropolitan-district-council/leeds,Leeds City Council,30/11/2015,Childrens Services,Learning Skills & Universal,Third Party Payments,Services Rendered By Other Organisations,511,03-Nov-2015,1511-00181,0.00,18898.17,R,Academic Appointments Ltd,No,
Http://opendatacommunities.org/id/metropolitan-district-council/leeds,Leeds City Council,30/11/2015,Childrens Services,Safeguarding Targeted & Specialist,Employees,Agency Staff,8,05-Nov-2015,1511-00182,0.00,3256.26,R,Academic Appointments Ltd,No,
Http://opendatacommunities.org/id/metropolitan-district-council/leeds,Leeds City Council,30/11/2015,Childrens Services,Safeguarding Targeted & Specialist,Employees,Agency Staff,8,12-Nov-2015,1511-00183,0.00,2554.95,R,Academic Appointments Ltd,No,
Http://opendatacommunities.org/id/metropolitan-district-council/leeds,Leeds City Council,30/11/2015,Childrens Services,Safeguarding Targeted & Specialist,Employees,Agency Staff,8,20-Nov-2015,1511-00184,0.00,3334.95,R,Academic Appointments Ltd,No,
Http://opendatacommunities.org/id/metropolitan-district-council/leeds,Leeds City Council,30/11/2015,Central & Corporate,Technology,Employees,Agency Staff,8,24-Nov-2015,1511-00185,0.00,2550.00,R,Access Computer Consulting Plc,No,
Http://opendatacommunities.org/id/metropolitan-district-council/leeds,Leeds City Council,30/11/2015,Environment & Housing,Community Safety,Supplies and Services,Other Hired And Contracted Services,265,30-Nov-2015,1511-00186,0.00,1350.71,R,Access Hire Nationwide Ltd,No,
Http://opendatacommunities.org/id/metropolitan-district-council/leeds,Leeds City Council,30/11/2015,Strategic Landlord,Property and Contracts,Supplies and Services,Operational Materials,205,04-Nov-2015,1511-00187,0.00,18.00,R,Access Locksmiths (Leeds) Limited,No,
Http://opendatacommunities.org/id/metropolitan-district-council/leeds,Leeds City Council,30/11/2015,Strategic Landlord,Housing Management,Premises,Fixtures & Fittings,131,04-Nov-2015,1511-00188,0.00,3.50,R,Access Locksmiths (Leeds) Limited,No,
Http://opendatacommunities.org/id/metropolitan-district-council/leeds,Leeds City Council,30/11/2015,Central & Corporate,Commercial Services Trading Services,Supplies and Services,Operational Materials,205,06-Nov-2015,1511-00189,0.00,48.88,R,Access Locksmiths (Leeds) Limited,No,
Http://opendatacommunities.org/id/metropolitan-district-council/leeds,Leeds City Council,30/11/2015,Central & Corporate,Commercial Services Trading Services,Supplies and Services,Operational Materials,205,06-Nov-2015,1511-00190,0.00,13.73,R,Access Locksmiths (Leeds) Limited,No,
Http://opendatacommunities.org/id/metropolitan-district-council/leeds,Leeds City Council,30/11/2015,Central & Corporate,Commercial Services Trading Services,Supplies and Services,Operational Materials,205,06-Nov-2015,1511-00191,0.00,15.16,R,Access Locksmiths (Leeds) Limited,No,
Http://opendatacommunities.org/id/metropolitan-district-council/leeds,Leeds City Council,30/11/2015,Central & Corporate,Commercial Services Trading Services,Supplies and Services,Operational Materials,205,06-Nov-2015,1511-00192,0.00,30.32,R,Access Locksmiths (Leeds) Limited,No,
Http://opendatacommunities.org/id/metropolitan-district-council/leeds,Leeds City Council,30/11/2015,Civic Enterprise Leeds,Commercial Services,Supplies and Services,Operational Materials,205,10-Nov-2015,1511-00193,0.00,37.00,R,Access Locksmiths (Leeds) Limited,No,
Http://opendatacommunities.org/id/metropolitan-district-council/leeds,Leeds City Council,30/11/2015,Civic Enterprise Leeds,Commercial Services,Supplies and Services,Operational Materials,205,10-Nov-2015,1511-00194,0.00,145.00,R,Access Locksmiths (Leeds) Limited,No,
Http://opendatacommunities.org/id/metropolitan-district-council/leeds,Leeds City Council,30/11/2015,Strategic Landlord,Property and Contracts,Premises,HRA Responsive Repairs,106,13-Nov-2015,1511-00195,0.00,603.70,R,Access Locksmiths (Leeds) Limited,No,
Http://opendatacommunities.org/id/metropolitan-district-council/leeds,Leeds City Council,30/11/2015,Strategic Landlord,Property and Contracts,Supplies and Services,Operational Materials,205,13-Nov-2015,1511-00196,0.00,92.15,R,Access Locksmiths (Leeds) Limited,No,
Http://opendatacommunities.org/id/metropolitan-district-council/leeds,Leeds City Council,30/11/2015,Central & Corporate,Commercial Services Trading Services,Supplies and Services,Operational Materials,205,13-Nov-2015,1511-00197,0.00,9.00,R,Access Locksmiths (Leeds) Limited,No,
Http://opendatacommunities.org/id/metropolitan-district-council/leeds,Leeds City Council,30/11/2015,Central & Corporate,Commercial Services Trading Services,Supplies and Services,Operational Materials,205,13-Nov-2015,1511-00198,0.00,4.50,R,Access Locksmiths (Leeds) Limited,No,
Http://opendatacommunities.org/id/metropolitan-district-council/leeds,Leeds City Council,30/11/2015,Central & Corporate,Commercial Services Trading Services,Supplies and Services,Operational Materials,205,13-Nov-2015,1511-00199,0.00,37.53,R,Access Locksmiths (Leeds) Limited,No,
Http://opendatacommunities.org/id/metropolitan-district-council/leeds,Leeds City Council,30/11/2015,Strategic Landlord,Housing Management,Premises,General Maintenance,104,19-Nov-2015,1511-00200,0.00,103.70,R,Access Locksmiths (Leeds) Limited,No,
Http://opendatacommunities.org/id/metropolitan-district-council/leeds,Leeds City Council,30/11/2015,Strategic Landlord,Property and Contracts,Supplies and Services,Operational Materials,205,20-Nov-2015,1511-00201,0.00,30.00,R,Access Locksmiths (Leeds) Limited,No,
Http://opendatacommunities.org/id/metropolitan-district-council/leeds,Leeds City Council,30/11/2015,Strategic Landlord,Property and Contracts,Premises,General Maintenance,104,26-Nov-2015,1511-00202,0.00,75.19,R,Access Locksmiths (Leeds) Limited,No,
Http://opendatacommunities.org/id/metropolitan-district-council/leeds,Leeds City Council,30/11/2015,Strategic Landlord,Housing Management,Supplies and Services,Operational Furniture And Equipment,203,27-Nov-2015,1511-00203,0.00,11.00,R,Access Locksmiths (Leeds) Limited,No,
Http://opendatacommunities.org/id/metropolitan-district-council/leeds,Leeds City Council,30/11/2015,Strategic Landlord,Property and Contracts,Premises,General Maintenance,104,27-Nov-2015,1511-00204,0.00,12.00,R,Access Locksmiths (Leeds) Limited,No,
Http://opendatacommunities.org/id/metropolitan-district-council/leeds,Leeds City Council,30/11/2015,Strategic Landlord,Property and Contracts,Supplies and Services,Operational Materials,205,27-Nov-2015,1511-00205,0.00,28.60,R,Access Locksmiths (Leeds) Limited,No,
Http://opendatacommunities.org/id/metropolitan-district-council/leeds,Leeds City Council,30/11/2015,Strategic Landlord,Housing Management,Supplies and Services,Operational Materials,205,27-Nov-2015,1511-00206,0.00,5.00,R,Access Locksmiths (Leeds) Limited,No,
Http://opendatacommunities.org/id/metropolitan-district-council/leeds,Leeds City Council,30/11/2015,Strategic Landlord,Housing Management,Premises,General Maintenance,104,27-Nov-2015,1511-00207,0.00,35.00,R,Access Locksmiths (Leeds) Limited,No,
Http://opendatacommunities.org/id/metropolitan-district-council/leeds,Leeds City Council,30/11/2015,Central & Corporate,Commercial Services Trading Services,Supplies and Services,Operational Materials,205,27-Nov-2015,1511-00208,0.00,43.12,R,Access Locksmiths (Leeds) Limited,No,
Http://opendatacommunities.org/id/metropolitan-district-council/leeds,Leeds City Council,30/11/2015,Central & Corporate,Commercial Services Trading Services,Supplies and Services,Operational Materials,205,27-Nov-2015,1511-00209,0.00,7.11,R,Access Locksmiths (Leeds) Limited,No,
Http://opendatacommunities.org/id/metropolitan-district-council/leeds,Leeds City Council,30/11/2015,Central & Corporate,Commercial Services Trading Services,Supplies and Services,Operational Materials,205,27-Nov-2015,1511-00210,0.00,16.10,R,Access Locksmiths (Leeds) Limited,No,
Http://opendatacommunities.org/id/metropolitan-district-council/leeds,Leeds City Council,30/11/2015,City Development,Libraries  Arts & Heritage,Supplies and Services,Bought In Professional Services,277,09-Nov-2015,1511-00211,0.00,6000.00,R,Access Moving Image Ltd,No,
Http://opendatacommunities.org/id/metropolitan-district-council/leeds,Leeds City Council,30/11/2015,Central & Corporate,Commercial Services Trading Services,Supplies and Services,Other Hired And Contracted Services,265,04-Nov-2015,1511-00212,0.00,85.00,R,Access Opening Systems Limited,No,
Http://opendatacommunities.org/id/metropolitan-district-council/leeds,Leeds City Council,30/11/2015,Central & Corporate,Commercial Services Trading Services,Supplies and Services,Other Hired And Contracted Services,265,06-Nov-2015,1511-00213,0.00,85.00,R,Access Opening Systems Limited,No,
Http://opendatacommunities.org/id/metropolitan-district-council/leeds,Leeds City Council,30/11/2015,Central & Corporate,Commercial Services Trading Services,Supplies and Services,Other Hired And Contracted Services,265,06-Nov-2015,1511-00214,0.00,110.00,R,Access Opening Systems Limited,No,
Http://opendatacommunities.org/id/metropolitan-district-council/leeds,Leeds City Council,30/11/2015,Central & Corporate,Commercial Services Trading Services,Supplies and Services,Operational Materials,205,06-Nov-2015,1511-00215,0.00,181.00,R,Access Opening Systems Limited,No,
Http://opendatacommunities.org/id/metropolitan-district-council/leeds,Leeds City Council,30/11/2015,Central & Corporate,Commercial Services Trading Services,Supplies and Services,Operational Materials,205,06-Nov-2015,1511-00216,0.00,80.00,R,Access Opening Systems Limited,No,
Http://opendatacommunities.org/id/metropolitan-district-council/leeds,Leeds City Council,30/11/2015,Central & Corporate,Commercial Services Trading Services,Supplies and Services,Other Hired And Contracted Services,265,11-Nov-2015,1511-00217,0.00,234.00,R,Access Opening Systems Limited,No,
Http://opendatacommunities.org/id/metropolitan-district-council/leeds,Leeds City Council,30/11/2015,Central & Corporate,Commercial Services Trading Services,Supplies and Services,Other Hired And Contracted Services,265,11-Nov-2015,1511-00218,0.00,85.00,R,Access Opening Systems Limited,No,
Http://opendatacommunities.org/id/metropolitan-district-council/leeds,Leeds City Council,30/11/2015,Central & Corporate,Commercial Services Trading Services,Supplies and Services,Other Hired And Contracted Services,265,11-Nov-2015,1511-00219,0.00,277.55,R,Access Opening Systems Limited,No,
Http://opendatacommunities.org/id/metropolitan-district-council/leeds,Leeds City Council,30/11/2015,Central & Corporate,Commercial Services Trading Services,Supplies and Services,Other Hired And Contracted Services,265,11-Nov-2015,1511-00220,0.00,495.00,R,Access Opening Systems Limited,No,
Http://opendatacommunities.org/id/metropolitan-district-council/leeds,Leeds City Council,30/11/2015,Central & Corporate,Commercial Services Trading Services,Supplies and Services,Other Hired And Contracted Services,265,13-Nov-2015,1511-00221,0.00,85.00,R,Access Opening Systems Limited,No,
Http://opendatacommunities.org/id/metropolitan-district-council/leeds,Leeds City Council,30/11/2015,Central & Corporate,Commercial Services Trading Services,Supplies and Services,Other Hired And Contracted Services,265,13-Nov-2015,1511-00222,0.00,85.00,R,Access Opening Systems Limited,No,
Http://opendatacommunities.org/id/metropolitan-district-council/leeds,Leeds City Council,30/11/2015,Central & Corporate,Commercial Services Trading Services,Supplies and Services,Other Hired And Contracted Services,265,13-Nov-2015,1511-00223,0.00,85.00,R,Access Opening Systems Limited,No,
Http://opendatacommunities.org/id/metropolitan-district-council/leeds,Leeds City Council,30/11/2015,Central & Corporate,Commercial Services Trading Services,Supplies and Services,Operational Materials,205,13-Nov-2015,1511-00224,0.00,110.00,R,Access Opening Systems Limited,No,
Http://opendatacommunities.org/id/metropolitan-district-council/leeds,Leeds City Council,30/11/2015,Central & Corporate,Commercial Services Trading Services,Supplies and Services,Other Hired And Contracted Services,265,13-Nov-2015,1511-00225,0.00,85.00,R,Access Opening Systems Limited,No,
Http://opendatacommunities.org/id/metropolitan-district-council/leeds,Leeds City Council,30/11/2015,Central & Corporate,Commercial Services Trading Services,Supplies and Services,Other Hired And Contracted Services,265,13-Nov-2015,1511-00226,0.00,85.00,R,Access Opening Systems Limited,No,
Http://opendatacommunities.org/id/metropolitan-district-council/leeds,Leeds City Council,30/11/2015,Central & Corporate,Commercial Services Trading Services,Supplies and Services,Other Hired And Contracted Services,265,13-Nov-2015,1511-00227,0.00,85.00,R,Access Opening Systems Limited,No,
Http://opendatacommunities.org/id/metropolitan-district-council/leeds,Leeds City Council,30/11/2015,Central & Corporate,Commercial Services Trading Services,Supplies and Services,Operational Materials,205,17-Nov-2015,1511-00228,0.00,135.00,R,Access Opening Systems Limited,No,
Http://opendatacommunities.org/id/metropolitan-district-council/leeds,Leeds City Council,30/11/2015,Central & Corporate,Commercial Services Trading Services,Supplies and Services,Other Hired And Contracted Services,265,17-Nov-2015,1511-00229,0.00,523.12,R,Access Opening Systems Limited,No,
Http://opendatacommunities.org/id/metropolitan-district-council/leeds,Leeds City Council,30/11/2015,Central & Corporate,Commercial Services Trading Services,Supplies and Services,Operational Materials,205,17-Nov-2015,1511-00230,0.00,85.00,R,Access Opening Systems Limited,No,
Http://opendatacommunities.org/id/metropolitan-district-council/leeds,Leeds City Council,30/11/2015,Central & Corporate,Commercial Services Trading Services,Supplies and Services,Other Hired And Contracted Services,265,17-Nov-2015,1511-00231,0.00,85.00,R,Access Opening Systems Limited,No,
Http://opendatacommunities.org/id/metropolitan-district-council/leeds,Leeds City Council,30/11/2015,Central & Corporate,Commercial Services Trading Services,Supplies and Services,Other Hired And Contracted Services,265,17-Nov-2015,1511-00232,0.00,110.00,R,Access Opening Systems Limited,No,
Http://opendatacommunities.org/id/metropolitan-district-council/leeds,Leeds City Council,30/11/2015,Central & Corporate,Commercial Services Trading Services,Supplies and Services,Other Hired And Contracted Services,265,17-Nov-2015,1511-00233,0.00,85.00,R,Access Opening Systems Limited,No,
Http://opendatacommunities.org/id/metropolitan-district-council/leeds,Leeds City Council,30/11/2015,Central & Corporate,Commercial Services Trading Services,Supplies and Services,Other Hired And Contracted Services,265,17-Nov-2015,1511-00234,0.00,85.00,R,Access Opening Systems Limited,No,
Http://opendatacommunities.org/id/metropolitan-district-council/leeds,Leeds City Council,30/11/2015,Central & Corporate,Commercial Services Trading Services,Supplies and Services,Other Hired And Contracted Services,265,17-Nov-2015,1511-00235,0.00,110.00,R,Access Opening Systems Limited,No,
Http://opendatacommunities.org/id/metropolitan-district-council/leeds,Leeds City Council,30/11/2015,Central & Corporate,Commercial Services Trading Services,Supplies and Services,Other Hired And Contracted Services,265,17-Nov-2015,1511-00236,0.00,85.00,R,Access Opening Systems Limited,No,
Http://opendatacommunities.org/id/metropolitan-district-council/leeds,Leeds City Council,30/11/2015,Central & Corporate,Commercial Services Trading Services,Supplies and Services,Other Hired And Contracted Services,265,17-Nov-2015,1511-00237,0.00,85.00,R,Access Opening Systems Limited,No,
Http://opendatacommunities.org/id/metropolitan-district-council/leeds,Leeds City Council,30/11/2015,Central & Corporate,Commercial Services Trading Services,Supplies and Services,Other Hired And Contracted Services,265,17-Nov-2015,1511-00238,0.00,85.00,R,Access Opening Systems Limited,No,
Http://opendatacommunities.org/id/metropolitan-district-council/leeds,Leeds City Council,30/11/2015,Central & Corporate,Commercial Services Trading Services,Supplies and Services,Other Hired And Contracted Services,265,17-Nov-2015,1511-00239,0.00,610.00,R,Access Opening Systems Limited,No,
Http://opendatacommunities.org/id/metropolitan-district-council/leeds,Leeds City Council,30/11/2015,Central & Corporate,Commercial Services Trading Services,Supplies and Services,Other Hired And Contracted Services,265,20-Nov-2015,1511-00240,0.00,85.00,R,Access Opening Systems Limited,No,
Http://opendatacommunities.org/id/metropolitan-district-council/leeds,Leeds City Council,30/11/2015,Central & Corporate,Commercial Services Trading Services,Supplies and Services,Other Hired And Contracted Services,265,20-Nov-2015,1511-00241,0.00,368.21,R,Access Opening Systems Limited,No,
Http://opendatacommunities.org/id/metropolitan-district-council/leeds,Leeds City Council,30/11/2015,Central & Corporate,Commercial Services Trading Services,Supplies and Services,Other Hired And Contracted Services,265,20-Nov-2015,1511-00242,0.00,420.00,R,Access Opening Systems Limited,No,
Http://opendatacommunities.org/id/metropolitan-district-council/leeds,Leeds City Council,30/11/2015,Central & Corporate,Commercial Services Trading Services,Supplies and Services,Other Hired And Contracted Services,265,20-Nov-2015,1511-00243,0.00,85.00,R,Access Opening Systems Limited,No,
Http://opendatacommunities.org/id/metropolitan-district-council/leeds,Leeds City Council,30/11/2015,Central & Corporate,Commercial Services Trading Services,Supplies and Services,Operational Materials,205,20-Nov-2015,1511-00244,0.00,135.00,R,Access Opening Systems Limited,No,
Http://opendatacommunities.org/id/metropolitan-district-council/leeds,Leeds City Council,30/11/2015,Central & Corporate,Commercial Services Trading Services,Supplies and Services,Other Hired And Contracted Services,265,23-Nov-2015,1511-00245,0.00,85.00,R,Access Opening Systems Limited,No,
Http://opendatacommunities.org/id/metropolitan-district-council/leeds,Leeds City Council,30/11/2015,Central & Corporate,Commercial Services Trading Services,Supplies and Services,Other Hired And Contracted Services,265,23-Nov-2015,1511-00246,0.00,85.00,R,Access Opening Systems Limited,No,
Http://opendatacommunities.org/id/metropolitan-district-council/leeds,Leeds City Council,30/11/2015,Central & Corporate,Commercial Services Trading Services,Supplies and Services,Operational Materials,205,23-Nov-2015,1511-00247,0.00,305.50,R,Access Opening Systems Limited,No,
Http://opendatacommunities.org/id/metropolitan-district-council/leeds,Leeds City Council,30/11/2015,Central & Corporate,Commercial Services Trading Services,Supplies and Services,Other Hired And Contracted Services,265,23-Nov-2015,1511-00248,0.00,1440.00,R,Access Opening Systems Limited,No,
Http://opendatacommunities.org/id/metropolitan-district-council/leeds,Leeds City Council,30/11/2015,Central & Corporate,Commercial Services Trading Services,Supplies and Services,Operational Materials,205,23-Nov-2015,1511-00249,0.00,165.00,R,Access Opening Systems Limited,No,
Http://opendatacommunities.org/id/metropolitan-district-council/leeds,Leeds City Council,30/11/2015,Central & Corporate,Commercial Services Trading Services,Supplies and Services,Other Hired And Contracted Services,265,25-Nov-2015,1511-00250,0.00,85.00,R,Access Opening Systems Limited,No,
Http://opendatacommunities.org/id/metropolitan-district-council/leeds,Leeds City Council,30/11/2015,Central & Corporate,Commercial Services Trading Services,Supplies and Services,Other Hired And Contracted Services,265,25-Nov-2015,1511-00251,0.00,85.00,R,Access Opening Systems Limited,No,
Http://opendatacommunities.org/id/metropolitan-district-council/leeds,Leeds City Council,30/11/2015,Central & Corporate,Commercial Services Trading Services,Supplies and Services,Other Hired And Contracted Services,265,25-Nov-2015,1511-00252,0.00,85.00,R,Access Opening Systems Limited,No,
Http://opendatacommunities.org/id/metropolitan-district-council/leeds,Leeds City Council,30/11/2015,Central & Corporate,Commercial Services Trading Services,Supplies and Services,Other Hired And Contracted Services,265,25-Nov-2015,1511-00253,0.00,85.00,R,Access Opening Systems Limited,No,
Http://opendatacommunities.org/id/metropolitan-district-council/leeds,Leeds City Council,30/11/2015,Central & Corporate,Commercial Services Trading Services,Supplies and Services,Other Hired And Contracted Services,265,25-Nov-2015,1511-00254,0.00,85.00,R,Access Opening Systems Limited,No,
Http://opendatacommunities.org/id/metropolitan-district-council/leeds,Leeds City Council,30/11/2015,Central & Corporate,Commercial Services Trading Services,Supplies and Services,Other Hired And Contracted Services,265,25-Nov-2015,1511-00255,0.00,85.00,R,Access Opening Systems Limited,No,
Http://opendatacommunities.org/id/metropolitan-district-council/leeds,Leeds City Council,30/11/2015,Central & Corporate,Commercial Services Trading Services,Supplies and Services,Other Hired And Contracted Services,265,25-Nov-2015,1511-00256,0.00,85.00,R,Access Opening Systems Limited,No,
Http://opendatacommunities.org/id/metropolitan-district-council/leeds,Leeds City Council,30/11/2015,Central & Corporate,Commercial Services Trading Services,Supplies and Services,Other Hired And Contracted Services,265,25-Nov-2015,1511-00257,0.00,110.00,R,Access Opening Systems Limited,No,
Http://opendatacommunities.org/id/metropolitan-district-council/leeds,Leeds City Council,30/11/2015,Central & Corporate,Commercial Services Trading Services,Supplies and Services,Other Hired And Contracted Services,265,27-Nov-2015,1511-00258,0.00,480.00,R,Access Opening Systems Limited,No,
Http://opendatacommunities.org/id/metropolitan-district-council/leeds,Leeds City Council,30/11/2015,Central & Corporate,Commercial Services Trading Services,Supplies and Services,Other Hired And Contracted Services,265,27-Nov-2015,1511-00259,0.00,85.00,R,Access Opening Systems Limited,No,
Http://opendatacommunities.org/id/metropolitan-district-council/leeds,Leeds City Council,30/11/2015,Central & Corporate,Commercial Services Trading Services,Supplies and Services,Other Hired And Contracted Services,265,27-Nov-2015,1511-00260,0.00,85.00,R,Access Opening Systems Limited,No,
Http://opendatacommunities.org/id/metropolitan-district-council/leeds,Leeds City Council,30/11/2015,Central & Corporate,Commercial Services Trading Services,Supplies and Services,Other Hired And Contracted Services,265,27-Nov-2015,1511-00261,0.00,85.00,R,Access Opening Systems Limited,No,
Http://opendatacommunities.org/id/metropolitan-district-council/leeds,Leeds City Council,30/11/2015,Central & Corporate,Commercial Services Trading Services,Supplies and Services,Other Hired And Contracted Services,265,27-Nov-2015,1511-00262,0.00,85.00,R,Access Opening Systems Limited,No,
Http://opendatacommunities.org/id/metropolitan-district-council/leeds,Leeds City Council,30/11/2015,Central & Corporate,Commercial Services Trading Services,Supplies and Services,Other Hired And Contracted Services,265,27-Nov-2015,1511-00263,0.00,85.00,R,Access Opening Systems Limited,No,
Http://opendatacommunities.org/id/metropolitan-district-council/leeds,Leeds City Council,30/11/2015,Central & Corporate,Commercial Services Trading Services,Supplies and Services,Operational Materials,205,27-Nov-2015,1511-00264,0.00,136.38,R,Access Opening Systems Limited,No,
Http://opendatacommunities.org/id/metropolitan-district-council/leeds,Leeds City Council,30/11/2015,Central & Corporate,Commercial Services Trading Services,Supplies and Services,Operational Materials,205,27-Nov-2015,1511-00265,0.00,35.00,R,Access Opening Systems Limited,No,
Http://opendatacommunities.org/id/metropolitan-district-council/leeds,Leeds City Council,30/11/2015,Central & Corporate,Commercial Services Trading Services,Supplies and Services,Operational Materials,205,27-Nov-2015,1511-00266,0.00,135.00,R,Access Opening Systems Limited,No,
Http://opendatacommunities.org/id/metropolitan-district-council/leeds,Leeds City Council,30/11/2015,Central & Corporate,Commercial Services Trading Services,Supplies and Services,Other Hired And Contracted Services,265,27-Nov-2015,1511-00267,0.00,85.00,R,Access Opening Systems Limited,No,
Http://opendatacommunities.org/id/metropolitan-district-council/leeds,Leeds City Council,30/11/2015,Central & Corporate,Commercial Services Trading Services,Supplies and Services,Operational Materials,205,27-Nov-2015,1511-00268,0.00,350.00,R,Access Opening Systems Limited,No,
Http://opendatacommunities.org/id/metropolitan-district-council/leeds,Leeds City Council,30/11/2015,Central & Corporate,Commercial Services Trading Services,Supplies and Services,Other Hired And Contracted Services,265,27-Nov-2015,1511-00269,0.00,85.00,R,Access Opening Systems Limited,No,
Http://opendatacommunities.org/id/metropolitan-district-council/leeds,Leeds City Council,30/11/2015,Central & Corporate,Commercial Services Trading Services,Supplies and Services,Other Hired And Contracted Services,265,27-Nov-2015,1511-00270,0.00,85.00,R,Access Opening Systems Limited,No,
Http://opendatacommunities.org/id/metropolitan-district-council/leeds,Leeds City Council,30/11/2015,Central & Corporate,Commercial Services Trading Services,Supplies and Services,Other Hired And Contracted Services,265,27-Nov-2015,1511-00271,0.00,135.00,R,Access Opening Systems Limited,No,
Http://opendatacommunities.org/id/metropolitan-district-council/leeds,Leeds City Council,30/11/2015,Central & Corporate,Commercial Services Trading Services,Supplies and Services,Other Hired And Contracted Services,265,27-Nov-2015,1511-00272,0.00,85.00,R,Access Opening Systems Limited,No,
Http://opendatacommunities.org/id/metropolitan-district-council/leeds,Leeds City Council,30/11/2015,Central & Corporate,Commercial Services Trading Services,Supplies and Services,Other Hired And Contracted Services,265,27-Nov-2015,1511-00273,0.00,85.00,R,Access Opening Systems Limited,No,
Http://opendatacommunities.org/id/metropolitan-district-council/leeds,Leeds City Council,30/11/2015,Central & Corporate,Commercial Services Trading Services,Supplies and Services,Other Hired And Contracted Services,265,27-Nov-2015,1511-00274,0.00,85.00,R,Access Opening Systems Limited,No,
Http://opendatacommunities.org/id/metropolitan-district-council/leeds,Leeds City Council,30/11/2015,Central & Corporate,Commercial Services Trading Services,Supplies and Services,Other Hired And Contracted Services,265,27-Nov-2015,1511-00275,0.00,110.00,R,Access Opening Systems Limited,No,
Http://opendatacommunities.org/id/metropolitan-district-council/leeds,Leeds City Council,30/11/2015,Central & Corporate,Commercial Services Trading Services,Supplies and Services,Other Hired And Contracted Services,265,27-Nov-2015,1511-00276,0.00,85.00,R,Access Opening Systems Limited,No,
Http://opendatacommunities.org/id/metropolitan-district-council/leeds,Leeds City Council,30/11/2015,Central & Corporate,Commercial Services Trading Services,Supplies and Services,Other Hired And Contracted Services,265,27-Nov-2015,1511-00277,0.00,110.00,R,Access Opening Systems Limited,No,
Http://opendatacommunities.org/id/metropolitan-district-council/leeds,Leeds City Council,30/11/2015,Central & Corporate,Commercial Services Trading Services,Supplies and Services,Other Hired And Contracted Services,265,27-Nov-2015,1511-00278,0.00,85.00,R,Access Opening Systems Limited,No,
Http://opendatacommunities.org/id/metropolitan-district-council/leeds,Leeds City Council,30/11/2015,Central & Corporate,Commercial Services Trading Services,Supplies and Services,Other Hired And Contracted Services,265,27-Nov-2015,1511-00279,0.00,110.00,R,Access Opening Systems Limited,No,
Http://opendatacommunities.org/id/metropolitan-district-council/leeds,Leeds City Council,30/11/2015,Central & Corporate,Commercial Services Trading Services,Supplies and Services,Other Hired And Contracted Services,265,27-Nov-2015,1511-00280,0.00,110.00,R,Access Opening Systems Limited,No,
Http://opendatacommunities.org/id/metropolitan-district-council/leeds,Leeds City Council,30/11/2015,Central & Corporate,Commercial Services Trading Services,Supplies and Services,Other Hired And Contracted Services,265,27-Nov-2015,1511-00281,0.00,85.00,R,Access Opening Systems Limited,No,
Http://opendatacommunities.org/id/metropolitan-district-council/leeds,Leeds City Council,30/11/2015,Central & Corporate,Commercial Services Trading Services,Supplies and Services,Other Hired And Contracted Services,265,27-Nov-2015,1511-00282,0.00,85.00,R,Access Opening Systems Limited,No,
Http://opendatacommunities.org/id/metropolitan-district-council/leeds,Leeds City Council,30/11/2015,Central & Corporate,Commercial Services Trading Services,Supplies and Services,Other Hired And Contracted Services,265,27-Nov-2015,1511-00283,0.00,85.00,R,Access Opening Systems Limited,No,
Http://opendatacommunities.org/id/metropolitan-district-council/leeds,Leeds City Council,30/11/2015,Central & Corporate,Commercial Services Trading Services,Supplies and Services,Other Hired And Contracted Services,265,27-Nov-2015,1511-00284,0.00,25.00,R,Access Opening Systems Limited,No,
Http://opendatacommunities.org/id/metropolitan-district-council/leeds,Leeds City Council,30/11/2015,Central & Corporate,Commercial Services Trading Services,Supplies and Services,Other Hired And Contracted Services,265,27-Nov-2015,1511-00285,0.00,110.00,R,Access Opening Systems Limited,No,
Http://opendatacommunities.org/id/metropolitan-district-council/leeds,Leeds City Council,30/11/2015,Central & Corporate,Commercial Services Trading Services,Supplies and Services,Other Hired And Contracted Services,265,27-Nov-2015,1511-00286,0.00,110.00,R,Access Opening Systems Limited,No,
Http://opendatacommunities.org/id/metropolitan-district-council/leeds,Leeds City Council,30/11/2015,Central & Corporate,Commercial Services Trading Services,Supplies and Services,Other Hired And Contracted Services,265,27-Nov-2015,1511-00287,0.00,110.00,R,Access Opening Systems Limited,No,
Http://opendatacommunities.org/id/metropolitan-district-council/leeds,Leeds City Council,30/11/2015,Central & Corporate,Strategy And Improvement ,Supplies and Services,Office Consumables,210,13-Oct-2015,1511-00288,0.00,151.65,R,Acco UK Ltd,Yes,
Http://opendatacommunities.org/id/metropolitan-district-council/leeds,Leeds City Council,30/11/2015,Insurance,Insurance,Supplies and Services,Insurance Claims,248,12-Nov-2015,1511-00289,0.00,5000.00,R,Accountant General Of The Senior Courts,No,
Http://opendatacommunities.org/id/metropolitan-district-council/leeds,Leeds City Council,30/11/2015,City Development,Recreation,Transport,External Hire -Occasional,304,27-Nov-2015,1511-00290,0.00,124.50,R,Ace Container Services Limited,No,
Http://opendatacommunities.org/id/metropolitan-district-council/leeds,Leeds City Council,30/11/2015,Environment & Housing,Parks and Countryside,Supplies and Services,Operational Materials,205,11-Nov-2015,1511-00291,0.00,10392.90,R,Ace Engineers (Morley) Ltd,No,
Http://opendatacommunities.org/id/metropolitan-district-council/leeds,Leeds City Council,30/11/2015,Childrens Services,Safeguarding Targeted & Specialist ,Supplies and Services,Teaching Materials,202,06-Oct-2015,1511-00292,0.00,475.00,R,Aclasstechn,Yes,
Http://opendatacommunities.org/id/metropolitan-district-council/leeds,Leeds City Council,30/11/2015,Childrens Services,Safeguarding Targeted & Specialist,Third Party Payments,Independent Fostering Agencies,509,16-Nov-2015,1511-00293,0.00,2878.57,R,Acorn Fostering Services,No,
Http://opendatacommunities.org/id/metropolitan-district-council/leeds,Leeds City Council,30/11/2015,Childrens Services,Safeguarding Targeted & Specialist,Third Party Payments,Independent Fostering Agencies,509,27-Nov-2015,1511-00294,0.00,2878.57,R,Acorn Fostering Services,No,
Http://opendatacommunities.org/id/metropolitan-district-council/leeds,Leeds City Council,30/11/2015,Childrens Services,Safeguarding Targeted & Specialist,Third Party Payments,Independent Fostering Agencies,509,27-Nov-2015,1511-00295,0.00,5181.34,R,Acorn House (Fostering Services) Ltd,No,
Http://opendatacommunities.org/id/metropolitan-district-council/leeds,Leeds City Council,30/11/2015,City Development,Libraries  Arts & Heritage,Supplies and Services,Other Hired And Contracted Services,265,19-Nov-2015,1511-00296,0.00,3100.00,R,Acorn Scaffolding (Yorkshire) Ltd,No,
Http://opendatacommunities.org/id/metropolitan-district-council/leeds,Leeds City Council,30/11/2015,Adult Social Care,Services For Adults Under 65 Mental/Dis,Third Party Payments,Residential,580,18-Nov-2015,1511-00297,0.00,1319.20,R,Acre Green,No,
Http://opendatacommunities.org/id/metropolitan-district-council/leeds,Leeds City Council,30/11/2015,Adult Social Care,Services For Older People - 65 And Over,Third Party Payments,Nursing Home,570,18-Nov-2015,1511-00298,0.00,22774.87,R,Acre Green,No,
Http://opendatacommunities.org/id/metropolitan-district-council/leeds,Leeds City Council,30/11/2015,Adult Social Care,Services For Older People - 65 And Over,Third Party Payments,Residential Care Dementia,571,18-Nov-2015,1511-00299,0.00,1346.64,R,Acre Green,No,
Http://opendatacommunities.org/id/metropolitan-district-council/leeds,Leeds City Council,30/11/2015,Adult Social Care,Services For Older People - 65 And Over,Third Party Payments,Nursing Care Dementia,574,18-Nov-2015,1511-00300,0.00,1286.20,R,Acre Green,No,
Http://opendatacommunities.org/id/metropolitan-district-council/leeds,Leeds City Council,30/11/2015,Adult Social Care,Services For Older People - 65 And Over,Third Party Payments,Residential,580,18-Nov-2015,1511-00301,0.00,4306.12,R,Acre Green,No,
Http://opendatacommunities.org/id/metropolitan-district-council/leeds,Leeds City Council,30/11/2015,Adult Social Care,Services For Older People Under 65 P/Dis,Third Party Payments,Nursing Home,570,18-Nov-2015,1511-00302,0.00,6100.24,R,Acre Green,No,
Http://opendatacommunities.org/id/metropolitan-district-council/leeds,Leeds City Council,30/11/2015,Childrens Services,Safeguarding Targeted & Specialist ,Supplies and Services,General Amenity For Clients/Residents,285,14-Oct-2015,1511-00303,0.00,57.37,R,Act*active.Comc-1by01w,Yes,
Http://opendatacommunities.org/id/metropolitan-district-council/leeds,Leeds City Council,30/11/2015,City Development,Highways,Supplies and Services,Operational Materials,205,13-Nov-2015,1511-00304,0.00,571.00,R,Actavo Uk Limited,No,
Http://opendatacommunities.org/id/metropolitan-district-council/leeds,Leeds City Council,30/11/2015,Adult Social Care,Services For Adults Under 65 Mental/Dis,Third Party Payments,Services Provided By Other NHS Bodies,522,06-Nov-2015,1511-00305,0.00,1750.00,R,Action First Recruitment Ltd,No,
Http://opendatacommunities.org/id/metropolitan-district-council/leeds,Leeds City Council,30/11/2015,Adult Social Care,Services For Adults Under 65 Mental/Dis,Third Party Payments,Services Provided By Other NHS Bodies,522,06-Nov-2015,1511-00306,0.00,2450.00,R,Action First Recruitment Ltd,No,
Http://opendatacommunities.org/id/metropolitan-district-council/leeds,Leeds City Council,30/11/2015,Adult Social Care,Services For Adults Under 65 Mental/Dis,Third Party Payments,Services Provided By Other NHS Bodies,522,06-Nov-2015,1511-00307,0.00,2100.00,R,Action First Recruitment Ltd,No,
Http://opendatacommunities.org/id/metropolitan-district-council/leeds,Leeds City Council,30/11/2015,Adult Social Care,Services For Adults Under 65 Mental/Dis,Third Party Payments,Services Provided By Other NHS Bodies,522,13-Nov-2015,1511-00308,0.00,350.00,R,Action First Recruitment Ltd,No,
Http://opendatacommunities.org/id/metropolitan-district-council/leeds,Leeds City Council,30/11/2015,Adult Social Care,Services For Adults Under 65 Mental/Dis,Third Party Payments,Services Provided By Other NHS Bodies,522,13-Nov-2015,1511-00309,0.00,1750.00,R,Action First Recruitment Ltd,No,
Http://opendatacommunities.org/id/metropolitan-district-council/leeds,Leeds City Council,30/11/2015,Adult Social Care,Services For Adults Under 65 Mental/Dis,Third Party Payments,Services Provided By Other NHS Bodies,522,13-Nov-2015,1511-00310,0.00,3500.00,R,Action First Recruitment Ltd,No,
Http://opendatacommunities.org/id/metropolitan-district-council/leeds,Leeds City Council,30/11/2015,Adult Social Care,Services For Adults Under 65 Mental/Dis,Third Party Payments,Services Provided By Other NHS Bodies,522,20-Nov-2015,1511-00311,0.00,700.00,R,Action First Recruitment Ltd,No,
Http://opendatacommunities.org/id/metropolitan-district-council/leeds,Leeds City Council,30/11/2015,Adult Social Care,Services For Adults Under 65 Mental/Dis,Third Party Payments,Services Provided By Other NHS Bodies,522,25-Nov-2015,1511-00312,0.00,350.00,R,Action First Recruitment Ltd,No,
Http://opendatacommunities.org/id/metropolitan-district-council/leeds,Leeds City Council,30/11/2015,Adult Social Care,Services For Adults Under 65 Mental/Dis,Third Party Payments,Services Provided By Other NHS Bodies,522,27-Nov-2015,1511-00313,0.00,1050.00,R,Action First Recruitment Ltd,No,
Http://opendatacommunities.org/id/metropolitan-district-council/leeds,Leeds City Council,30/11/2015,Adult Social Care,Services For Adults Under 65 Mental/Dis,Third Party Payments,Services Provided By Other NHS Bodies,522,27-Nov-2015,1511-00314,0.00,700.00,R,Action First Recruitment Ltd,No,
Http://opendatacommunities.org/id/metropolitan-district-council/leeds,Leeds City Council,30/11/2015,Adult Social Care,Services For Adults Under 65 Mental/Dis,Third Party Payments,Services Provided By Other NHS Bodies,522,27-Nov-2015,1511-00315,0.00,350.00,R,Action First Recruitment Ltd,No,
Http://opendatacommunities.org/id/metropolitan-district-council/leeds,Leeds City Council,30/11/2015,Adult Social Care,Services For Adults Under 65 Mental/Dis,Third Party Payments,Services Provided By Other NHS Bodies,522,27-Nov-2015,1511-00316,0.00,3500.00,R,Action First Recruitment Ltd,No,
Http://opendatacommunities.org/id/metropolitan-district-council/leeds,Leeds City Council,30/11/2015,Adult Social Care,Services For Adults Under 65 Mental/Dis,Third Party Payments,Services Provided By Other NHS Bodies,522,27-Nov-2015,1511-00317,0.00,1750.00,R,Action First Recruitment Ltd,No,
Http://opendatacommunities.org/id/metropolitan-district-council/leeds,Leeds City Council,30/11/2015,Adult Social Care,Services For Adults Under 65 Mental/Dis,Third Party Payments,Services Provided By Other NHS Bodies,522,27-Nov-2015,1511-00318,0.00,1750.00,R,Action First Recruitment Ltd,No,
Http://opendatacommunities.org/id/metropolitan-district-council/leeds,Leeds City Council,30/11/2015,Adult Social Care,Services For Adults Under 65 Mental/Dis,Third Party Payments,Services Provided By Other NHS Bodies,522,27-Nov-2015,1511-00319,0.00,700.00,R,Action First Recruitment Ltd,No,
Http://opendatacommunities.org/id/metropolitan-district-council/leeds,Leeds City Council,30/11/2015,Childrens Services,Safeguarding Targeted & Specialist,Supplies and Services,Conference Meetings,253,27-Nov-2015,1511-00320,0.00,66.67,R,Action For Business Limited,No,
Http://opendatacommunities.org/id/metropolitan-district-council/leeds,Leeds City Council,30/11/2015,Childrens Services,Safeguarding Targeted & Specialist,Third Party Payments,Independent Fostering Agencies,509,02-Nov-2015,1511-00321,0.00,4776.48,R,Action For Children,No,
Http://opendatacommunities.org/id/metropolitan-district-council/leeds,Leeds City Council,30/11/2015,Childrens Services,Safeguarding Targeted & Specialist,Third Party Payments,Independent Fostering Agencies,509,02-Nov-2015,1511-00322,0.00,4774.00,R,Action For Children,No,
Http://opendatacommunities.org/id/metropolitan-district-council/leeds,Leeds City Council,30/11/2015,Childrens Services,Safeguarding Targeted & Specialist,Third Party Payments,Independent Fostering Agencies,509,02-Nov-2015,1511-00323,0.00,5163.67,R,Action For Children,No,
Http://opendatacommunities.org/id/metropolitan-district-council/leeds,Leeds City Council,30/11/2015,Childrens Services,Safeguarding Targeted & Specialist,Third Party Payments,Independent Fostering Agencies,509,12-Nov-2015,1511-00324,0.00,2700.66,R,Action For Children,No,
Http://opendatacommunities.org/id/metropolitan-district-council/leeds,Leeds City Council,30/11/2015,Childrens Services,Safeguarding Targeted & Specialist,Third Party Payments,Independent Fostering Agencies,509,26-Nov-2015,1511-00325,0.00,5163.67,R,Action For Children,No,
Http://opendatacommunities.org/id/metropolitan-district-council/leeds,Leeds City Council,30/11/2015,Childrens Services,Safeguarding Targeted & Specialist,Third Party Payments,Independent Fostering Agencies,509,26-Nov-2015,1511-00326,0.00,4776.48,R,Action For Children,No,
Http://opendatacommunities.org/id/metropolitan-district-council/leeds,Leeds City Council,30/11/2015,Childrens Services,Safeguarding Targeted & Specialist,Third Party Payments,Independent Fostering Agencies,509,26-Nov-2015,1511-00327,0.00,5026.34,R,Action For Children,No,
Http://opendatacommunities.org/id/metropolitan-district-council/leeds,Leeds City Council,30/11/2015,Childrens Services,Safeguarding Targeted & Specialist,Third Party Payments,Independent Fostering Agencies,509,26-Nov-2015,1511-00328,0.00,4776.48,R,Action For Children,No,
Http://opendatacommunities.org/id/metropolitan-district-council/leeds,Leeds City Council,30/11/2015,Childrens Services,Safeguarding Targeted & Specialist,Third Party Payments,Independent Fostering Agencies,509,26-Nov-2015,1511-00329,0.00,2203.17,R,Action For Children,No,
Http://opendatacommunities.org/id/metropolitan-district-council/leeds,Leeds City Council,30/11/2015,Childrens Services,Safeguarding Targeted & Specialist,Third Party Payments,Independent Fostering Agencies,509,27-Nov-2015,1511-00330,0.00,191.00,R,Action For Children,No,
Http://opendatacommunities.org/id/metropolitan-district-council/leeds,Leeds City Council,30/11/2015,Strategic Landlord,Housing Management,Premises,HRA Responsive Repairs,106,06-Nov-2015,1511-00331,0.00,20.00,R,Active Cleaning Solutions Ltd,No,
Http://opendatacommunities.org/id/metropolitan-district-council/leeds,Leeds City Council,30/11/2015,Strategic Landlord,Housing Management,Premises,Cleaning Maintenance & Toiletries,127,13-Nov-2015,1511-00332,0.00,125.00,R,Active Cleaning Solutions Ltd,No,
Http://opendatacommunities.org/id/metropolitan-district-council/leeds,Leeds City Council,30/11/2015,Environment & Housing,Parks and Countryside,Supplies and Services,Resaleable Materials,204,25-Nov-2015,1511-00333,0.00,525.00,R,Acushnet Europe Limited,No,
Http://opendatacommunities.org/id/metropolitan-district-council/leeds,Leeds City Council as Accountable Body,30/11/2015,Social Services Pooled Budgets,Leeds Community Equip Store Pooled Budgt,Supplies and Services,Other Equipment,203,06-Nov-2015,1511-00334,0.00,52.00,R,Acute Sales Limited,No,
Http://opendatacommunities.org/id/metropolitan-district-council/leeds,Leeds City Council,30/11/2015,City Development,Asset Management Services,Capital,Other Costs,7,26-Nov-2015,1511-00335,0.00,3040.00,C,Addleshaw Goddard Llp,No,
Http://opendatacommunities.org/id/metropolitan-district-council/leeds,Leeds City Council,30/11/2015,Environment & Housing,Parks and Countryside,Supplies and Services,Other Hired And Contracted Services,265,02-Nov-2015,1511-00336,0.00,7434.00,R,Addlestone & Partners,No,
Http://opendatacommunities.org/id/metropolitan-district-council/leeds,Leeds City Council,30/11/2015,Childrens Services,Safeguarding Targeted & Specialist,Third Party Payments,Placement Support,550,03-Nov-2015,1511-00337,0.00,48.00,R,Adel Quaker Meeting,No,
Http://opendatacommunities.org/id/metropolitan-district-council/leeds,Leeds City Council,30/11/2015,Adult Social Care,Services For Older People - 65 And Over,Third Party Payments,Nursing Home,570,18-Nov-2015,1511-00338,0.00,1060.84,R,Aden House,No,
Http://opendatacommunities.org/id/metropolitan-district-council/leeds,Leeds City Council,30/11/2015,Adult Social Care,Services For Older People - 65 And Over,Third Party Payments,Residential Care Dementia,571,18-Nov-2015,1511-00339,0.00,1320.68,R,Aden House,No,
Http://opendatacommunities.org/id/metropolitan-district-council/leeds,Leeds City Council,30/11/2015,Central & Corporate,Commercial Services Trading Services,Supplies and Services,Operational Materials,205,11-Nov-2015,1511-00340,0.00,65.48,R,Adi Global,No,
Http://opendatacommunities.org/id/metropolitan-district-council/leeds,Leeds City Council,30/11/2015,Central & Corporate,Commercial Services Trading Services,Supplies and Services,Operational Materials,205,11-Nov-2015,1511-00341,0.00,40.90,R,Adi Global,No,
Http://opendatacommunities.org/id/metropolitan-district-council/leeds,Leeds City Council,30/11/2015,Central & Corporate,Commercial Services Trading Services,Supplies and Services,Operational Materials,205,13-Nov-2015,1511-00342,0.00,911.64,R,Adi Global,No,
Http://opendatacommunities.org/id/metropolitan-district-council/leeds,Leeds City Council,30/11/2015,Central & Corporate,Commercial Services Trading Services,Supplies and Services,Operational Materials,205,16-Nov-2015,1511-00343,0.00,3119.14,R,Adi Global,No,
Http://opendatacommunities.org/id/metropolitan-district-council/leeds,Leeds City Council,30/11/2015,Central & Corporate,Commercial Services Trading Services,Supplies and Services,Operational Materials,205,27-Nov-2015,1511-00344,0.00,678.94,R,Adi Global,No,
Http://opendatacommunities.org/id/metropolitan-district-council/leeds,Leeds City Council,30/11/2015,Environment & Housing,Community Safety ,Supplies and Services,Other Hired And Contracted Services,265,13-Oct-2015,1511-00345,0.00,32.00,R,Adi-Gardiner Ltd,Yes,
Http://opendatacommunities.org/id/metropolitan-district-council/leeds,Leeds City Council,30/11/2015,City Development,Libraries  Arts & Heritage,Supplies and Services,Other Hired And Contracted Services,265,06-Nov-2015,1511-00346,0.00,798.50,R,Admas Limited,No,
Http://opendatacommunities.org/id/metropolitan-district-council/leeds,Leeds City Council,30/11/2015,Childrens Services,Safeguarding Targeted & Specialist,Third Party Payments,Independent Fostering Agencies,509,02-Nov-2015,1511-00347,0.00,700.00,R,Adolescent And Childrens Trust,No,
Http://opendatacommunities.org/id/metropolitan-district-council/leeds,Leeds City Council,30/11/2015,Childrens Services,Safeguarding Targeted & Specialist,Third Party Payments,Independent Fostering Agencies,509,02-Nov-2015,1511-00348,0.00,3100.00,R,Adolescent And Childrens Trust,No,
Http://opendatacommunities.org/id/metropolitan-district-council/leeds,Leeds City Council,30/11/2015,Childrens Services,Safeguarding Targeted & Specialist,Third Party Payments,Independent Fostering Agencies,509,02-Nov-2015,1511-00349,0.00,3100.00,R,Adolescent And Childrens Trust,No,
Http://opendatacommunities.org/id/metropolitan-district-council/leeds,Leeds City Council,30/11/2015,Childrens Services,Safeguarding Targeted & Specialist,Third Party Payments,Independent Fostering Agencies,509,02-Nov-2015,1511-00350,0.00,285.00,R,Adolescent And Childrens Trust,No,
Http://opendatacommunities.org/id/metropolitan-district-council/leeds,Leeds City Council,30/11/2015,Childrens Services,Safeguarding Targeted & Specialist,Third Party Payments,Independent Fostering Agencies,509,02-Nov-2015,1511-00351,0.00,3100.00,R,Adolescent And Childrens Trust,No,
Http://opendatacommunities.org/id/metropolitan-district-council/leeds,Leeds City Council,30/11/2015,Childrens Services,Safeguarding Targeted & Specialist,Third Party Payments,Independent Fostering Agencies,509,02-Nov-2015,1511-00352,0.00,3100.00,R,Adolescent And Childrens Trust,No,
Http://opendatacommunities.org/id/metropolitan-district-council/leeds,Leeds City Council,30/11/2015,Childrens Services,Safeguarding Targeted & Specialist,Third Party Payments,Independent Fostering Agencies,509,02-Nov-2015,1511-00353,0.00,600.00,R,Adolescent And Childrens Trust,No,
Http://opendatacommunities.org/id/metropolitan-district-council/leeds,Leeds City Council,30/11/2015,Childrens Services,Safeguarding Targeted & Specialist,Third Party Payments,Independent Fostering Agencies,509,05-Nov-2015,1511-00354,0.00,300.00,R,Adolescent And Childrens Trust,No,
Http://opendatacommunities.org/id/metropolitan-district-council/leeds,Leeds City Council,30/11/2015,Childrens Services,Safeguarding Targeted & Specialist,Third Party Payments,Independent Fostering Agencies,509,05-Nov-2015,1511-00355,0.00,285.00,R,Adolescent And Childrens Trust,No,
Http://opendatacommunities.org/id/metropolitan-district-council/leeds,Leeds City Council,30/11/2015,Childrens Services,Safeguarding Targeted & Specialist,Third Party Payments,Independent Fostering Agencies,509,05-Nov-2015,1511-00356,0.00,3000.00,R,Adolescent And Childrens Trust,No,
Http://opendatacommunities.org/id/metropolitan-district-council/leeds,Leeds City Council,30/11/2015,Childrens Services,Safeguarding Targeted & Specialist,Third Party Payments,Independent Fostering Agencies,509,05-Nov-2015,1511-00357,0.00,3136.00,R,Adolescent And Childrens Trust,No,
Http://opendatacommunities.org/id/metropolitan-district-council/leeds,Leeds City Council,30/11/2015,Childrens Services,Safeguarding Targeted & Specialist,Third Party Payments,Independent Fostering Agencies,509,05-Nov-2015,1511-00358,0.00,3000.00,R,Adolescent And Childrens Trust,No,
Http://opendatacommunities.org/id/metropolitan-district-council/leeds,Leeds City Council,30/11/2015,Childrens Services,Safeguarding Targeted & Specialist,Third Party Payments,Independent Fostering Agencies,509,05-Nov-2015,1511-00359,0.00,2800.00,R,Adolescent And Childrens Trust,No,
Http://opendatacommunities.org/id/metropolitan-district-council/leeds,Leeds City Council,30/11/2015,Childrens Services,Safeguarding Targeted & Specialist,Third Party Payments,Payments To Voluntary Organisations,561,20-Nov-2015,1511-00360,0.00,1230.00,R,Adoption Uk,No,
Http://opendatacommunities.org/id/metropolitan-district-council/leeds,Leeds City Council as Accountable Body,30/11/2015,Social Services Pooled Budgets,Jcs For People With Learning Disabilitie,Third Party Payments,Residential,580,05-Nov-2015,1511-00361,0.00,2609.36,R,Adrian House,No,
Http://opendatacommunities.org/id/metropolitan-district-council/leeds,Leeds City Council as Accountable Body,30/11/2015,Social Services Pooled Budgets,Jcs For People With Learning Disabilitie,Third Party Payments,Residential,580,19-Nov-2015,1511-00362,0.00,2609.36,R,Adrian House,No,
Http://opendatacommunities.org/id/metropolitan-district-council/leeds,Leeds City Council as Accountable Body,30/11/2015,Social Services Pooled Budgets,Jcs For People With Learning Disabilitie,Third Party Payments,Residential,580,26-Nov-2015,1511-00363,0.00,2609.36,R,Adrian House,No,
Http://opendatacommunities.org/id/metropolitan-district-council/leeds,Leeds City Council,30/11/2015,Civic Enterprise Leeds,Facilities Management ,Supplies and Services,Other Hired And Contracted Services,265,07-Oct-2015,1511-00364,0.00,656.25,R,Adt Cardiff Cc,Yes,
Http://opendatacommunities.org/id/metropolitan-district-council/leeds,Leeds City Council,30/11/2015,Civic Enterprise Leeds,Facilities Management ,Supplies and Services,Other Hired And Contracted Services,265,09-Oct-2015,1511-00365,0.00,1989.08,R,Adt Cardiff Cc,Yes,
Http://opendatacommunities.org/id/metropolitan-district-council/leeds,Leeds City Council,30/11/2015,Strategic Landlord,Housing Management,Premises,Premises Security Services,162,04-Nov-2015,1511-00366,0.00,130.96,R,Adt Fire And Security Plc,No,
Http://opendatacommunities.org/id/metropolitan-district-council/leeds,Leeds City Council,30/11/2015,Civic Enterprise Leeds,Corporate Property Management,Premises,Maintenance Of Buildings,101,05-Nov-2015,1511-00367,0.00,143.42,R,Adt Fire And Security Plc,No,
Http://opendatacommunities.org/id/metropolitan-district-council/leeds,Leeds City Council,30/11/2015,Adult Social Care,Services For Adults Under 65 Learn/Dis,Premises,Premises Security Services,162,19-Nov-2015,1511-00368,0.00,156.00,R,Adt Fire And Security Plc,No,
Http://opendatacommunities.org/id/metropolitan-district-council/leeds,Leeds City Council,30/11/2015,Adult Social Care,Services For Adults Under 65 Learn/Dis,Premises,Premises Security Services,162,19-Nov-2015,1511-00369,0.00,135.00,R,Adt Fire And Security Plc,No,
Http://opendatacommunities.org/id/metropolitan-district-council/leeds,Leeds City Council,30/11/2015,Civic Enterprise Leeds,Corporate Property Management,Premises,Maintenance Of Buildings,101,26-Nov-2015,1511-00370,0.00,517.50,R,Adt Fire And Security Plc,No,
Http://opendatacommunities.org/id/metropolitan-district-council/leeds,Leeds City Council,30/11/2015,Civic Enterprise Leeds,Corporate Property Management,Premises,Maintenance Of Buildings,101,26-Nov-2015,1511-00371,0.00,1752.00,R,Adt Fire And Security Plc,No,
Http://opendatacommunities.org/id/metropolitan-district-council/leeds,Leeds City Council,30/11/2015,Civic Enterprise Leeds,Facilities Management ,Supplies and Services,Other Hired And Contracted Services,265,13-Oct-2015,1511-00372,0.00,39.00,R,Adt Loughton Cc,Yes,
Http://opendatacommunities.org/id/metropolitan-district-council/leeds,Leeds City Council as Accountable Body,30/11/2015,Social Services Pooled Budgets,Jcs For People With Learning Disabilitie,Third Party Payments,Sheltered Accommodation,569,06-Nov-2015,1511-00373,0.00,1332.20,R,Adult Placement Services,No,
Http://opendatacommunities.org/id/metropolitan-district-council/leeds,Leeds City Council as Accountable Body,30/11/2015,Social Services Pooled Budgets,Jcs For People With Learning Disabilitie,Third Party Payments,Sheltered Accommodation,569,06-Nov-2015,1511-00374,0.00,823.81,R,Adult Placement Services,No,
Http://opendatacommunities.org/id/metropolitan-district-council/leeds,Leeds City Council as Accountable Body,30/11/2015,Social Services Pooled Budgets,Jcs For People With Learning Disabilitie,Third Party Payments,Sheltered Accommodation,569,13-Nov-2015,1511-00375,0.00,395.50,R,Adult Placement Services,No,
Http://opendatacommunities.org/id/metropolitan-district-council/leeds,Leeds City Council,30/11/2015,Adult Social Care,Services For Adults Under 65 Mental/Dis,Third Party Payments,Nursing Home,570,18-Nov-2015,1511-00376,0.00,1541.96,R,Adult Supported Living Ltd,No,
Http://opendatacommunities.org/id/metropolitan-district-council/leeds,Leeds City Council,30/11/2015,City Development,Libraries  Arts & Heritage,Supplies and Services,External Audit Fees,261,13-Nov-2015,1511-00377,0.00,85.00,R,Advance Stocks Ltd,No,
Http://opendatacommunities.org/id/metropolitan-district-council/leeds,Leeds City Council,30/11/2015,City Development,Libraries  Arts & Heritage,Supplies and Services,External Audit Fees,261,13-Nov-2015,1511-00378,0.00,85.00,R,Advance Stocks Ltd,No,
Http://opendatacommunities.org/id/metropolitan-district-council/leeds,Leeds City Council,30/11/2015,City Development,Libraries  Arts & Heritage,Supplies and Services,External Audit Fees,261,18-Nov-2015,1511-00379,0.00,85.00,R,Advance Stocks Ltd,No,
Http://opendatacommunities.org/id/metropolitan-district-council/leeds,Leeds City Council,30/11/2015,City Development,Recreation,Supplies and Services,External Audit Fees,261,27-Nov-2015,1511-00380,0.00,235.00,R,Advance Stocks Ltd,No,
Http://opendatacommunities.org/id/metropolitan-district-council/leeds,Leeds City Council,30/11/2015,City Development,Recreation,Supplies and Services,External Audit Fees,261,27-Nov-2015,1511-00381,0.00,85.00,R,Advance Stocks Ltd,No,
Http://opendatacommunities.org/id/metropolitan-district-council/leeds,Leeds City Council,30/11/2015,Childrens Services,Safeguarding Targeted & Specialist,Support Services,Legal Disbursements,411,09-Nov-2015,1511-00382,0.00,636.25,R,Advanced Child Care Assessments Ltd,No,
Http://opendatacommunities.org/id/metropolitan-district-council/leeds,Leeds City Council,30/11/2015,Childrens Services,Safeguarding Targeted & Specialist,Support Services,Legal Disbursements,411,13-Nov-2015,1511-00383,0.00,90.20,R,Advanced Child Care Assessments Ltd,No,
Http://opendatacommunities.org/id/metropolitan-district-council/leeds,Leeds City Council,30/11/2015,Central & Corporate,Commercial Services Trading Services,Supplies and Services,Operational Materials,205,25-Nov-2015,1511-00384,0.00,85.80,R,Advanced Labelling Limited,No,
Http://opendatacommunities.org/id/metropolitan-district-council/leeds,Leeds City Council as Accountable Body,30/11/2015,Social Services Pooled Budgets,Jcs For People With Learning Disabilitie,Third Party Payments,Residential,580,18-Nov-2015,1511-00385,0.00,20248.68,R,Advitam Ltd,No,
Http://opendatacommunities.org/id/metropolitan-district-council/leeds,Leeds City Council as Accountable Body,30/11/2015,Social Services Pooled Budgets,Jcs For People With Learning Disabilitie,Third Party Payments,Day Centre,564,27-Nov-2015,1511-00386,0.00,586.45,R,Advitam Ltd,No,
Http://opendatacommunities.org/id/metropolitan-district-council/leeds,Leeds City Council,30/11/2015,City Development,Recreation,Supplies and Services,Other Hired And Contracted Services,265,12-Nov-2015,1511-00387,0.00,75.00,R,Advocate Uk Young People And Families,No,
Http://opendatacommunities.org/id/metropolitan-district-council/leeds,Leeds City Council,30/11/2015,City Development,Recreation,Supplies and Services,Other Hired And Contracted Services,265,17-Nov-2015,1511-00388,0.00,400.00,R,Advocate Uk Young People And Families,No,
Http://opendatacommunities.org/id/metropolitan-district-council/leeds,Leeds City Council,30/11/2015,Adult Social Care,Services For Older People - 65 And Over,Third Party Payments,Payments To Voluntary Organisations,561,13-Nov-2015,1511-00389,0.00,84422.93,R,Advonet,No,
Http://opendatacommunities.org/id/metropolitan-district-council/leeds,Leeds City Council,30/11/2015,Environment & Housing,Community Safety,Support Services,Legal Disbursements,411,05-Nov-2015,1511-00390,0.00,576.00,R,Aec Acoustic & Engineering Consultants,No,
Http://opendatacommunities.org/id/metropolitan-district-council/leeds,Leeds City Council,30/11/2015,City Development,Economic Development,Capital,Other Costs,7,02-Nov-2015,1511-00391,0.00,6488.00,C,Aecom Limited,No,
Http://opendatacommunities.org/id/metropolitan-district-council/leeds,Leeds City Council,30/11/2015,City Development,Economic Development,Capital,Other Costs,7,13-Nov-2015,1511-00392,0.00,10033.00,C,Aecom Limited,No,
Http://opendatacommunities.org/id/metropolitan-district-council/leeds,Leeds City Council,30/11/2015,Childrens Services,Safeguarding Targeted & Specialist ,Transport,Public Transport Expenses,310,06-Oct-2015,1511-00393,0.00,569.96,R,Aerling 2if5zf Mccull,Yes,
Http://opendatacommunities.org/id/metropolitan-district-council/leeds,Leeds City Council as Accountable Body,30/11/2015,Social Services Pooled Budgets,Jcs For People With Learning Disabilitie,Third Party Payments,Home Care,568,02-Nov-2015,1511-00394,0.00,255.68,R,Affinity Trust,No,
Http://opendatacommunities.org/id/metropolitan-district-council/leeds,Leeds City Council as Accountable Body,30/11/2015,Social Services Pooled Budgets,Jcs For People With Learning Disabilitie,Third Party Payments,Residential,580,02-Nov-2015,1511-00395,0.00,770.98,R,Affinity Trust,No,
Http://opendatacommunities.org/id/metropolitan-district-council/leeds,Leeds City Council as Accountable Body,30/11/2015,Social Services Pooled Budgets,Jcs For People With Learning Disabilitie,Third Party Payments,Day Centre,564,03-Nov-2015,1511-00396,0.00,105.00,R,Affinity Trust,No,
Http://opendatacommunities.org/id/metropolitan-district-council/leeds,Leeds City Council as Accountable Body,30/11/2015,Social Services Pooled Budgets,Jcs For People With Learning Disabilitie,Third Party Payments,Home Care,568,06-Nov-2015,1511-00397,0.00,990.00,R,Affinity Trust,No,
Http://opendatacommunities.org/id/metropolitan-district-council/leeds,Leeds City Council as Accountable Body,30/11/2015,Social Services Pooled Budgets,Jcs For People With Learning Disabilitie,Third Party Payments,Day Centre,564,06-Nov-2015,1511-00398,0.00,1899.81,R,Affinity Trust,No,
Http://opendatacommunities.org/id/metropolitan-district-council/leeds,Leeds City Council as Accountable Body,30/11/2015,Social Services Pooled Budgets,Jcs For People With Learning Disabilitie,Third Party Payments,Home Care,568,06-Nov-2015,1511-00399,0.00,2996.82,R,Affinity Trust,No,
Http://opendatacommunities.org/id/metropolitan-district-council/leeds,Leeds City Council as Accountable Body,30/11/2015,Social Services Pooled Budgets,Jcs For People With Learning Disabilitie,Third Party Payments,Day Centre,564,06-Nov-2015,1511-00400,0.00,1221.52,R,Affinity Trust,No,
Http://opendatacommunities.org/id/metropolitan-district-council/leeds,Leeds City Council as Accountable Body,30/11/2015,Social Services Pooled Budgets,Jcs For People With Learning Disabilitie,Third Party Payments,Home Care,568,06-Nov-2015,1511-00401,0.00,454.95,R,Affinity Trust,No,
Http://opendatacommunities.org/id/metropolitan-district-council/leeds,Leeds City Council as Accountable Body,30/11/2015,Social Services Pooled Budgets,Jcs For People With Learning Disabilitie,Third Party Payments,Day Centre,564,06-Nov-2015,1511-00402,0.00,3597.76,R,Affinity Trust,No,
Http://opendatacommunities.org/id/metropolitan-district-council/leeds,Leeds City Council as Accountable Body,30/11/2015,Social Services Pooled Budgets,Jcs For People With Learning Disabilitie,Third Party Payments,Home Care,568,06-Nov-2015,1511-00403,0.00,1592.20,R,Affinity Trust,No,
Http://opendatacommunities.org/id/metropolitan-district-council/leeds,Leeds City Council as Accountable Body,30/11/2015,Social Services Pooled Budgets,Jcs For People With Learning Disabilitie,Third Party Payments,Home Care,568,06-Nov-2015,1511-00404,0.00,1534.27,R,Affinity Trust,No,
Http://opendatacommunities.org/id/metropolitan-district-council/leeds,Leeds City Council as Accountable Body,30/11/2015,Social Services Pooled Budgets,Jcs For People With Learning Disabilitie,Third Party Payments,Home Care,568,06-Nov-2015,1511-00405,0.00,754.20,R,Affinity Trust,No,
Http://opendatacommunities.org/id/metropolitan-district-council/leeds,Leeds City Council as Accountable Body,30/11/2015,Social Services Pooled Budgets,Jcs For People With Learning Disabilitie,Third Party Payments,Day Centre,564,06-Nov-2015,1511-00406,0.00,964.67,R,Affinity Trust,No,
Http://opendatacommunities.org/id/metropolitan-district-council/leeds,Leeds City Council,30/11/2015,Adult Social Care,Services For Older People Under 65 P/Dis,Third Party Payments,Home Care,568,06-Nov-2015,1511-00407,0.00,526.68,R,Affinity Trust,No,
Http://opendatacommunities.org/id/metropolitan-district-council/leeds,Leeds City Council as Accountable Body,30/11/2015,Social Services Pooled Budgets,Jcs For People With Learning Disabilitie,Third Party Payments,Home Care,568,06-Nov-2015,1511-00408,0.00,1260.00,R,Affinity Trust,No,
Http://opendatacommunities.org/id/metropolitan-district-council/leeds,Leeds City Council as Accountable Body,30/11/2015,Social Services Pooled Budgets,Jcs For People With Learning Disabilitie,Third Party Payments,Home Care,568,06-Nov-2015,1511-00409,0.00,1870.74,R,Affinity Trust,No,
Http://opendatacommunities.org/id/metropolitan-district-council/leeds,Leeds City Council as Accountable Body,30/11/2015,Social Services Pooled Budgets,Jcs For People With Learning Disabilitie,Third Party Payments,Home Care,568,06-Nov-2015,1511-00410,0.00,1005.60,R,Affinity Trust,No,
Http://opendatacommunities.org/id/metropolitan-district-council/leeds,Leeds City Council as Accountable Body,30/11/2015,Social Services Pooled Budgets,Jcs For People With Learning Disabilitie,Third Party Payments,Home Care,568,06-Nov-2015,1511-00411,0.00,360.00,R,Affinity Trust,No,
Http://opendatacommunities.org/id/metropolitan-district-council/leeds,Leeds City Council as Accountable Body,30/11/2015,Social Services Pooled Budgets,Jcs For People With Learning Disabilitie,Third Party Payments,Home Care,568,06-Nov-2015,1511-00412,0.00,787.50,R,Affinity Trust,No,
Http://opendatacommunities.org/id/metropolitan-district-council/leeds,Leeds City Council as Accountable Body,30/11/2015,Social Services Pooled Budgets,Jcs For People With Learning Disabilitie,Third Party Payments,Home Care,568,06-Nov-2015,1511-00413,0.00,1005.60,R,Affinity Trust,No,
Http://opendatacommunities.org/id/metropolitan-district-council/leeds,Leeds City Council as Accountable Body,30/11/2015,Social Services Pooled Budgets,Jcs For People With Learning Disabilitie,Third Party Payments,Day Centre,564,06-Nov-2015,1511-00414,0.00,648.95,R,Affinity Trust,No,
Http://opendatacommunities.org/id/metropolitan-district-council/leeds,Leeds City Council as Accountable Body,30/11/2015,Social Services Pooled Budgets,Jcs For People With Learning Disabilitie,Third Party Payments,Day Centre,564,06-Nov-2015,1511-00415,0.00,2229.08,R,Affinity Trust,No,
Http://opendatacommunities.org/id/metropolitan-district-council/leeds,Leeds City Council as Accountable Body,30/11/2015,Social Services Pooled Budgets,Jcs For People With Learning Disabilitie,Third Party Payments,Home Care,568,06-Nov-2015,1511-00416,0.00,585.00,R,Affinity Trust,No,
Http://opendatacommunities.org/id/metropolitan-district-council/leeds,Leeds City Council as Accountable Body,30/11/2015,Social Services Pooled Budgets,Jcs For People With Learning Disabilitie,Third Party Payments,Home Care,568,06-Nov-2015,1511-00417,0.00,3995.04,R,Affinity Trust,No,
Http://opendatacommunities.org/id/metropolitan-district-council/leeds,Leeds City Council,30/11/2015,Adult Social Care,Services For Older People Under 65 P/Dis,Third Party Payments,Home Care,568,06-Nov-2015,1511-00418,0.00,168.20,R,Affinity Trust,No,
Http://opendatacommunities.org/id/metropolitan-district-council/leeds,Leeds City Council,30/11/2015,Adult Social Care,Services For Older People Under 65 P/Dis,Third Party Payments,Home Care,568,06-Nov-2015,1511-00419,0.00,395.27,R,Affinity Trust,No,
Http://opendatacommunities.org/id/metropolitan-district-council/leeds,Leeds City Council as Accountable Body,30/11/2015,Social Services Pooled Budgets,Jcs For People With Learning Disabilitie,Third Party Payments,Day Centre,564,09-Nov-2015,1511-00420,0.00,720.00,R,Affinity Trust,No,
Http://opendatacommunities.org/id/metropolitan-district-council/leeds,Leeds City Council as Accountable Body,30/11/2015,Social Services Pooled Budgets,Jcs For People With Learning Disabilitie,Third Party Payments,Day Centre,564,09-Nov-2015,1511-00421,0.00,540.00,R,Affinity Trust,No,
Http://opendatacommunities.org/id/metropolitan-district-council/leeds,Leeds City Council as Accountable Body,30/11/2015,Social Services Pooled Budgets,Jcs For People With Learning Disabilitie,Third Party Payments,Day Centre,564,09-Nov-2015,1511-00422,0.00,720.00,R,Affinity Trust,No,
Http://opendatacommunities.org/id/metropolitan-district-council/leeds,Leeds City Council as Accountable Body,30/11/2015,Social Services Pooled Budgets,Jcs For People With Learning Disabilitie,Third Party Payments,Home Care,568,13-Nov-2015,1511-00423,0.00,127.84,R,Affinity Trust,No,
Http://opendatacommunities.org/id/metropolitan-district-council/leeds,Leeds City Council as Accountable Body,30/11/2015,Social Services Pooled Budgets,Jcs For People With Learning Disabilitie,Third Party Payments,Home Care,568,16-Nov-2015,1511-00424,0.00,47.94,R,Affinity Trust,No,
Http://opendatacommunities.org/id/metropolitan-district-council/leeds,Leeds City Council as Accountable Body,30/11/2015,Social Services Pooled Budgets,Jcs For People With Learning Disabilitie,Third Party Payments,Home Care,568,16-Nov-2015,1511-00425,0.00,767.04,R,Affinity Trust,No,
Http://opendatacommunities.org/id/metropolitan-district-council/leeds,Leeds City Council as Accountable Body,30/11/2015,Social Services Pooled Budgets,Jcs For People With Learning Disabilitie,Third Party Payments,Home Care,568,16-Nov-2015,1511-00426,0.00,1260.00,R,Affinity Trust,No,
Http://opendatacommunities.org/id/metropolitan-district-council/leeds,Leeds City Council as Accountable Body,30/11/2015,Social Services Pooled Budgets,Jcs For People With Learning Disabilitie,Third Party Payments,Home Care,568,16-Nov-2015,1511-00427,0.00,982.77,R,Affinity Trust,No,
Http://opendatacommunities.org/id/metropolitan-district-council/leeds,Leeds City Council as Accountable Body,30/11/2015,Social Services Pooled Budgets,Jcs For People With Learning Disabilitie,Third Party Payments,Home Care,568,16-Nov-2015,1511-00428,0.00,799.00,R,Affinity Trust,No,
Http://opendatacommunities.org/id/metropolitan-district-council/leeds,Leeds City Council as Accountable Body,30/11/2015,Social Services Pooled Budgets,Jcs For People With Learning Disabilitie,Third Party Payments,Home Care,568,19-Nov-2015,1511-00429,0.00,1170.00,R,Affinity Trust,No,
Http://opendatacommunities.org/id/metropolitan-district-council/leeds,Leeds City Council as Accountable Body,30/11/2015,Social Services Pooled Budgets,Jcs For People With Learning Disabilitie,Third Party Payments,Home Care,568,19-Nov-2015,1511-00430,0.00,360.00,R,Affinity Trust,No,
Http://opendatacommunities.org/id/metropolitan-district-council/leeds,Leeds City Council as Accountable Body,30/11/2015,Social Services Pooled Budgets,Jcs For People With Learning Disabilitie,Third Party Payments,Home Care,568,19-Nov-2015,1511-00431,0.00,2542.80,R,Affinity Trust,No,
Http://opendatacommunities.org/id/metropolitan-district-council/leeds,Leeds City Council as Accountable Body,30/11/2015,Social Services Pooled Budgets,Jcs For People With Learning Disabilitie,Third Party Payments,Home Care,568,19-Nov-2015,1511-00432,0.00,420.50,R,Affinity Trust,No,
Http://opendatacommunities.org/id/metropolitan-district-council/leeds,Leeds City Council as Accountable Body,30/11/2015,Social Services Pooled Budgets,Jcs For People With Learning Disabilitie,Third Party Payments,Home Care,568,19-Nov-2015,1511-00433,0.00,1020.00,R,Affinity Trust,No,
Http://opendatacommunities.org/id/metropolitan-district-council/leeds,Leeds City Council as Accountable Body,30/11/2015,Social Services Pooled Budgets,Jcs For People With Learning Disabilitie,Third Party Payments,Home Care,568,19-Nov-2015,1511-00434,0.00,519.35,R,Affinity Trust,No,
Http://opendatacommunities.org/id/metropolitan-district-council/leeds,Leeds City Council as Accountable Body,30/11/2015,Social Services Pooled Budgets,Jcs For People With Learning Disabilitie,Third Party Payments,Home Care,568,19-Nov-2015,1511-00435,0.00,345.80,R,Affinity Trust,No,
Http://opendatacommunities.org/id/metropolitan-district-council/leeds,Leeds City Council as Accountable Body,30/11/2015,Social Services Pooled Budgets,Jcs For People With Learning Disabilitie,Third Party Payments,Home Care,568,19-Nov-2015,1511-00436,0.00,319.60,R,Affinity Trust,No,
Http://opendatacommunities.org/id/metropolitan-district-council/leeds,Leeds City Council as Accountable Body,30/11/2015,Social Services Pooled Budgets,Jcs For People With Learning Disabilitie,Third Party Payments,Day Centre,564,19-Nov-2015,1511-00437,0.00,468.72,R,Affinity Trust,No,
Http://opendatacommunities.org/id/metropolitan-district-council/leeds,Leeds City Council as Accountable Body,30/11/2015,Social Services Pooled Budgets,Jcs For People With Learning Disabilitie,Third Party Payments,Home Care,568,19-Nov-2015,1511-00438,0.00,1897.50,R,Affinity Trust,No,
Http://opendatacommunities.org/id/metropolitan-district-council/leeds,Leeds City Council as Accountable Body,30/11/2015,Social Services Pooled Budgets,Jcs For People With Learning Disabilitie,Third Party Payments,Home Care,568,19-Nov-2015,1511-00439,0.00,1513.80,R,Affinity Trust,No,
Http://opendatacommunities.org/id/metropolitan-district-council/leeds,Leeds City Council as Accountable Body,30/11/2015,Social Services Pooled Budgets,Jcs For People With Learning Disabilitie,Third Party Payments,Home Care,568,19-Nov-2015,1511-00440,0.00,551.31,R,Affinity Trust,No,
Http://opendatacommunities.org/id/metropolitan-district-council/leeds,Leeds City Council as Accountable Body,30/11/2015,Social Services Pooled Budgets,Jcs For People With Learning Disabilitie,Third Party Payments,Home Care,568,19-Nov-2015,1511-00441,0.00,886.89,R,Affinity Trust,No,
Http://opendatacommunities.org/id/metropolitan-district-council/leeds,Leeds City Council as Accountable Body,30/11/2015,Social Services Pooled Budgets,Jcs For People With Learning Disabilitie,Third Party Payments,Home Care,568,19-Nov-2015,1511-00442,0.00,743.07,R,Affinity Trust,No,
Http://opendatacommunities.org/id/metropolitan-district-council/leeds,Leeds City Council as Accountable Body,30/11/2015,Social Services Pooled Budgets,Jcs For People With Learning Disabilitie,Third Party Payments,Home Care,568,19-Nov-2015,1511-00443,0.00,719.10,R,Affinity Trust,No,
Http://opendatacommunities.org/id/metropolitan-district-council/leeds,Leeds City Council as Accountable Body,30/11/2015,Social Services Pooled Budgets,Jcs For People With Learning Disabilitie,Third Party Payments,Home Care,568,19-Nov-2015,1511-00444,0.00,408.00,R,Affinity Trust,No,
Http://opendatacommunities.org/id/metropolitan-district-council/leeds,Leeds City Council as Accountable Body,30/11/2015,Social Services Pooled Budgets,Jcs For People With Learning Disabilitie,Third Party Payments,Home Care,568,19-Nov-2015,1511-00445,0.00,1430.21,R,Affinity Trust,No,
Http://opendatacommunities.org/id/metropolitan-district-council/leeds,Leeds City Council as Accountable Body,30/11/2015,Social Services Pooled Budgets,Jcs For People With Learning Disabilitie,Third Party Payments,Home Care,568,19-Nov-2015,1511-00446,0.00,3851.18,R,Affinity Trust,No,
Http://opendatacommunities.org/id/metropolitan-district-council/leeds,Leeds City Council as Accountable Body,30/11/2015,Social Services Pooled Budgets,Jcs For People With Learning Disabilitie,Third Party Payments,Home Care,568,19-Nov-2015,1511-00447,0.00,765.00,R,Affinity Trust,No,
Http://opendatacommunities.org/id/metropolitan-district-council/leeds,Leeds City Council as Accountable Body,30/11/2015,Social Services Pooled Budgets,Jcs For People With Learning Disabilitie,Third Party Payments,Home Care,568,19-Nov-2015,1511-00448,0.00,1118.60,R,Affinity Trust,No,
Http://opendatacommunities.org/id/metropolitan-district-council/leeds,Leeds City Council as Accountable Body,30/11/2015,Social Services Pooled Budgets,Jcs For People With Learning Disabilitie,Third Party Payments,Home Care,568,19-Nov-2015,1511-00449,0.00,527.34,R,Affinity Trust,No,
Http://opendatacommunities.org/id/metropolitan-district-council/leeds,Leeds City Council as Accountable Body,30/11/2015,Social Services Pooled Budgets,Jcs For People With Learning Disabilitie,Third Party Payments,Home Care,568,19-Nov-2015,1511-00450,0.00,639.20,R,Affinity Trust,No,
Http://opendatacommunities.org/id/metropolitan-district-council/leeds,Leeds City Council as Accountable Body,30/11/2015,Social Services Pooled Budgets,Jcs For People With Learning Disabilitie,Third Party Payments,Home Care,568,19-Nov-2015,1511-00451,0.00,408.64,R,Affinity Trust,No,
Http://opendatacommunities.org/id/metropolitan-district-council/leeds,Leeds City Council as Accountable Body,30/11/2015,Social Services Pooled Budgets,Jcs For People With Learning Disabilitie,Third Party Payments,Home Care,568,19-Nov-2015,1511-00452,0.00,307.50,R,Affinity Trust,No,
Http://opendatacommunities.org/id/metropolitan-district-council/leeds,Leeds City Council as Accountable Body,30/11/2015,Social Services Pooled Budgets,Jcs For People With Learning Disabilitie,Third Party Payments,Home Care,568,19-Nov-2015,1511-00453,0.00,1177.40,R,Affinity Trust,No,
Http://opendatacommunities.org/id/metropolitan-district-council/leeds,Leeds City Council as Accountable Body,30/11/2015,Social Services Pooled Budgets,Jcs For People With Learning Disabilitie,Third Party Payments,Home Care,568,19-Nov-2015,1511-00454,0.00,1435.60,R,Affinity Trust,No,
Http://opendatacommunities.org/id/metropolitan-district-council/leeds,Leeds City Council as Accountable Body,30/11/2015,Social Services Pooled Budgets,Jcs For People With Learning Disabilitie,Third Party Payments,Day Centre,564,19-Nov-2015,1511-00455,0.00,17538.00,R,Affinity Trust,No,
Http://opendatacommunities.org/id/metropolitan-district-council/leeds,Leeds City Council as Accountable Body,30/11/2015,Social Services Pooled Budgets,Jcs For People With Learning Disabilitie,Third Party Payments,Home Care,568,19-Nov-2015,1511-00456,0.00,15417.22,R,Affinity Trust,No,
Http://opendatacommunities.org/id/metropolitan-district-council/leeds,Leeds City Council,30/11/2015,Adult Social Care,Services For Older People Under 65 P/Dis,Third Party Payments,Home Care,568,20-Nov-2015,1511-00457,0.00,846.94,R,Affinity Trust,No,
Http://opendatacommunities.org/id/metropolitan-district-council/leeds,Leeds City Council,30/11/2015,Adult Social Care,Services For Older People Under 65 P/Dis,Third Party Payments,Home Care,568,20-Nov-2015,1511-00458,0.00,511.36,R,Affinity Trust,No,
Http://opendatacommunities.org/id/metropolitan-district-council/leeds,Leeds City Council,30/11/2015,Adult Social Care,Services For Older People Under 65 P/Dis,Third Party Payments,Home Care,568,20-Nov-2015,1511-00459,0.00,287.64,R,Affinity Trust,No,
Http://opendatacommunities.org/id/metropolitan-district-council/leeds,Leeds City Council,30/11/2015,Adult Social Care,Services For Older People Under 65 P/Dis,Third Party Payments,Home Care,568,20-Nov-2015,1511-00460,0.00,3251.46,R,Affinity Trust,No,
Http://opendatacommunities.org/id/metropolitan-district-council/leeds,Leeds City Council,30/11/2015,Adult Social Care,Services For Adults Under 65 Mental/Dis,Third Party Payments,Home Care,568,20-Nov-2015,1511-00461,0.00,399.50,R,Affinity Trust,No,
Http://opendatacommunities.org/id/metropolitan-district-council/leeds,Leeds City Council,30/11/2015,Adult Social Care,Services For Older People Under 65 P/Dis,Third Party Payments,Home Care,568,20-Nov-2015,1511-00462,0.00,383.52,R,Affinity Trust,No,
Http://opendatacommunities.org/id/metropolitan-district-council/leeds,Leeds City Council,30/11/2015,Adult Social Care,Services For Older People Under 65 P/Dis,Third Party Payments,Home Care,568,20-Nov-2015,1511-00463,0.00,396.00,R,Affinity Trust,No,
Http://opendatacommunities.org/id/metropolitan-district-council/leeds,Leeds City Council,30/11/2015,Adult Social Care,Services For Older People Under 65 P/Dis,Third Party Payments,Home Care,568,20-Nov-2015,1511-00464,0.00,747.45,R,Affinity Trust,No,
Http://opendatacommunities.org/id/metropolitan-district-council/leeds,Leeds City Council,30/11/2015,Adult Social Care,Services For Older People Under 65 P/Dis,Third Party Payments,Home Care,568,20-Nov-2015,1511-00465,0.00,575.28,R,Affinity Trust,No,
Http://opendatacommunities.org/id/metropolitan-district-council/leeds,Leeds City Council,30/11/2015,Adult Social Care,Services For Older People - 65 And Over,Third Party Payments,Home Care,568,20-Nov-2015,1511-00466,0.00,1345.60,R,Affinity Trust,No,
Http://opendatacommunities.org/id/metropolitan-district-council/leeds,Leeds City Council,30/11/2015,Adult Social Care,Services For Older People Under 65 P/Dis,Third Party Payments,Home Care,568,20-Nov-2015,1511-00467,0.00,390.50,R,Affinity Trust,No,
Http://opendatacommunities.org/id/metropolitan-district-council/leeds,Leeds City Council as Accountable Body,30/11/2015,Social Services Pooled Budgets,Jcs For People With Learning Disabilitie,Third Party Payments,Day Centre,564,30-Nov-2015,1511-00468,0.00,1918.62,R,Affinity Trust,No,
Http://opendatacommunities.org/id/metropolitan-district-council/leeds,Leeds City Council,30/11/2015,Adult Social Care,Services For Older People Under 65 P/Dis,Third Party Payments,Day Centre - Learning Disabil,567,18-Nov-2015,1511-00469,0.00,4895.00,R,Affinity Trust North Divisional Office,No,
Http://opendatacommunities.org/id/metropolitan-district-council/leeds,Leeds City Council as Accountable Body,30/11/2015,Social Services Pooled Budgets,Jcs For People With Learning Disabilitie,Third Party Payments,Day Centre - Learning Disabil,567,18-Nov-2015,1511-00470,0.00,96668.36,R,Affinity Trust North Divisional Office,No,
Http://opendatacommunities.org/id/metropolitan-district-council/leeds,Leeds City Council as Accountable Body,30/11/2015,Social Services Pooled Budgets,Jcs For People With Learning Disabilitie,Third Party Payments,Residential,580,18-Nov-2015,1511-00471,0.00,15596.92,R,Affinity Trust North Divisional Office,No,
Http://opendatacommunities.org/id/metropolitan-district-council/leeds,Leeds City Council,30/11/2015,Environment & Housing,Parks And Countryside ,Transport,Hire Of Movable Plant & Machinery,315,30-Sep-2015,1511-00472,0.00,7495.57,R,Afi Uplift Ltd,Yes,
Http://opendatacommunities.org/id/metropolitan-district-council/leeds,Leeds City Council,30/11/2015,Environment & Housing,Parks And Countryside ,Supplies and Services,Operational Materials,205,26-Oct-2015,1511-00473,0.00,24.65,R,Afs Animal Care Lt,Yes,
Http://opendatacommunities.org/id/metropolitan-district-council/leeds,Leeds City Council,30/11/2015,Childrens Services,Learning Skills & Universal,Supplies and Services,College Contracts,276,03-Nov-2015,1511-00474,0.00,10800.00,R,Age Uk Leeds,No,
Http://opendatacommunities.org/id/metropolitan-district-council/leeds,Leeds City Council,30/11/2015,Environment & Housing,SP Contracts & SECC,Third Party Payments,Supporting Ppl - Block Gross Chargeable,514,27-Nov-2015,1511-00475,0.00,3957.68,R,Age Uk Leeds,No,
Http://opendatacommunities.org/id/metropolitan-district-council/leeds,Leeds City Council,30/11/2015,Adult Social Care,Social Services Support Services,Employees,Training & Development,70,20-Nov-2015,1511-00476,0.00,475.00,R,Age Uk Training,No,
Http://opendatacommunities.org/id/metropolitan-district-council/leeds,Leeds City Council,30/11/2015,Civic Enterprise Leeds,Corporate Property Management,Premises,Plant and Machinery,102,10-Nov-2015,1511-00477,0.00,300.00,R,Aglo Energy Ltd,No,
Http://opendatacommunities.org/id/metropolitan-district-council/leeds,Leeds City Council,30/11/2015,Adult Social Care,Services For Older People Under 65 P/Dis,Third Party Payments,Residential,580,18-Nov-2015,1511-00478,0.00,5598.40,R,Agricola House,No,
Http://opendatacommunities.org/id/metropolitan-district-council/leeds,Leeds City Council,30/11/2015,Central & Corporate,Human Resources,Employees,Occupational Health,85,18-Nov-2015,1511-00479,0.00,100.00,R,Ahamad Hassan,No,
Http://opendatacommunities.org/id/metropolitan-district-council/leeds,Leeds City Council,30/11/2015,Childrens Services,Safeguarding Targeted & Specialist,Transfer Payments,16 Plus Top Up Allowance,625,05-Nov-2015,1511-00480,0.00,20.00,R,REDACTED PERSONAL DATA,No,
Http://opendatacommunities.org/id/metropolitan-district-council/leeds,Leeds City Council,30/11/2015,Childrens Services,Safeguarding Targeted & Specialist,Transfer Payments,16 Plus Top Up Allowance,625,12-Nov-2015,1511-00481,0.00,20.00,R,REDACTED PERSONAL DATA,No,
Http://opendatacommunities.org/id/metropolitan-district-council/leeds,Leeds City Council,30/11/2015,Childrens Services,Safeguarding Targeted & Specialist,Transfer Payments,16 Plus Top Up Allowance,625,19-Nov-2015,1511-00482,0.00,20.00,R,REDACTED PERSONAL DATA,No,
Http://opendatacommunities.org/id/metropolitan-district-council/leeds,Leeds City Council,30/11/2015,Childrens Services,Safeguarding Targeted & Specialist,Transfer Payments,16 Plus Top Up Allowance,625,26-Nov-2015,1511-00483,0.00,20.00,R,REDACTED PERSONAL DATA,No,
Http://opendatacommunities.org/id/metropolitan-district-council/leeds,Leeds City Council as Accountable Body,30/11/2015,Social Services Pooled Budgets,Leeds Community Equip Store Pooled Budgt,Supplies and Services,Other Equipment,203,04-Nov-2015,1511-00484,0.00,3025.00,R,Aidapt Bathrooms Ltd,No,
Http://opendatacommunities.org/id/metropolitan-district-council/leeds,Leeds City Council as Accountable Body,30/11/2015,Social Services Pooled Budgets,Leeds Community Equip Store Pooled Budgt,Supplies and Services,Other Equipment,203,20-Nov-2015,1511-00485,0.00,1575.00,R,Aidapt Bathrooms Ltd,No,
Http://opendatacommunities.org/id/metropolitan-district-council/leeds,Leeds City Council as Accountable Body,30/11/2015,Social Services Pooled Budgets,Leeds Community Equip Store Pooled Budgt,Supplies and Services,Other Equipment,203,20-Nov-2015,1511-00486,0.00,178.00,R,Aidapt Bathrooms Ltd,No,
Http://opendatacommunities.org/id/metropolitan-district-council/leeds,Leeds City Council as Accountable Body,30/11/2015,Social Services Pooled Budgets,Leeds Community Equip Store Pooled Budgt,Supplies and Services,Other Equipment,203,20-Nov-2015,1511-00487,0.00,2350.00,R,Aidapt Bathrooms Ltd,No,
Http://opendatacommunities.org/id/metropolitan-district-council/leeds,Leeds City Council,30/11/2015,Strategic Landlord,Property and Contracts,Premises,General Maintenance,104,11-Nov-2015,1511-00488,0.00,149.00,R,Aidservice Ltd,No,
Http://opendatacommunities.org/id/metropolitan-district-council/leeds,Leeds City Council as Accountable Body,30/11/2015,Social Services Pooled Budgets,Jcs For People With Learning Disabilitie,Supplies and Services,Other Equipment,203,13-Nov-2015,1511-00489,0.00,460.50,R,Aidservice Ltd,No,
Http://opendatacommunities.org/id/metropolitan-district-council/leeds,Leeds City Council,30/11/2015,Strategic Landlord,Property and Contracts,Premises,General Maintenance,104,25-Nov-2015,1511-00490,0.00,260.00,R,Aidservice Ltd,No,
Http://opendatacommunities.org/id/metropolitan-district-council/leeds,Leeds City Council as Accountable Body,30/11/2015,Social Services Pooled Budgets,Jcs For People With Learning Disabilitie,Supplies and Services,Other Equipment,203,27-Nov-2015,1511-00491,0.00,364.00,R,Aidservice Ltd,No,
Http://opendatacommunities.org/id/metropolitan-district-council/leeds,Leeds City Council,30/11/2015,Citizens and Communities,Communities,Supplies and Services,'Well Being' Large Grants Projects,230,17-Nov-2015,1511-00492,0.00,4310.00,R,Aim Education Leeds Limited,No,
Http://opendatacommunities.org/id/metropolitan-district-council/leeds,Leeds City Council,30/11/2015,Central & Corporate,Commercial Services Trading Services,Supplies and Services,Operational Materials,205,04-Nov-2015,1511-00493,0.00,51.11,R,Air Conditioning Accessories,No,
Http://opendatacommunities.org/id/metropolitan-district-council/leeds,Leeds City Council,30/11/2015,Central & Corporate,Commercial Services Trading Services,Supplies and Services,Operational Materials,205,04-Nov-2015,1511-00494,0.00,45.64,R,Air Conditioning Accessories,No,
Http://opendatacommunities.org/id/metropolitan-district-council/leeds,Leeds City Council,30/11/2015,Central & Corporate,Commercial Services Trading Services,Supplies and Services,Operational Materials,205,30-Nov-2015,1511-00495,0.00,107.70,R,Air Conditioning Accessories,No,
Http://opendatacommunities.org/id/metropolitan-district-council/leeds,Leeds City Council,30/11/2015,Central & Corporate,Commercial Services Trading Services,Supplies and Services,Operational Materials,205,30-Nov-2015,1511-00496,0.00,64.05,R,Air Conditioning Accessories,No,
Http://opendatacommunities.org/id/metropolitan-district-council/leeds,Leeds City Council,30/11/2015,Central & Corporate,Commercial Services Trading Services,Supplies and Services,Operational Materials,205,30-Nov-2015,1511-00497,0.00,216.08,R,Air Conditioning Accessories,No,
Http://opendatacommunities.org/id/metropolitan-district-council/leeds,Leeds City Council,30/11/2015,Civic Enterprise Leeds,Commercial Services ,Supplies and Services,Operational Furniture And Equipment,203,14-Oct-2015,1511-00498,0.00,72.96,R,Air Force Pneumati,Yes,
Http://opendatacommunities.org/id/metropolitan-district-council/leeds,Leeds City Council,30/11/2015,Civic Enterprise Leeds,Commercial Services ,Supplies and Services,Operational Materials,205,14-Oct-2015,1511-00499,0.00,70.00,R,Air Force Pneumati,Yes,
Http://opendatacommunities.org/id/metropolitan-district-council/leeds,Leeds City Council,30/11/2015,Central & Corporate,Commercial Services Trading Services,Supplies and Services,Operational Materials,205,12-Nov-2015,1511-00500,0.00,9.86,R,Air Force Pneumatics & Hydraulics,No,
Http://opendatacommunities.org/id/metropolitan-district-council/leeds,Leeds City Council,30/11/2015,Central & Corporate,Commercial Services Trading Services,Supplies and Services,Operational Materials,205,25-Nov-2015,1511-00501,0.00,51.70,R,Air Force Pneumatics & Hydraulics,No,
Http://opendatacommunities.org/id/metropolitan-district-council/leeds,Leeds City Council,30/11/2015,Central & Corporate,Commercial Services Trading Services,Supplies and Services,Operational Materials,205,27-Nov-2015,1511-00502,0.00,146.70,R,Air Liquide Uk,No,
Http://opendatacommunities.org/id/metropolitan-district-council/leeds,Leeds City Council,30/11/2015,Central & Corporate,Commercial Services Trading Services,Supplies and Services,Operational Materials,205,30-Nov-2015,1511-00503,0.00,10.00,R,Air Liquide Uk,No,
Http://opendatacommunities.org/id/metropolitan-district-council/leeds,Leeds City Council,30/11/2015,Central & Corporate,Commercial Services Trading Services,Supplies and Services,Operational Materials,205,30-Nov-2015,1511-00504,0.00,102.43,R,Air Liquide Uk,No,
Http://opendatacommunities.org/id/metropolitan-district-council/leeds,Leeds City Council as Accountable Body,30/11/2015,Social Services Pooled Budgets,Jcs For People With Learning Disabilitie,Third Party Payments,Residential,580,18-Nov-2015,1511-00505,0.00,9087.84,R,Aire House,No,
Http://opendatacommunities.org/id/metropolitan-district-council/leeds,Leeds City Council,30/11/2015,City Development,Libraries  Arts & Heritage,Supplies and Services,Operational Furniture And Equipment,203,23-Nov-2015,1511-00506,0.00,152.38,R,Aire Valley Gas Ltd,No,
Http://opendatacommunities.org/id/metropolitan-district-council/leeds,Leeds City Council,30/11/2015,City Development,Libraries  Arts & Heritage,Supplies and Services,Operational Furniture And Equipment,203,23-Nov-2015,1511-00507,0.00,291.42,R,Aire Valley Gas Ltd,No,
Http://opendatacommunities.org/id/metropolitan-district-council/leeds,Leeds City Council,30/11/2015,City Development,Economic Development,Capital,Other Costs,7,09-Nov-2015,1511-00508,0.00,324646.14,C,Aire Valley Land Llp,No,
Http://opendatacommunities.org/id/metropolitan-district-council/leeds,Leeds City Council,30/11/2015,Adult Social Care,Services For Older People - 65 And Over,Third Party Payments,Residential Care Dementia,571,18-Nov-2015,1511-00509,0.00,28115.00,R,Aire View Residential Home,No,
Http://opendatacommunities.org/id/metropolitan-district-council/leeds,Leeds City Council,30/11/2015,Adult Social Care,Services For Older People - 65 And Over,Third Party Payments,Residential,580,18-Nov-2015,1511-00510,0.00,19422.46,R,Aire View Residential Home,No,
Http://opendatacommunities.org/id/metropolitan-district-council/leeds,Leeds City Council,30/11/2015,Childrens Services,Safeguarding Targeted & Specialist,Third Party Payments,Services Rendered By Voluntary Sector,505,02-Nov-2015,1511-00511,0.00,20813.00,R,Aireborough Supported Activities Scheme,No,
Http://opendatacommunities.org/id/metropolitan-district-council/leeds,Leeds City Council,30/11/2015,Citizens and Communities,Communities,Supplies and Services,'Well Being' Large Grants Projects,230,25-Nov-2015,1511-00512,0.00,1900.00,R,Aireborough Supported Activities Scheme,No,
Http://opendatacommunities.org/id/metropolitan-district-council/leeds,Leeds City Council,30/11/2015,Citizens and Communities,Communities,Supplies and Services,'Well Being' Large Grants Projects,230,25-Nov-2015,1511-00513,0.00,8100.00,R,Aireborough Supported Activities Scheme,No,
Http://opendatacommunities.org/id/metropolitan-district-council/leeds,Leeds City Council,30/11/2015,Adult Social Care,Services For Older People - 65 And Over,Third Party Payments,Residential Care Dementia,571,18-Nov-2015,1511-00514,0.00,1243.08,R,Airedale (Goldsborough),No,
Http://opendatacommunities.org/id/metropolitan-district-council/leeds,Leeds City Council,30/11/2015,Adult Social Care,Services For Older People - 65 And Over,Third Party Payments,Residential,580,18-Nov-2015,1511-00515,0.00,12720.64,R,Airedale (Goldsborough),No,
Http://opendatacommunities.org/id/metropolitan-district-council/leeds,Leeds City Council,30/11/2015,Adult Social Care,Services For Older People Under 65 P/Dis,Third Party Payments,Residential,580,18-Nov-2015,1511-00516,0.00,1859.68,R,Airedale (Goldsborough),No,
Http://opendatacommunities.org/id/metropolitan-district-council/leeds,Leeds City Council as Accountable Body,30/11/2015,Social Services Pooled Budgets,Jcs For People With Learning Disabilitie,Third Party Payments,Residential,580,18-Nov-2015,1511-00517,0.00,1226.80,R,Airedale (Goldsborough),No,
Http://opendatacommunities.org/id/metropolitan-district-council/leeds,Leeds City Council,30/11/2015,Childrens Services,Capital Maintenance,Capital,Furniture And Equipment,5,03-Nov-2015,1511-00518,0.00,5864.00,C,Airedale Catering Equipment Ltd,No,
Http://opendatacommunities.org/id/metropolitan-district-council/leeds,Leeds City Council,30/11/2015,Childrens Services,Capital Maintenance,Capital,Furniture And Equipment,5,03-Nov-2015,1511-00519,0.00,13030.00,C,Airedale Catering Equipment Ltd,No,
Http://opendatacommunities.org/id/metropolitan-district-council/leeds,Leeds City Council,30/11/2015,Childrens Services,Capital Maintenance,Capital,Furniture And Equipment,5,03-Nov-2015,1511-00520,0.00,13030.00,C,Airedale Catering Equipment Ltd,No,
Http://opendatacommunities.org/id/metropolitan-district-council/leeds,Leeds City Council,30/11/2015,Environment & Housing,Environmental Health,Supplies and Services,Other Hired And Contracted Services,265,20-Nov-2015,1511-00521,0.00,175.55,R,Aireworth Vets,No,
Http://opendatacommunities.org/id/metropolitan-district-council/leeds,Leeds City Council,30/11/2015,Environment & Housing,Community Safety,Supplies and Services,Other Hired And Contracted Services,265,11-Nov-2015,1511-00522,0.00,778.92,R,Airwave Solutions Ltd,No,
Http://opendatacommunities.org/id/metropolitan-district-council/leeds,Leeds City Council,30/11/2015,Civic Enterprise Leeds,Commercial Services,Supplies and Services,Other Hired And Contracted Services,265,06-Nov-2015,1511-00523,0.00,195.00,R,Air-Weigh Europe Limited,No,
Http://opendatacommunities.org/id/metropolitan-district-council/leeds,Leeds City Council,30/11/2015,Civic Enterprise Leeds,Commercial Services,Supplies and Services,Other Hired And Contracted Services,265,06-Nov-2015,1511-00524,0.00,202.50,R,Air-Weigh Europe Limited,No,
Http://opendatacommunities.org/id/metropolitan-district-council/leeds,Leeds City Council,30/11/2015,Civic Enterprise Leeds,Commercial Services,Supplies and Services,Other Hired And Contracted Services,265,11-Nov-2015,1511-00525,0.00,270.00,R,Air-Weigh Europe Limited,No,
Http://opendatacommunities.org/id/metropolitan-district-council/leeds,Leeds City Council,30/11/2015,Civic Enterprise Leeds,Commercial Services,Supplies and Services,Other Hired And Contracted Services,265,20-Nov-2015,1511-00526,0.00,540.00,R,Air-Weigh Europe Limited,No,
Http://opendatacommunities.org/id/metropolitan-district-council/leeds,Leeds City Council,30/11/2015,Civic Enterprise Leeds,Commercial Services,Supplies and Services,Other Hired And Contracted Services,265,27-Nov-2015,1511-00527,0.00,270.00,R,Air-Weigh Europe Limited,No,
Http://opendatacommunities.org/id/metropolitan-district-council/leeds,Leeds City Council,30/11/2015,Civic Enterprise Leeds,Commercial Services,Supplies and Services,Other Hired And Contracted Services,265,27-Nov-2015,1511-00528,0.00,135.00,R,Air-Weigh Europe Limited,No,
Http://opendatacommunities.org/id/metropolitan-district-council/leeds,Leeds City Council,30/11/2015,Civic Enterprise Leeds,Commercial Services,Supplies and Services,Other Hired And Contracted Services,265,27-Nov-2015,1511-00529,0.00,135.00,R,Air-Weigh Europe Limited,No,
Http://opendatacommunities.org/id/metropolitan-district-council/leeds,Leeds City Council,30/11/2015,Civic Enterprise Leeds,Commercial Services,Supplies and Services,Other Hired And Contracted Services,265,27-Nov-2015,1511-00530,0.00,135.00,R,Air-Weigh Europe Limited,No,
Http://opendatacommunities.org/id/metropolitan-district-council/leeds,Leeds City Council,30/11/2015,Adult Social Care,Services For Adults Under 65 Mental/Dis,Third Party Payments,Services Provided By Other NHS Bodies,522,02-Nov-2015,1511-00531,0.00,175.00,R,Ait Mitra,No,
Http://opendatacommunities.org/id/metropolitan-district-council/leeds,Leeds City Council,30/11/2015,Adult Social Care,Services For Adults Under 65 Mental/Dis,Third Party Payments,Services Provided By Other NHS Bodies,522,02-Nov-2015,1511-00532,0.00,175.00,R,Ait Mitra,No,
Http://opendatacommunities.org/id/metropolitan-district-council/leeds,Leeds City Council,30/11/2015,Adult Social Care,Services For Adults Under 65 Mental/Dis,Third Party Payments,Services Provided By Other NHS Bodies,522,02-Nov-2015,1511-00533,0.00,175.00,R,Ait Mitra,No,
Http://opendatacommunities.org/id/metropolitan-district-council/leeds,Leeds City Council,30/11/2015,Adult Social Care,Services For Adults Under 65 Mental/Dis,Third Party Payments,Services Provided By Other NHS Bodies,522,02-Nov-2015,1511-00534,0.00,175.00,R,Ait Mitra,No,
Http://opendatacommunities.org/id/metropolitan-district-council/leeds,Leeds City Council,30/11/2015,Adult Social Care,Services For Adults Under 65 Mental/Dis,Third Party Payments,Services Provided By Other NHS Bodies,522,02-Nov-2015,1511-00535,0.00,175.00,R,Ait Mitra,No,
Http://opendatacommunities.org/id/metropolitan-district-council/leeds,Leeds City Council,30/11/2015,Adult Social Care,Services For Adults Under 65 Mental/Dis,Third Party Payments,Services Provided By Other NHS Bodies,522,02-Nov-2015,1511-00536,0.00,175.00,R,Ait Mitra,No,
Http://opendatacommunities.org/id/metropolitan-district-council/leeds,Leeds City Council,30/11/2015,Adult Social Care,Services For Adults Under 65 Mental/Dis,Third Party Payments,Services Provided By Other NHS Bodies,522,02-Nov-2015,1511-00537,0.00,175.00,R,Ait Mitra,No,
Http://opendatacommunities.org/id/metropolitan-district-council/leeds,Leeds City Council,30/11/2015,Adult Social Care,Services For Adults Under 65 Mental/Dis,Third Party Payments,Services Provided By Other NHS Bodies,522,02-Nov-2015,1511-00538,0.00,220.00,R,Ait Mitra,No,
Http://opendatacommunities.org/id/metropolitan-district-council/leeds,Leeds City Council,30/11/2015,Adult Social Care,Services For Adults Under 65 Mental/Dis,Third Party Payments,Services Provided By Other NHS Bodies,522,19-Nov-2015,1511-00539,0.00,175.00,R,Ait Mitra,No,
Http://opendatacommunities.org/id/metropolitan-district-council/leeds,Leeds City Council,30/11/2015,Adult Social Care,Services For Adults Under 65 Mental/Dis,Third Party Payments,Services Provided By Other NHS Bodies,522,20-Nov-2015,1511-00540,0.00,175.00,R,Ait Mitra,No,
Http://opendatacommunities.org/id/metropolitan-district-council/leeds,Leeds City Council,30/11/2015,Adult Social Care,Services For Adults Under 65 Mental/Dis,Third Party Payments,Services Provided By Other NHS Bodies,522,20-Nov-2015,1511-00541,0.00,175.00,R,Ait Mitra,No,
Http://opendatacommunities.org/id/metropolitan-district-council/leeds,Leeds City Council,30/11/2015,Adult Social Care,Services For Adults Under 65 Mental/Dis,Third Party Payments,Services Provided By Other NHS Bodies,522,20-Nov-2015,1511-00542,0.00,175.00,R,Ait Mitra,No,
Http://opendatacommunities.org/id/metropolitan-district-council/leeds,Leeds City Council,30/11/2015,Adult Social Care,Services For Adults Under 65 Mental/Dis,Third Party Payments,Services Provided By Other NHS Bodies,522,24-Nov-2015,1511-00543,0.00,175.00,R,Ait Mitra,No,
Http://opendatacommunities.org/id/metropolitan-district-council/leeds,Leeds City Council,30/11/2015,Adult Social Care,Services For Adults Under 65 Mental/Dis,Third Party Payments,Services Provided By Other NHS Bodies,522,24-Nov-2015,1511-00544,0.00,175.00,R,Ait Mitra,No,
Http://opendatacommunities.org/id/metropolitan-district-council/leeds,Leeds City Council,30/11/2015,Adult Social Care,Services For Adults Under 65 Mental/Dis,Third Party Payments,Services Provided By Other NHS Bodies,522,24-Nov-2015,1511-00545,0.00,175.00,R,Ait Mitra,No,
Http://opendatacommunities.org/id/metropolitan-district-council/leeds,Leeds City Council as Accountable Body,30/11/2015,Social Services Pooled Budgets,Jcs For People With Learning Disabilitie,Third Party Payments,Residential,580,18-Nov-2015,1511-00546,0.00,6173.24,R,Aitch Care Homes,No,
Http://opendatacommunities.org/id/metropolitan-district-council/leeds,Leeds City Council,30/11/2015,Environment & Housing,Parks and Countryside,Supplies and Services,Operational Materials,205,13-Nov-2015,1511-00547,0.00,179.00,R,Aitkens Sportsturf Ltd,No,
Http://opendatacommunities.org/id/metropolitan-district-council/leeds,Leeds City Council,30/11/2015,Environment & Housing,Parks and Countryside,Supplies and Services,Operational Materials,205,25-Nov-2015,1511-00548,0.00,117.50,R,Aitkens Sportsturf Ltd,No,
Http://opendatacommunities.org/id/metropolitan-district-council/leeds,Leeds City Council,30/11/2015,City Development,Recreation,Supplies and Services,Operational Furniture And Equipment,203,12-Nov-2015,1511-00549,0.00,149.00,R,Aj Products (Uk) Ltd,No,
Http://opendatacommunities.org/id/metropolitan-district-council/leeds,Leeds City Council,30/11/2015,Adult Social Care,Services For Older People - 65 And Over,Third Party Payments,Home Care,568,06-Nov-2015,1511-00550,0.00,44.80,R,Aj Social Care,No,
Http://opendatacommunities.org/id/metropolitan-district-council/leeds,Leeds City Council,30/11/2015,Adult Social Care,Services For Older People - 65 And Over,Third Party Payments,Home Care,568,13-Nov-2015,1511-00551,0.00,11916.80,R,Aj Social Care,No,
Http://opendatacommunities.org/id/metropolitan-district-council/leeds,Leeds City Council,30/11/2015,Adult Social Care,Services For Older People Under 65 P/Dis,Third Party Payments,Home Care,568,13-Nov-2015,1511-00552,0.00,7816.34,R,Aj Social Care,No,
Http://opendatacommunities.org/id/metropolitan-district-council/leeds,Leeds City Council,30/11/2015,Adult Social Care,Services For Older People - 65 And Over,Third Party Payments,Home Care,568,26-Nov-2015,1511-00553,0.00,400.67,R,Aj Social Care,No,
Http://opendatacommunities.org/id/metropolitan-district-council/leeds,Leeds City Council,30/11/2015,Environment & Housing,Leeds Building Services,Supplies and Services,Stores - Central And Other Depots,005,09-Nov-2015,1511-00554,0.00,70.80,R,Ajm Fixings & Power Tools Ltd,No,
Http://opendatacommunities.org/id/metropolitan-district-council/leeds,Leeds City Council,30/11/2015,Environment & Housing,Leeds Building Services,Supplies and Services,Stores - Central And Other Depots,005,20-Nov-2015,1511-00555,0.00,457.35,R,Ajm Fixings & Power Tools Ltd,No,
Http://opendatacommunities.org/id/metropolitan-district-council/leeds,Leeds City Council,30/11/2015,Environment & Housing,Leeds Building Services,Supplies and Services,Operational Furniture And Equipment,203,27-Nov-2015,1511-00556,0.00,29.75,R,Ajm Fixings & Power Tools Ltd,No,
Http://opendatacommunities.org/id/metropolitan-district-council/leeds,Leeds City Council,30/11/2015,Environment & Housing,Leeds Building Services,Supplies and Services,Operational Furniture And Equipment,203,27-Nov-2015,1511-00557,0.00,106.50,R,Ajm Fixings & Power Tools Ltd,No,
Http://opendatacommunities.org/id/metropolitan-district-council/leeds,Leeds City Council,30/11/2015,Environment & Housing,Leeds Building Services,Supplies and Services,Stores - Central And Other Depots,005,27-Nov-2015,1511-00558,0.00,331.50,R,Ajm Fixings & Power Tools Ltd,No,
Http://opendatacommunities.org/id/metropolitan-district-council/leeds,Leeds City Council,30/11/2015,Adult Social Care,Services For Older People - 65 And Over,Third Party Payments,Nursing Home,570,18-Nov-2015,1511-00559,0.00,1279.08,R,Akari Care Ltd,No,
Http://opendatacommunities.org/id/metropolitan-district-council/leeds,Leeds City Council,30/11/2015,Childrens Services,Safeguarding Targeted & Specialist,Supplies and Services,General Amenity For Clients/Residents,285,16-Nov-2015,1511-00560,0.00,20.00,R,REDACTED PERSONAL DATA,No,
Http://opendatacommunities.org/id/metropolitan-district-council/leeds,Leeds City Council,30/11/2015,Childrens Services,Safeguarding Targeted & Specialist,Transport,Public Transport Expenses,310,16-Nov-2015,1511-00561,0.00,18.80,R,REDACTED PERSONAL DATA,No,
Http://opendatacommunities.org/id/metropolitan-district-council/leeds,Leeds City Council,30/11/2015,Childrens Services,Safeguarding Targeted & Specialist ,Transfer Payments,Leaving Care Grants,635,30-Sep-2015,1511-00562,0.00,62.93,R,Al Murad Diy Ltd,Yes,
Http://opendatacommunities.org/id/metropolitan-district-council/leeds,Leeds City Council,30/11/2015,Insurance,Insurance,Supplies and Services,Insurance Claims,248,19-Nov-2015,1511-00563,0.00,395.54,R,REDACTED PERSONAL DATA,No,
Http://opendatacommunities.org/id/metropolitan-district-council/leeds,Leeds City Council,30/11/2015,Childrens Services,Safeguarding Targeted & Specialist,Support Services,Legal Disbursements,411,12-Nov-2015,1511-00564,0.00,270.00,R,Alan Sprigg,No,
Http://opendatacommunities.org/id/metropolitan-district-council/leeds,Leeds City Council,30/11/2015,Environment & Housing,Waste Management,Transport,Repair & Maintenance of  Plant,342,11-Nov-2015,1511-00565,0.00,297.00,R,Alan Thompson Transport,No,
Http://opendatacommunities.org/id/metropolitan-district-council/leeds,Leeds City Council,30/11/2015,Environment & Housing,Waste Management,Transport,Repair & Maintenance of  Plant,342,30-Nov-2015,1511-00566,0.00,297.00,R,Alan Thompson Transport,No,
Http://opendatacommunities.org/id/metropolitan-district-council/leeds,Leeds City Council,30/11/2015,Citizens and Communities,Customer Access,Supplies and Services,Other Hired And Contracted Services,265,03-Nov-2015,1511-00567,0.00,10.00,R,Alazar Araya,No,
Http://opendatacommunities.org/id/metropolitan-district-council/leeds,Leeds City Council,30/11/2015,Civic Enterprise Leeds,Commercial Services ,Supplies and Services,Operational Materials,205,06-Oct-2015,1511-00568,0.00,87.50,R,Albert Haywood & Son L,Yes,
Http://opendatacommunities.org/id/metropolitan-district-council/leeds,Leeds City Council,30/11/2015,Childrens Services,Safeguarding Targeted & Specialist ,Supplies and Services,Food & Drink,231,12-Oct-2015,1511-00569,0.00,9.82,R,Aldi,Yes,
Http://opendatacommunities.org/id/metropolitan-district-council/leeds,Leeds City Council,30/11/2015,City Development,Recreation,Employees,Training & Development,70,06-Nov-2015,1511-00570,0.00,190.00,R,Aldwark Scout Activity Centre,No,
Http://opendatacommunities.org/id/metropolitan-district-council/leeds,Leeds City Council,30/11/2015,Childrens Services,Safeguarding Targeted & Specialist,Support Services,Legal Disbursements,411,27-Nov-2015,1511-00571,0.00,91.25,R,Alere Toxicology Plc,No,
Http://opendatacommunities.org/id/metropolitan-district-council/leeds,Leeds City Council,30/11/2015,Citizens and Communities,Elections  Licensing and Registration,Income,Admissions  Booking Fees & Ticket Sales,933,19-Nov-2015,1511-00572,0.00,255.00,R,Alessandro Rigoni Savioli,No,
Http://opendatacommunities.org/id/metropolitan-district-council/leeds,Leeds City Council,30/11/2015,City Development,Libraries  Arts & Heritage,Supplies and Services,Other Hired And Contracted Services,265,13-Nov-2015,1511-00573,0.00,147.00,R,Alex Palmer,No,
Http://opendatacommunities.org/id/metropolitan-district-council/leeds,Leeds City Council,30/11/2015,Childrens Services,Safeguarding Targeted & Specialist,Support Services,Legal Disbursements,411,10-Nov-2015,1511-00574,0.00,5775.00,R,Alex Taylor,No,
Http://opendatacommunities.org/id/metropolitan-district-council/leeds,Leeds City Council,30/11/2015,Childrens Services,Safeguarding Targeted & Specialist,Support Services,Legal Disbursements,411,13-Nov-2015,1511-00575,0.00,108.00,R,Alex Taylor,No,
Http://opendatacommunities.org/id/metropolitan-district-council/leeds,Leeds City Council,30/11/2015,Childrens Services,Safeguarding Targeted & Specialist,Support Services,Legal Disbursements,411,26-Nov-2015,1511-00576,0.00,3056.50,R,Alex Taylor,No,
Http://opendatacommunities.org/id/metropolitan-district-council/leeds,Leeds City Council,30/11/2015,Childrens Services,Safeguarding Targeted & Specialist,Support Services,Legal Disbursements,411,26-Nov-2015,1511-00577,0.00,447.00,R,Alex Taylor,No,
Http://opendatacommunities.org/id/metropolitan-district-council/leeds,Leeds City Council,30/11/2015,Childrens Services,Safeguarding Targeted & Specialist,Support Services,Legal Disbursements,411,27-Nov-2015,1511-00578,0.00,983.00,R,Alex Taylor,No,
Http://opendatacommunities.org/id/metropolitan-district-council/leeds,Leeds City Council,30/11/2015,Adult Social Care,Services For Older People - 65 And Over,Third Party Payments,Residential Care Dementia,571,18-Nov-2015,1511-00579,0.00,20101.90,R,Alexander Residential Home,No,
Http://opendatacommunities.org/id/metropolitan-district-council/leeds,Leeds City Council,30/11/2015,Adult Social Care,Services For Older People - 65 And Over,Third Party Payments,Residential,580,18-Nov-2015,1511-00580,0.00,10456.62,R,Alexander Residential Home,No,
Http://opendatacommunities.org/id/metropolitan-district-council/leeds,Leeds City Council,30/11/2015,Adult Social Care,Services For Older People Under 65 P/Dis,Third Party Payments,Residential Care Dementia,571,18-Nov-2015,1511-00581,0.00,1370.80,R,Alexander Residential Home,No,
Http://opendatacommunities.org/id/metropolitan-district-council/leeds,Leeds City Council,30/11/2015,Adult Social Care,Services For Older People Under 65 P/Dis,Third Party Payments,Residential,580,18-Nov-2015,1511-00582,0.00,4270.60,R,Alexander Residential Home,No,
Http://opendatacommunities.org/id/metropolitan-district-council/leeds,Leeds City Council,30/11/2015,Citizens and Communities,Customer Access,Supplies and Services,Other Hired And Contracted Services,265,03-Nov-2015,1511-00583,0.00,633.25,R,Alexandra Costenco,No,
Http://opendatacommunities.org/id/metropolitan-district-council/leeds,Leeds City Council,30/11/2015,Adult Social Care,Services For Older People - 65 And Over,Third Party Payments,Residential Care Dementia,571,18-Nov-2015,1511-00584,0.00,1285.20,R,Alexandra Court,No,
Http://opendatacommunities.org/id/metropolitan-district-council/leeds,Leeds City Council,30/11/2015,Adult Social Care,Services For Older People - 65 And Over,Third Party Payments,Residential,580,18-Nov-2015,1511-00585,0.00,8160.52,R,Alexandra Court,No,
Http://opendatacommunities.org/id/metropolitan-district-council/leeds,Leeds City Council,30/11/2015,Adult Social Care,Services For Older People Under 65 P/Dis,Third Party Payments,Residential Care Dementia,571,18-Nov-2015,1511-00586,0.00,2867.81,R,Alexandra Court,No,
Http://opendatacommunities.org/id/metropolitan-district-council/leeds,Leeds City Council,30/11/2015,Citizens and Communities,Customer Access,Supplies and Services,Other Hired And Contracted Services,265,03-Nov-2015,1511-00587,0.00,740.75,R,Alexandra Hirst,No,
Http://opendatacommunities.org/id/metropolitan-district-council/leeds,Leeds City Council,30/11/2015,Central & Corporate,Commercial Services Trading Services,Supplies and Services,Other Hired And Contracted Services,265,12-Nov-2015,1511-00588,0.00,5146.36,R,Alfred Bagnall & Sons (Leeds) Ltd,No,
Http://opendatacommunities.org/id/metropolitan-district-council/leeds,Leeds City Council,30/11/2015,Civic Enterprise Leeds,Facilities Management,Premises,Maintenance Of Buildings,101,20-Nov-2015,1511-00589,0.00,1400.00,R,Alfred Bagnall & Sons (Leeds) Ltd,No,
Http://opendatacommunities.org/id/metropolitan-district-council/leeds,Leeds City Council,30/11/2015,City Development,Asset Management Services,Supplies and Services,Other Hired And Contracted Services,265,20-Nov-2015,1511-00590,0.00,200.00,R,Alfred Bagnall & Sons (Leeds) Ltd,No,
Http://opendatacommunities.org/id/metropolitan-district-council/leeds,Leeds City Council,30/11/2015,Civic Enterprise Leeds,Corporate Property Management,Capital,Construction,3,20-Nov-2015,1511-00591,0.00,1532.00,C,Alfred Bagnall & Sons (Leeds) Ltd,No,
Http://opendatacommunities.org/id/metropolitan-district-council/leeds,Leeds City Council,30/11/2015,Central & Corporate,Commercial Services Trading Services,Supplies and Services,Other Hired And Contracted Services,265,20-Nov-2015,1511-00592,0.00,250.00,R,Alfred Bagnall & Sons (Leeds) Ltd,No,
Http://opendatacommunities.org/id/metropolitan-district-council/leeds,Leeds City Council,30/11/2015,Central & Corporate,Commercial Services Trading Services,Supplies and Services,Other Hired And Contracted Services,265,27-Nov-2015,1511-00593,0.00,516.80,R,Alfred Bagnall & Sons (Leeds) Ltd,No,
Http://opendatacommunities.org/id/metropolitan-district-council/leeds,Leeds City Council,30/11/2015,Childrens Services,Safeguarding Targeted & Specialist ,Supplies and Services,Teaching Materials,202,20-Oct-2015,1511-00594,0.00,35.67,R,Alibris Forwaterstones,Yes,
Http://opendatacommunities.org/id/metropolitan-district-council/leeds,Leeds City Council,30/11/2015,Childrens Services,Safeguarding Targeted & Specialist ,Supplies and Services,Teaching Materials,202,23-Oct-2015,1511-00595,0.00,-35.67,R,Alibris Forwaterstones,Yes,
Http://opendatacommunities.org/id/metropolitan-district-council/leeds,Leeds City Council,30/11/2015,City Development,Libraries  Arts & Heritage,Supplies and Services,Other Hired And Contracted Services,265,26-Nov-2015,1511-00596,0.00,50.00,R,Alice Trifunovic,No,
Http://opendatacommunities.org/id/metropolitan-district-council/leeds,Leeds City Council,30/11/2015,City Development,Libraries  Arts & Heritage,Supplies and Services,Bought In Professional Services,277,26-Nov-2015,1511-00597,0.00,600.00,R,Alison Glew,No,
Http://opendatacommunities.org/id/metropolitan-district-council/leeds,Leeds City Council,30/11/2015,Childrens Services,Safeguarding Targeted & Specialist,Support Services,Legal Disbursements,411,10-Nov-2015,1511-00598,0.00,500.00,R,Alison Hunt,No,
Http://opendatacommunities.org/id/metropolitan-district-council/leeds,Leeds City Council,30/11/2015,City Development,Planning & Sustainable Development,Support Services,Legal Disbursements,411,20-Nov-2015,1511-00599,0.00,720.00,R,Alison Ogley,No,
Http://opendatacommunities.org/id/metropolitan-district-council/leeds,Leeds City Council,30/11/2015,City Development,Libraries  Arts & Heritage,Supplies and Services,Other Hired And Contracted Services,265,11-Nov-2015,1511-00600,0.00,400.00,R,Alison Rhind,No,
Http://opendatacommunities.org/id/metropolitan-district-council/leeds,Leeds City Council,30/11/2015,Childrens Services,Safeguarding Targeted & Specialist,Third Party Payments,Contact,548,27-Nov-2015,1511-00601,0.00,36.00,R,REDACTED PERSONAL DATA,No,
Http://opendatacommunities.org/id/metropolitan-district-council/leeds,Leeds City Council,30/11/2015,City Development,Recreation ,Supplies and Services,Operational Materials,205,07-Oct-2015,1511-00602,0.00,75.00,R,All Safe And Secure,Yes,
Http://opendatacommunities.org/id/metropolitan-district-council/leeds,Leeds City Council,30/11/2015,Strategic Accounts,Miscellaneous,Supplies and Services,Non-Recurring Grants,227,09-Nov-2015,1511-00603,0.00,100.00,R,All Souls Church General Account,No,
Http://opendatacommunities.org/id/metropolitan-district-council/leeds,Leeds City Council,30/11/2015,Childrens Services,Safeguarding Targeted & Specialist,Supplies and Services,General Amenity For Clients/Residents,285,27-Nov-2015,1511-00604,0.00,540.00,R,All Star Youth Entertainment,No,
Http://opendatacommunities.org/id/metropolitan-district-council/leeds,Leeds City Council,30/11/2015,Childrens Services,Safeguarding Targeted & Specialist,Supplies and Services,General Amenity For Clients/Residents,285,27-Nov-2015,1511-00605,0.00,540.00,R,All Star Youth Entertainment,No,
Http://opendatacommunities.org/id/metropolitan-district-council/leeds,Leeds City Council,30/11/2015,City Development,Recreation,Supplies and Services,Operational Furniture And Equipment,203,04-Nov-2015,1511-00606,0.00,119.92,R,Allcam Mobile Products Ltd,No,
Http://opendatacommunities.org/id/metropolitan-district-council/leeds,Leeds City Council,30/11/2015,Environment & Housing,Streetscene Environmental Services,Supplies and Services,Operational Materials,205,13-Nov-2015,1511-00607,0.00,847.50,R,Allcode (Uk) Ltd,No,
Http://opendatacommunities.org/id/metropolitan-district-council/leeds,Leeds City Council,30/11/2015,Adult Social Care,Services For Older People - 65 And Over,Third Party Payments,Day Centre - Learning Disabil,567,18-Nov-2015,1511-00608,0.00,4347.52,R,Allerton Avenue,No,
Http://opendatacommunities.org/id/metropolitan-district-council/leeds,Leeds City Council as Accountable Body,30/11/2015,Social Services Pooled Budgets,Jcs For People With Learning Disabilitie,Third Party Payments,Day Centre - Learning Disabil,567,18-Nov-2015,1511-00609,0.00,12248.52,R,Allerton Avenue,No,
Http://opendatacommunities.org/id/metropolitan-district-council/leeds,Leeds City Council,30/11/2015,Central & Corporate,Finance,Supplies and Services,Bank Charges,263,02-Nov-2015,1511-00610,0.00,-132.97,R,Alliance & Leicester Commercial Bank,No,
Http://opendatacommunities.org/id/metropolitan-district-council/leeds,Leeds City Council,30/11/2015,Strategic Landlord,Housing Management,Supplies and Services,Other Hired And Contracted Services,265,05-Nov-2015,1511-00611,0.00,283.96,R,Alliance & Leicester Commercial Bank,No,
Http://opendatacommunities.org/id/metropolitan-district-council/leeds,Leeds City Council,30/11/2015,Central & Corporate,Finance,Supplies and Services,Bank Charges,263,05-Nov-2015,1511-00612,0.00,6.02,R,Alliance & Leicester Commercial Bank,No,
Http://opendatacommunities.org/id/metropolitan-district-council/leeds,Leeds City Council,30/11/2015,Central & Corporate,Finance,Supplies and Services,Bank Charges,263,05-Nov-2015,1511-00613,0.00,325.09,R,Alliance & Leicester Commercial Bank,No,
Http://opendatacommunities.org/id/metropolitan-district-council/leeds,Leeds City Council,30/11/2015,Central & Corporate,Finance,Supplies and Services,Bank Charges,263,05-Nov-2015,1511-00614,0.00,1083.14,R,Alliance & Leicester Commercial Bank,No,
Http://opendatacommunities.org/id/metropolitan-district-council/leeds,Leeds City Council,30/11/2015,Central & Corporate,Finance,Supplies and Services,Bank Charges,263,05-Nov-2015,1511-00615,0.00,100.14,R,Alliance & Leicester Commercial Bank,No,
Http://opendatacommunities.org/id/metropolitan-district-council/leeds,Leeds City Council,30/11/2015,City Development,Highways,Supplies and Services,Other Hired And Contracted Services,265,05-Nov-2015,1511-00616,0.00,27901.78,R,Allied Exploration & Geotechnics Ltd,No,
Http://opendatacommunities.org/id/metropolitan-district-council/leeds,Leeds City Council,30/11/2015,City Development,Highways,Supplies and Services,Other Hired And Contracted Services,265,11-Nov-2015,1511-00617,0.00,1704.60,R,Allied Exploration & Geotechnics Ltd,No,
Http://opendatacommunities.org/id/metropolitan-district-council/leeds,Leeds City Council,30/11/2015,City Development,Highways,Supplies and Services,Other Hired And Contracted Services,265,11-Nov-2015,1511-00618,0.00,2467.92,R,Allied Exploration & Geotechnics Ltd,No,
Http://opendatacommunities.org/id/metropolitan-district-council/leeds,Leeds City Council,30/11/2015,City Development,Highways,Supplies and Services,Other Hired And Contracted Services,265,18-Nov-2015,1511-00619,0.00,1943.10,R,Allied Exploration & Geotechnics Ltd,No,
Http://opendatacommunities.org/id/metropolitan-district-council/leeds,Leeds City Council,30/11/2015,Childrens Services,Safeguarding Targeted & Specialist,Third Party Payments,Services Rendered By Voluntary Sector,505,03-Nov-2015,1511-00620,0.00,1667.80,R,Allied Healthcare,No,
Http://opendatacommunities.org/id/metropolitan-district-council/leeds,Leeds City Council as Accountable Body,30/11/2015,Social Services Pooled Budgets,Jcs For People With Learning Disabilitie,Third Party Payments,Home Care,568,06-Nov-2015,1511-00621,0.00,864.31,R,Allied Healthcare,No,
Http://opendatacommunities.org/id/metropolitan-district-council/leeds,Leeds City Council as Accountable Body,30/11/2015,Social Services Pooled Budgets,Jcs For People With Learning Disabilitie,Third Party Payments,Home Care,568,06-Nov-2015,1511-00622,0.00,879.76,R,Allied Healthcare,No,
Http://opendatacommunities.org/id/metropolitan-district-council/leeds,Leeds City Council as Accountable Body,30/11/2015,Social Services Pooled Budgets,Jcs For People With Learning Disabilitie,Third Party Payments,Home Care,568,06-Nov-2015,1511-00623,0.00,586.02,R,Allied Healthcare,No,
Http://opendatacommunities.org/id/metropolitan-district-council/leeds,Leeds City Council as Accountable Body,30/11/2015,Social Services Pooled Budgets,Jcs For People With Learning Disabilitie,Third Party Payments,Home Care,568,06-Nov-2015,1511-00624,0.00,3914.24,R,Allied Healthcare,No,
Http://opendatacommunities.org/id/metropolitan-district-council/leeds,Leeds City Council as Accountable Body,30/11/2015,Social Services Pooled Budgets,Jcs For People With Learning Disabilitie,Third Party Payments,Home Care,568,06-Nov-2015,1511-00625,0.00,775.63,R,Allied Healthcare,No,
Http://opendatacommunities.org/id/metropolitan-district-council/leeds,Leeds City Council,30/11/2015,Adult Social Care,Services For Older People Under 65 P/Dis,Third Party Payments,Home Care,568,06-Nov-2015,1511-00626,0.00,326.40,R,Allied Healthcare,No,
Http://opendatacommunities.org/id/metropolitan-district-council/leeds,Leeds City Council as Accountable Body,30/11/2015,Social Services Pooled Budgets,Jcs For People With Learning Disabilitie,Third Party Payments,Home Care,568,06-Nov-2015,1511-00627,0.00,705.91,R,Allied Healthcare,No,
Http://opendatacommunities.org/id/metropolitan-district-council/leeds,Leeds City Council as Accountable Body,30/11/2015,Social Services Pooled Budgets,Jcs For People With Learning Disabilitie,Third Party Payments,Home Care,568,06-Nov-2015,1511-00628,0.00,71.25,R,Allied Healthcare,No,
Http://opendatacommunities.org/id/metropolitan-district-council/leeds,Leeds City Council,30/11/2015,Adult Social Care,Other Generic Services,Third Party Payments,Home Care,568,09-Nov-2015,1511-00629,0.00,16708.30,R,Allied Healthcare,No,
Http://opendatacommunities.org/id/metropolitan-district-council/leeds,Leeds City Council,30/11/2015,Adult Social Care,Other Generic Services,Third Party Payments,Home Care,568,09-Nov-2015,1511-00630,0.00,6135.59,R,Allied Healthcare,No,
Http://opendatacommunities.org/id/metropolitan-district-council/leeds,Leeds City Council,30/11/2015,Civic Enterprise Leeds,Commercial Services,Third Party Payments,Home Care,568,09-Nov-2015,1511-00631,0.00,216.06,R,Allied Healthcare,No,
Http://opendatacommunities.org/id/metropolitan-district-council/leeds,Leeds City Council,30/11/2015,Civic Enterprise Leeds,Commercial Services,Third Party Payments,Home Care,568,09-Nov-2015,1511-00632,0.00,43.57,R,Allied Healthcare,No,
Http://opendatacommunities.org/id/metropolitan-district-council/leeds,Leeds City Council as Accountable Body,30/11/2015,Social Services Pooled Budgets,Jcs For People With Learning Disabilitie,Third Party Payments,Home Care,568,09-Nov-2015,1511-00633,0.00,1012.86,R,Allied Healthcare,No,
Http://opendatacommunities.org/id/metropolitan-district-council/leeds,Leeds City Council as Accountable Body,30/11/2015,Social Services Pooled Budgets,Jcs For People With Learning Disabilitie,Third Party Payments,Home Care,568,09-Nov-2015,1511-00634,0.00,990.91,R,Allied Healthcare,No,
Http://opendatacommunities.org/id/metropolitan-district-council/leeds,Leeds City Council as Accountable Body,30/11/2015,Social Services Pooled Budgets,Jcs For People With Learning Disabilitie,Third Party Payments,Home Care,568,09-Nov-2015,1511-00635,0.00,953.12,R,Allied Healthcare,No,
Http://opendatacommunities.org/id/metropolitan-district-council/leeds,Leeds City Council as Accountable Body,30/11/2015,Social Services Pooled Budgets,Jcs For People With Learning Disabilitie,Third Party Payments,Home Care,568,09-Nov-2015,1511-00636,0.00,963.48,R,Allied Healthcare,No,
Http://opendatacommunities.org/id/metropolitan-district-council/leeds,Leeds City Council as Accountable Body,30/11/2015,Social Services Pooled Budgets,Jcs For People With Learning Disabilitie,Third Party Payments,Home Care,568,09-Nov-2015,1511-00637,0.00,839.16,R,Allied Healthcare,No,
Http://opendatacommunities.org/id/metropolitan-district-council/leeds,Leeds City Council as Accountable Body,30/11/2015,Social Services Pooled Budgets,Jcs For People With Learning Disabilitie,Third Party Payments,Home Care,568,09-Nov-2015,1511-00638,0.00,932.40,R,Allied Healthcare,No,
Http://opendatacommunities.org/id/metropolitan-district-council/leeds,Leeds City Council as Accountable Body,30/11/2015,Social Services Pooled Budgets,Jcs For People With Learning Disabilitie,Third Party Payments,Home Care,568,09-Nov-2015,1511-00639,0.00,880.60,R,Allied Healthcare,No,
Http://opendatacommunities.org/id/metropolitan-district-council/leeds,Leeds City Council as Accountable Body,30/11/2015,Social Services Pooled Budgets,Jcs For People With Learning Disabilitie,Third Party Payments,Home Care,568,09-Nov-2015,1511-00640,0.00,880.60,R,Allied Healthcare,No,
Http://opendatacommunities.org/id/metropolitan-district-council/leeds,Leeds City Council as Accountable Body,30/11/2015,Social Services Pooled Budgets,Jcs For People With Learning Disabilitie,Third Party Payments,Home Care,568,09-Nov-2015,1511-00641,0.00,901.32,R,Allied Healthcare,No,
Http://opendatacommunities.org/id/metropolitan-district-council/leeds,Leeds City Council as Accountable Body,30/11/2015,Social Services Pooled Budgets,Jcs For People With Learning Disabilitie,Third Party Payments,Home Care,568,09-Nov-2015,1511-00642,0.00,745.92,R,Allied Healthcare,No,
Http://opendatacommunities.org/id/metropolitan-district-council/leeds,Leeds City Council as Accountable Body,30/11/2015,Social Services Pooled Budgets,Jcs For People With Learning Disabilitie,Third Party Payments,Home Care,568,09-Nov-2015,1511-00643,0.00,932.40,R,Allied Healthcare,No,
Http://opendatacommunities.org/id/metropolitan-district-council/leeds,Leeds City Council as Accountable Body,30/11/2015,Social Services Pooled Budgets,Jcs For People With Learning Disabilitie,Third Party Payments,Home Care,568,09-Nov-2015,1511-00644,0.00,476.56,R,Allied Healthcare,No,
Http://opendatacommunities.org/id/metropolitan-district-council/leeds,Leeds City Council,30/11/2015,Adult Social Care,Services For Older People - 65 And Over,Third Party Payments,Home Care,568,11-Nov-2015,1511-00645,0.00,591.69,R,Allied Healthcare,No,
Http://opendatacommunities.org/id/metropolitan-district-council/leeds,Leeds City Council,30/11/2015,Adult Social Care,Services For Older People Under 65 P/Dis,Third Party Payments,Home Care,568,11-Nov-2015,1511-00646,0.00,382.48,R,Allied Healthcare,No,
Http://opendatacommunities.org/id/metropolitan-district-council/leeds,Leeds City Council,30/11/2015,Adult Social Care,Services For Older People - 65 And Over,Third Party Payments,Home Care,568,11-Nov-2015,1511-00647,0.00,153.12,R,Allied Healthcare,No,
Http://opendatacommunities.org/id/metropolitan-district-council/leeds,Leeds City Council,30/11/2015,Adult Social Care,Services For Older People Under 65 P/Dis,Third Party Payments,Home Care,568,11-Nov-2015,1511-00648,0.00,357.00,R,Allied Healthcare,No,
Http://opendatacommunities.org/id/metropolitan-district-council/leeds,Leeds City Council,30/11/2015,Adult Social Care,Services For Older People Under 65 P/Dis,Third Party Payments,Home Care,568,11-Nov-2015,1511-00649,0.00,2833.21,R,Allied Healthcare,No,
Http://opendatacommunities.org/id/metropolitan-district-council/leeds,Leeds City Council,30/11/2015,Adult Social Care,Services For Older People - 65 And Over,Third Party Payments,Home Care,568,11-Nov-2015,1511-00650,0.00,361.28,R,Allied Healthcare,No,
Http://opendatacommunities.org/id/metropolitan-district-council/leeds,Leeds City Council,30/11/2015,Adult Social Care,Services For Older People Under 65 P/Dis,Third Party Payments,Home Care,568,11-Nov-2015,1511-00651,0.00,1038.67,R,Allied Healthcare,No,
Http://opendatacommunities.org/id/metropolitan-district-council/leeds,Leeds City Council,30/11/2015,Childrens Services,Safeguarding Targeted & Specialist,Third Party Payments,Services Rendered By Voluntary Sector,505,12-Nov-2015,1511-00652,0.00,1356.10,R,Allied Healthcare,No,
Http://opendatacommunities.org/id/metropolitan-district-council/leeds,Leeds City Council,30/11/2015,Adult Social Care,Services For Older People - 65 And Over,Third Party Payments,Home Care,568,12-Nov-2015,1511-00653,0.00,3819.94,R,Allied Healthcare,No,
Http://opendatacommunities.org/id/metropolitan-district-council/leeds,Leeds City Council,30/11/2015,Adult Social Care,Services For Older People Under 65 P/Dis,Third Party Payments,Home Care,568,12-Nov-2015,1511-00654,0.00,1171.10,R,Allied Healthcare,No,
Http://opendatacommunities.org/id/metropolitan-district-council/leeds,Leeds City Council,30/11/2015,Adult Social Care,Services For Older People - 65 And Over,Third Party Payments,Home Care,568,12-Nov-2015,1511-00655,0.00,83.65,R,Allied Healthcare,No,
Http://opendatacommunities.org/id/metropolitan-district-council/leeds,Leeds City Council,30/11/2015,Adult Social Care,Services For Older People Under 65 P/Dis,Third Party Payments,Home Care,568,12-Nov-2015,1511-00656,0.00,249.99,R,Allied Healthcare,No,
Http://opendatacommunities.org/id/metropolitan-district-council/leeds,Leeds City Council,30/11/2015,Adult Social Care,Services For Older People - 65 And Over,Third Party Payments,Home Care,568,12-Nov-2015,1511-00657,0.00,1505.70,R,Allied Healthcare,No,
Http://opendatacommunities.org/id/metropolitan-district-council/leeds,Leeds City Council,30/11/2015,Adult Social Care,Services For Older People - 65 And Over,Third Party Payments,Home Care,568,12-Nov-2015,1511-00658,0.00,499.27,R,Allied Healthcare,No,
Http://opendatacommunities.org/id/metropolitan-district-council/leeds,Leeds City Council,30/11/2015,Adult Social Care,Services For Older People - 65 And Over,Third Party Payments,Home Care,568,12-Nov-2015,1511-00659,0.00,328.63,R,Allied Healthcare,No,
Http://opendatacommunities.org/id/metropolitan-district-council/leeds,Leeds City Council,30/11/2015,Adult Social Care,Services For Older People - 65 And Over,Third Party Payments,Home Care,568,12-Nov-2015,1511-00660,0.00,10567.22,R,Allied Healthcare,No,
Http://opendatacommunities.org/id/metropolitan-district-council/leeds,Leeds City Council,30/11/2015,Adult Social Care,Services For Older People Under 65 P/Dis,Third Party Payments,Home Care,568,12-Nov-2015,1511-00661,0.00,131.93,R,Allied Healthcare,No,
Http://opendatacommunities.org/id/metropolitan-district-council/leeds,Leeds City Council,30/11/2015,Adult Social Care,Services For Older People - 65 And Over,Third Party Payments,Home Care,568,12-Nov-2015,1511-00662,0.00,13668.18,R,Allied Healthcare,No,
Http://opendatacommunities.org/id/metropolitan-district-council/leeds,Leeds City Council,30/11/2015,Adult Social Care,Services For Older People Under 65 P/Dis,Third Party Payments,Home Care,568,12-Nov-2015,1511-00663,0.00,1760.69,R,Allied Healthcare,No,
Http://opendatacommunities.org/id/metropolitan-district-council/leeds,Leeds City Council,30/11/2015,Adult Social Care,Services For Older People - 65 And Over,Third Party Payments,Home Care,568,12-Nov-2015,1511-00664,0.00,9626.91,R,Allied Healthcare,No,
Http://opendatacommunities.org/id/metropolitan-district-council/leeds,Leeds City Council,30/11/2015,Adult Social Care,Services For Older People Under 65 P/Dis,Third Party Payments,Home Care,568,12-Nov-2015,1511-00665,0.00,1180.17,R,Allied Healthcare,No,
Http://opendatacommunities.org/id/metropolitan-district-council/leeds,Leeds City Council,30/11/2015,Adult Social Care,Services For Older People Under 65 P/Dis,Third Party Payments,Home Care,568,12-Nov-2015,1511-00666,0.00,350.94,R,Allied Healthcare,No,
Http://opendatacommunities.org/id/metropolitan-district-council/leeds,Leeds City Council,30/11/2015,Adult Social Care,Services For Older People - 65 And Over,Third Party Payments,Home Care,568,12-Nov-2015,1511-00667,0.00,378.30,R,Allied Healthcare,No,
Http://opendatacommunities.org/id/metropolitan-district-council/leeds,Leeds City Council,30/11/2015,Adult Social Care,Services For Older People Under 65 P/Dis,Third Party Payments,Home Care,568,12-Nov-2015,1511-00668,0.00,318.85,R,Allied Healthcare,No,
Http://opendatacommunities.org/id/metropolitan-district-council/leeds,Leeds City Council,30/11/2015,Adult Social Care,Services For Older People - 65 And Over,Third Party Payments,Home Care,568,12-Nov-2015,1511-00669,0.00,56.75,R,Allied Healthcare,No,
Http://opendatacommunities.org/id/metropolitan-district-council/leeds,Leeds City Council,30/11/2015,Adult Social Care,Services For Older People - 65 And Over,Third Party Payments,Home Care,568,12-Nov-2015,1511-00670,0.00,466.57,R,Allied Healthcare,No,
Http://opendatacommunities.org/id/metropolitan-district-council/leeds,Leeds City Council,30/11/2015,Adult Social Care,Services For Older People - 65 And Over,Third Party Payments,Home Care,568,12-Nov-2015,1511-00671,0.00,3227.66,R,Allied Healthcare,No,
Http://opendatacommunities.org/id/metropolitan-district-council/leeds,Leeds City Council,30/11/2015,Adult Social Care,Services For Older People Under 65 P/Dis,Third Party Payments,Home Care,568,12-Nov-2015,1511-00672,0.00,416.13,R,Allied Healthcare,No,
Http://opendatacommunities.org/id/metropolitan-district-council/leeds,Leeds City Council,30/11/2015,Adult Social Care,Services For Older People - 65 And Over,Third Party Payments,Home Care,568,12-Nov-2015,1511-00673,0.00,73.14,R,Allied Healthcare,No,
Http://opendatacommunities.org/id/metropolitan-district-council/leeds,Leeds City Council,30/11/2015,Childrens Services,Safeguarding Targeted & Specialist,Third Party Payments,Services Rendered By Voluntary Sector,505,13-Nov-2015,1511-00674,0.00,684.00,R,Allied Healthcare,No,
Http://opendatacommunities.org/id/metropolitan-district-council/leeds,Leeds City Council,30/11/2015,Childrens Services,Safeguarding Targeted & Specialist,Third Party Payments,Services Rendered By Voluntary Sector,505,17-Nov-2015,1511-00675,0.00,1166.10,R,Allied Healthcare,No,
Http://opendatacommunities.org/id/metropolitan-district-council/leeds,Leeds City Council,30/11/2015,Adult Social Care,Services For Older People - 65 And Over,Third Party Payments,Home Care,568,17-Nov-2015,1511-00676,0.00,13321.50,R,Allied Healthcare,No,
Http://opendatacommunities.org/id/metropolitan-district-council/leeds,Leeds City Council,30/11/2015,Adult Social Care,Services For Older People Under 65 P/Dis,Third Party Payments,Home Care,568,17-Nov-2015,1511-00677,0.00,1165.96,R,Allied Healthcare,No,
Http://opendatacommunities.org/id/metropolitan-district-council/leeds,Leeds City Council as Accountable Body,30/11/2015,Social Services Pooled Budgets,Jcs For People With Learning Disabilitie,Third Party Payments,Home Care,568,18-Nov-2015,1511-00678,0.00,636.48,R,Allied Healthcare,No,
Http://opendatacommunities.org/id/metropolitan-district-council/leeds,Leeds City Council,30/11/2015,Childrens Services,Safeguarding Targeted & Specialist,Third Party Payments,Services Rendered By Voluntary Sector,505,27-Nov-2015,1511-00679,0.00,723.59,R,Allied Healthcare,No,
Http://opendatacommunities.org/id/metropolitan-district-council/leeds,Leeds City Council,30/11/2015,Childrens Services,Safeguarding Targeted & Specialist,Third Party Payments,Services Rendered By Voluntary Sector,505,27-Nov-2015,1511-00680,0.00,1667.80,R,Allied Healthcare,No,
Http://opendatacommunities.org/id/metropolitan-district-council/leeds,Leeds City Council,30/11/2015,Adult Social Care,Services For Older People - 65 And Over,Third Party Payments,Home Care,568,27-Nov-2015,1511-00681,0.00,3198.75,R,Allied Healthcare,No,
Http://opendatacommunities.org/id/metropolitan-district-council/leeds,Leeds City Council,30/11/2015,Adult Social Care,Services For Older People Under 65 P/Dis,Third Party Payments,Home Care,568,27-Nov-2015,1511-00682,0.00,196.46,R,Allied Healthcare,No,
Http://opendatacommunities.org/id/metropolitan-district-council/leeds,Leeds City Council as Accountable Body,30/11/2015,Social Services Pooled Budgets,Jcs For People With Learning Disabilitie,Third Party Payments,Home Care,568,27-Nov-2015,1511-00683,0.00,1002.50,R,Allied Healthcare,No,
Http://opendatacommunities.org/id/metropolitan-district-council/leeds,Leeds City Council as Accountable Body,30/11/2015,Social Services Pooled Budgets,Jcs For People With Learning Disabilitie,Third Party Payments,Home Care,568,30-Nov-2015,1511-00684,0.00,1002.50,R,Allied Healthcare,No,
Http://opendatacommunities.org/id/metropolitan-district-council/leeds,Leeds City Council as Accountable Body,30/11/2015,Social Services Pooled Budgets,Jcs For People With Learning Disabilitie,Third Party Payments,Home Care,568,30-Nov-2015,1511-00685,0.00,1188.98,R,Allied Healthcare,No,
Http://opendatacommunities.org/id/metropolitan-district-council/leeds,Leeds City Council as Accountable Body,30/11/2015,Social Services Pooled Budgets,Jcs For People With Learning Disabilitie,Third Party Payments,Home Care,568,30-Nov-2015,1511-00686,0.00,1236.52,R,Allied Healthcare,No,
Http://opendatacommunities.org/id/metropolitan-district-council/leeds,Leeds City Council as Accountable Body,30/11/2015,Social Services Pooled Budgets,Jcs For People With Learning Disabilitie,Third Party Payments,Home Care,568,30-Nov-2015,1511-00687,0.00,1012.44,R,Allied Healthcare,No,
Http://opendatacommunities.org/id/metropolitan-district-council/leeds,Leeds City Council,30/11/2015,Central & Corporate,Public Health,Third Party Payments,Public Health Commissioned Services,526,17-Nov-2015,1511-00688,0.00,658.20,R,Allied Pharmacy Ltd,No,
Http://opendatacommunities.org/id/metropolitan-district-council/leeds,Leeds City Council,30/11/2015,Childrens Services,Safeguarding Targeted & Specialist ,Third Party Payments,Rents (non supported),552,30-Sep-2015,1511-00689,0.00,188.12,R,Allpay.Net Visa And Mast,Yes,
Http://opendatacommunities.org/id/metropolitan-district-council/leeds,Leeds City Council,30/11/2015,Central & Corporate,Democratic Services,Transport,Fuel (Non LCC Supplies),321,09-Nov-2015,1511-00690,0.00,213.91,R,Allstar Business Solutions Ltd,No,
Http://opendatacommunities.org/id/metropolitan-district-council/leeds,Leeds City Council,30/11/2015,Childrens Services,Learning Skills & Universal,Transport,Fuel (Non LCC Supplies),321,09-Nov-2015,1511-00691,0.00,2229.48,R,Allstar Business Solutions Ltd,No,
Http://opendatacommunities.org/id/metropolitan-district-council/leeds,Leeds City Council,30/11/2015,Environment & Housing,Parks and Countryside,Transport,Fuel (Non LCC Supplies),321,09-Nov-2015,1511-00692,0.00,190.07,R,Allstar Business Solutions Ltd,No,
Http://opendatacommunities.org/id/metropolitan-district-council/leeds,Leeds City Council,30/11/2015,City Development,Highways,Transport,Fuel (Non LCC Supplies),321,09-Nov-2015,1511-00693,0.00,454.08,R,Allstar Business Solutions Ltd,No,
Http://opendatacommunities.org/id/metropolitan-district-council/leeds,Leeds City Council,30/11/2015,Environment & Housing,Waste Management,Transport,Fuel (Non LCC Supplies),321,09-Nov-2015,1511-00694,0.00,1.20,R,Allstar Business Solutions Ltd,No,
Http://opendatacommunities.org/id/metropolitan-district-council/leeds,Leeds City Council,30/11/2015,Central & Corporate,Commercial Services Trading Services,Transport,Fuel (Non LCC Supplies),321,12-Nov-2015,1511-00695,0.00,60.02,R,Allstar Business Solutions Ltd,No,
Http://opendatacommunities.org/id/metropolitan-district-council/leeds,Leeds City Council,30/11/2015,Central & Corporate,Commercial Services Trading Services,Transport,Fuel (Non LCC Supplies),321,30-Nov-2015,1511-00696,0.00,47.34,R,Allstar Business Solutions Ltd,No,
Http://opendatacommunities.org/id/metropolitan-district-council/leeds,Leeds City Council,30/11/2015,Strategic Landlord,Property and Contracts,Premises,General Maintenance,104,06-Nov-2015,1511-00697,0.00,83.34,R,Al-Murad Diy Ltd,No,
Http://opendatacommunities.org/id/metropolitan-district-council/leeds,Leeds City Council,30/11/2015,Strategic Landlord,Property and Contracts,Premises,General Maintenance,104,09-Nov-2015,1511-00698,0.00,83.34,R,Al-Murad Diy Ltd,No,
Http://opendatacommunities.org/id/metropolitan-district-council/leeds,Leeds City Council,30/11/2015,Strategic Landlord,Property and Contracts,Premises,General Maintenance,104,09-Nov-2015,1511-00699,0.00,58.34,R,Al-Murad Diy Ltd,No,
Http://opendatacommunities.org/id/metropolitan-district-council/leeds,Leeds City Council,30/11/2015,Strategic Landlord,Property and Contracts,Premises,General Maintenance,104,09-Nov-2015,1511-00700,0.00,41.67,R,Al-Murad Diy Ltd,No,
Http://opendatacommunities.org/id/metropolitan-district-council/leeds,Leeds City Council,30/11/2015,Strategic Landlord,Property and Contracts,Premises,General Maintenance,104,09-Nov-2015,1511-00701,0.00,66.67,R,Al-Murad Diy Ltd,No,
Http://opendatacommunities.org/id/metropolitan-district-council/leeds,Leeds City Council,30/11/2015,Strategic Landlord,Property and Contracts,Premises,General Maintenance,104,10-Nov-2015,1511-00702,0.00,75.00,R,Al-Murad Diy Ltd,No,
Http://opendatacommunities.org/id/metropolitan-district-council/leeds,Leeds City Council,30/11/2015,Strategic Landlord,Property and Contracts,Premises,General Maintenance,104,10-Nov-2015,1511-00703,0.00,100.00,R,Al-Murad Diy Ltd,No,
Http://opendatacommunities.org/id/metropolitan-district-council/leeds,Leeds City Council,30/11/2015,Strategic Landlord,Property and Contracts,Premises,General Maintenance,104,18-Nov-2015,1511-00704,0.00,41.67,R,Al-Murad Diy Ltd,No,
Http://opendatacommunities.org/id/metropolitan-district-council/leeds,Leeds City Council,30/11/2015,Strategic Landlord,Property and Contracts,Premises,General Maintenance,104,20-Nov-2015,1511-00705,0.00,166.67,R,Al-Murad Diy Ltd,No,
Http://opendatacommunities.org/id/metropolitan-district-council/leeds,Leeds City Council,30/11/2015,Strategic Landlord,Property and Contracts,Premises,General Maintenance,104,20-Nov-2015,1511-00706,0.00,45.84,R,Al-Murad Diy Ltd,No,
Http://opendatacommunities.org/id/metropolitan-district-council/leeds,Leeds City Council,30/11/2015,Strategic Landlord,Property and Contracts,Premises,General Maintenance,104,20-Nov-2015,1511-00707,0.00,41.67,R,Al-Murad Diy Ltd,No,
Http://opendatacommunities.org/id/metropolitan-district-council/leeds,Leeds City Council,30/11/2015,Strategic Landlord,Property and Contracts,Premises,General Maintenance,104,20-Nov-2015,1511-00708,0.00,141.67,R,Al-Murad Diy Ltd,No,
Http://opendatacommunities.org/id/metropolitan-district-council/leeds,Leeds City Council,30/11/2015,Strategic Landlord,Property and Contracts,Premises,General Maintenance,104,20-Nov-2015,1511-00709,0.00,41.67,R,Al-Murad Diy Ltd,No,
Http://opendatacommunities.org/id/metropolitan-district-council/leeds,Leeds City Council,30/11/2015,Strategic Landlord,Property and Contracts,Premises,General Maintenance,104,20-Nov-2015,1511-00710,0.00,41.67,R,Al-Murad Diy Ltd,No,
Http://opendatacommunities.org/id/metropolitan-district-council/leeds,Leeds City Council,30/11/2015,Strategic Landlord,Property and Contracts,Premises,General Maintenance,104,20-Nov-2015,1511-00711,0.00,20.84,R,Al-Murad Diy Ltd,No,
Http://opendatacommunities.org/id/metropolitan-district-council/leeds,Leeds City Council,30/11/2015,City Development,Recreation,Supplies and Services,Operational Furniture And Equipment,203,12-Nov-2015,1511-00712,0.00,172.84,R,Alpha Awards Ltd,No,
Http://opendatacommunities.org/id/metropolitan-district-council/leeds,Leeds City Council,30/11/2015,City Development,Recreation,Supplies and Services,Operational Furniture And Equipment,203,19-Nov-2015,1511-00713,0.00,36.00,R,Alpha Awards Ltd,No,
Http://opendatacommunities.org/id/metropolitan-district-council/leeds,Leeds City Council,30/11/2015,City Development,Recreation,Supplies and Services,Operational Furniture And Equipment,203,26-Nov-2015,1511-00714,0.00,69.90,R,Alpha Awards Ltd,No,
Http://opendatacommunities.org/id/metropolitan-district-council/leeds,Leeds City Council,30/11/2015,Childrens Services,Safeguarding Targeted & Specialist,Support Services,Legal Disbursements,411,04-Nov-2015,1511-00715,0.00,147.50,R,Alpha Biolaboratories Limited,No,
Http://opendatacommunities.org/id/metropolitan-district-council/leeds,Leeds City Council,30/11/2015,Childrens Services,Safeguarding Targeted & Specialist,Support Services,Legal Disbursements,411,11-Nov-2015,1511-00716,0.00,390.00,R,Alpha Biolaboratories Limited,No,
Http://opendatacommunities.org/id/metropolitan-district-council/leeds,Leeds City Council,30/11/2015,Childrens Services,Safeguarding Targeted & Specialist,Third Party Payments,Section 17,551,11-Nov-2015,1511-00717,0.00,515.00,R,Alpha Biolaboratories Limited,No,
Http://opendatacommunities.org/id/metropolitan-district-council/leeds,Leeds City Council,30/11/2015,Childrens Services,Safeguarding Targeted & Specialist,Support Services,Legal Disbursements,411,11-Nov-2015,1511-00718,0.00,645.00,R,Alpha Biolaboratories Limited,No,
Http://opendatacommunities.org/id/metropolitan-district-council/leeds,Leeds City Council,30/11/2015,Childrens Services,Safeguarding Targeted & Specialist,Support Services,Legal Disbursements,411,12-Nov-2015,1511-00719,0.00,65.00,R,Alpha Biolaboratories Limited,No,
Http://opendatacommunities.org/id/metropolitan-district-council/leeds,Leeds City Council,30/11/2015,Childrens Services,Safeguarding Targeted & Specialist,Support Services,Legal Disbursements,411,12-Nov-2015,1511-00720,0.00,144.00,R,Alpha Biolaboratories Limited,No,
Http://opendatacommunities.org/id/metropolitan-district-council/leeds,Leeds City Council,30/11/2015,Childrens Services,Safeguarding Targeted & Specialist,Support Services,Legal Disbursements,411,12-Nov-2015,1511-00721,0.00,144.00,R,Alpha Biolaboratories Limited,No,
Http://opendatacommunities.org/id/metropolitan-district-council/leeds,Leeds City Council,30/11/2015,Childrens Services,Safeguarding Targeted & Specialist,Support Services,Legal Disbursements,411,12-Nov-2015,1511-00722,0.00,38.00,R,Alpha Biolaboratories Limited,No,
Http://opendatacommunities.org/id/metropolitan-district-council/leeds,Leeds City Council,30/11/2015,Childrens Services,Safeguarding Targeted & Specialist,Third Party Payments, Direct Work,549,13-Nov-2015,1511-00723,0.00,360.00,R,Alpha Biolaboratories Limited,No,
Http://opendatacommunities.org/id/metropolitan-district-council/leeds,Leeds City Council,30/11/2015,Childrens Services,Safeguarding Targeted & Specialist,Support Services,Legal Disbursements,411,17-Nov-2015,1511-00724,0.00,510.00,R,Alpha Biolaboratories Limited,No,
Http://opendatacommunities.org/id/metropolitan-district-council/leeds,Leeds City Council,30/11/2015,Childrens Services,Safeguarding Targeted & Specialist,Support Services,Legal Disbursements,411,27-Nov-2015,1511-00725,0.00,181.67,R,Alpha Biolaboratories Limited,No,
Http://opendatacommunities.org/id/metropolitan-district-council/leeds,Leeds City Council,30/11/2015,Childrens Services,Safeguarding Targeted & Specialist,Support Services,Legal Disbursements,411,27-Nov-2015,1511-00726,0.00,247.50,R,Alpha Biolaboratories Limited,No,
Http://opendatacommunities.org/id/metropolitan-district-council/leeds,Leeds City Council,30/11/2015,Childrens Services,Safeguarding Targeted & Specialist,Third Party Payments,Placement Support,550,20-Nov-2015,1511-00727,0.00,45.00,R,Alpha Hospitals Sheffield Patient Acc,No,
Http://opendatacommunities.org/id/metropolitan-district-council/leeds,Leeds City Council,30/11/2015,Childrens Services,Safeguarding Targeted & Specialist,Third Party Payments,Placement Support,550,27-Nov-2015,1511-00728,0.00,15.00,R,Alpha Hospitals Sheffield Patient Acc,No,
Http://opendatacommunities.org/id/metropolitan-district-council/leeds,Leeds City Council,30/11/2015,Childrens Services,Partnership Development & Leadership,Supplies and Services,Memberships,226,27-Nov-2015,1511-00729,0.00,18510.45,R,Alps (Alkemygold Ltd),No,
Http://opendatacommunities.org/id/metropolitan-district-council/leeds,Leeds City Council,30/11/2015,Central & Corporate,Public Health,Third Party Payments,Public Health Commissioned Services,526,12-Nov-2015,1511-00730,0.00,2742.05,R,Al-Shafa Pharmacy,No,
Http://opendatacommunities.org/id/metropolitan-district-council/leeds,Leeds City Council,30/11/2015,Central & Corporate,Public Health,Third Party Payments,Public Health Commissioned Services,526,17-Nov-2015,1511-00731,0.00,2958.85,R,Al-Shafa Pharmacy,No,
Http://opendatacommunities.org/id/metropolitan-district-council/leeds,Leeds City Council,30/11/2015,Citizens and Communities,Communities,Supplies and Services,'Well Being' Large Grants Projects,230,26-Nov-2015,1511-00732,0.00,70.00,R,Alwoodley Community Association,No,
Http://opendatacommunities.org/id/metropolitan-district-council/leeds,Leeds City Council,30/11/2015,Strategic Accounts,Miscellaneous,Supplies and Services,Non-Recurring Grants,227,16-Nov-2015,1511-00733,0.00,200.00,R,Alwoodley In Bloom,No,
Http://opendatacommunities.org/id/metropolitan-district-council/leeds,Leeds City Council,30/11/2015,Adult Social Care,Services For Older People - 65 And Over,Third Party Payments,Nursing Home,570,18-Nov-2015,1511-00734,0.00,2810.60,R,Alwoodley Nursing Home,No,
Http://opendatacommunities.org/id/metropolitan-district-council/leeds,Leeds City Council,30/11/2015,Childrens Services,Learning Skills & Universal,Supplies and Services,Operational Furniture And Equipment,203,19-Nov-2015,1511-00735,0.00,105.00,R,REDACTED PERSONAL DATA,No,
Http://opendatacommunities.org/id/metropolitan-district-council/leeds,Leeds City Council,30/11/2015,Civic Enterprise Leeds,Business Support Centre,Supplies and Services,Operational Materials,205,02-Nov-2015,1511-00736,0.00,293.30,R,Amari Plastics Plc,No,
Http://opendatacommunities.org/id/metropolitan-district-council/leeds,Leeds City Council,30/11/2015,Central & Corporate,Commercial Services Trading Services,Supplies and Services,Operational Materials,205,06-Nov-2015,1511-00737,0.00,35.00,R,Amari Plastics Plc,No,
Http://opendatacommunities.org/id/metropolitan-district-council/leeds,Leeds City Council,30/11/2015,Civic Enterprise Leeds,Business Support Centre,Supplies and Services,Operational Materials,205,11-Nov-2015,1511-00738,0.00,199.50,R,Amari Plastics Plc,No,
Http://opendatacommunities.org/id/metropolitan-district-council/leeds,Leeds City Council,30/11/2015,City Development,Recreation ,Supplies and Services,Memberships,226,07-Oct-2015,1511-00739,0.00,110.83,R,Amateur Rowing Ass,Yes,
Http://opendatacommunities.org/id/metropolitan-district-council/leeds,Leeds City Council,30/11/2015,City Development,Libraries  Arts & Heritage,Supplies and Services,Other Hired And Contracted Services,265,13-Nov-2015,1511-00740,0.00,2800.00,R,Amazing Tent Company Limited,No,
Http://opendatacommunities.org/id/metropolitan-district-council/leeds,Leeds City Council,30/11/2015,City Development,Support Services ,Supplies and Services,Other Hired And Contracted Services,265,20-Oct-2015,1511-00741,0.00,13.13,R,Amazon Digital Dwnlds,Yes,
Http://opendatacommunities.org/id/metropolitan-district-council/leeds,Leeds City Council,30/11/2015,Childrens Services,Learning Skills & Universal ,Supplies and Services,Teaching Materials,202,28-Oct-2015,1511-00742,0.00,1.99,R,Amazon Digital Dwnlds,Yes,
